Workbook

Sheet Coeff
A2: H2H
A3: Bank Balance | B3: 1000
A4: Kelly | B4: 10
A5: Min. Overlay | B5: 0.05
A7: Handicap
A8: Bank Balance | B8: 1000
A9: Kelly | B9: 10
A10: Min. Overlay | B10: 0.05
A12: Totals
A13: Bank Balance | B13: 1000
A14: Kelly | B14: 10
A15: Min. Overlay | B15: 0.05

Sheet h2h
A3: League | B3: Team1 | C3: Team2 | D3: Prob(T1) | E3: Prob(Draw) | F3: Prob(T2) | G3: Odds(T1) | H3: Odds(Draw) | I3: Odds(T2) | J3: $Bet(T1) | K3: $Bet(T2)
A4: Austria tipp3-Bundesliga | B4: Wiener Neustadt | C4: RZ Pellets WAC | D4: 0.376 | E4: 0.316 | F4: 0.309 | G4: 2.5 | H4: 3.4 | I4: 2.91 | J4: =IF(G4="","",IF((G4*D4-1)>=Coeff!$B$5,Coeff!$B$3/Coeff!$B$4*(G4*D4-1)/(G4-1),0)) -> 0 | K4: =IF(I4="","",IF((I4*F4-1)>=Coeff!$B$5,Coeff!$B$3/Coeff!$B$4*(I4*F4-1)/(I4-1),0)) -> 0
A5: Austria tipp3-Bundesliga | B5: Austria Wien | C5: Mattersburg | D5: 0.789 | E5: 0.144 | F5: 0.067 | G5: 1.36 | H5: 5.06 | I5: 11.69 | J5: =IF(G5="","",IF((G5*D5-1)>=Coeff!$B$5,Coeff!$B$3/Coeff!$B$4*(G5*D5-1)/(G5-1),0)) -> 20.28888889 | K5: =IF(I5="","",IF((I5*F5-1)>=Coeff!$B$5,Coeff!$B$3/Coeff!$B$4*(I5*F5-1)/(I5-1),0)) -> 0
A6: Austria tipp3-Bundesliga | B6: Adm/Modling | C6: Rapid Wien | D6: 0.325 | E6: 0.317 | F6: 0.358 | G6: 3.03 | H6: 3.55 | I6: 2.41 | J6: =IF(G6="","",IF((G6*D6-1)>=Coeff!$B$5,Coeff!$B$3/Coeff!$B$4*(G6*D6-1)/(G6-1),0)) -> 0 | K6: =IF(I6="","",IF((I6*F6-1)>=Coeff!$B$5,Coeff!$B$3/Coeff!$B$4*(I6*F6-1)/(I6-1),0)) -> 0
A7: Austria tipp3-Bundesliga | B7: FC Wacker Innsbruck | C7: Sturm Graz | D7: 0.33 | E7: 0.317 | F7: 0.353 | G7: 2.5 | H7: 3.61 | I7: 2.9 | J7: =IF(G7="","",IF((G7*D7-1)>=Coeff!$B$5,Coeff!$B$3/Coeff!$B$4*(G7*D7-1)/(G7-1),0)) -> 0 | K7: =IF(I7="","",IF((I7*F7-1)>=Coeff!$B$5,Coeff!$B$3/Coeff!$B$4*(I7*F7-1)/(I7-1),0)) -> 0
A8: Austria tipp3-Bundesliga | B8: Ried | C8: Salzburg | D8: 0.227 | E8: 0.295 | F8: 0.478 | G8: 4.53 | H8: 3.79 | I8: 1.86 | J8: =IF(G8="","",IF((G8*D8-1)>=Coeff!$B$5,Coeff!$B$3/Coeff!$B$4*(G8*D8-1)/(G8-1),0)) -> 0 | K8: =IF(I8="","",IF((I8*F8-1)>=Coeff!$B$5,Coeff!$B$3/Coeff!$B$4*(I8*F8-1)/(I8-1),0)) -> 0
A9: Austria ADEG Erste Liga | B9: Vienna FC | C9: SV Horn | D9: 0.442 | E9: 0.243 | F9: 0.315 | J9: =IF(G9="","",IF((G9*D9-1)>=Coeff!$B$5,Coeff!$B$3/Coeff!$B$4*(G9*D9-1)/(G9-1),0)) ->  | K9: =IF(I9="","",IF((I9*F9-1)>=Coeff!$B$5,Coeff!$B$3/Coeff!$B$4*(I9*F9-1)/(I9-1),0)) -> 
A10: Belarus Premier Division | B10: FC Minsk | C10: Shakhtyor Soligorsk | D10: 0.18 | E10: 0.237 | F10: 0.582 | G10: 4.75 | H10: 3.45 | I10: 1.88 | J10: =IF(G10="","",IF((G10*D10-1)>=Coeff!$B$5,Coeff!$B$3/Coeff!$B$4*(G10*D10-1)/(G10-1),0)) -> 0 | K10: =IF(I10="","",IF((I10*F10-1)>=Coeff!$B$5,Coeff!$B$3/Coeff!$B$4*(I10*F10-1)/(I10-1),0)) -> 10.7
A11: Belarus Premier Division | B11: Belshina Bobruisk | C11: Dinamo Minsk | D11: 0.25 | E11: 0.271 | F11: 0.479 | G11: 3.8 | H11: 3.3 | I11: 2 | J11: =IF(G11="","",IF((G11*D11-1)>=Coeff!$B$5,Coeff!$B$3/Coeff!$B$4*(G11*D11-1)/(G11-1),0)) -> 0 | K11: =IF(I11="","",IF((I11*F11-1)>=Coeff!$B$5,Coeff!$B$3/Coeff!$B$4*(I11*F11-1)/(I11-1),0)) -> 0
A12: Bulgaria A Grupa | B12: Botev Vratsa | C12: Montana | D12: 0.464 | E12: 0.273 | F12: 0.262 | G12: 1.36 | H12: 4.75 | I12: 6.5 | J12: =IF(G12="","",IF((G12*D12-1)>=Coeff!$B$5,Coeff!$B$3/Coeff!$B$4*(G12*D12-1)/(G12-1),0)) -> 0 | K12: =IF(I12="","",IF((I12*F12-1)>=Coeff!$B$5,Coeff!$B$3/Coeff!$B$4*(I12*F12-1)/(I12-1),0)) -> 12.78181818
A13: Bulgaria A Grupa | B13: Slavia Sofia | C13: Chernomorets Burgas | D13: 0.452 | E13: 0.276 | F13: 0.272 | G13: 1.8 | H13: 3.8 | I13: 3.4 | J13: =IF(G13="","",IF((G13*D13-1)>=Coeff!$B$5,Coeff!$B$3/Coeff!$B$4*(G13*D13-1)/(G13-1),0)) -> 0 | K13: =IF(I13="","",IF((I13*F13-1)>=Coeff!$B$5,Coeff!$B$3/Coeff!$B$4*(I13*F13-1)/(I13-1),0)) -> 0
A14: Bulgaria A Grupa | B14: Litex Lovech | C14: Lokomotiv Sofia | D14: 0.851 | E14: 0.098 | F14: 0.051 | G14: 2.2 | H14: 3.3 | I14: 3 | J14: =IF(G14="","",IF((G14*D14-1)>=Coeff!$B$5,Coeff!$B$3/Coeff!$B$4*(G14*D14-1)/(G14-1),0)) -> 72.68333333 | K14: =IF(I14="","",IF((I14*F14-1)>=Coeff!$B$5,Coeff!$B$3/Coeff!$B$4*(I14*F14-1)/(I14-1),0)) -> 0
A15: Bulgaria A Grupa | B15: Lokomotiv Plovdiv | C15: Beroe | D15: 0.555 | E15: 0.247 | F15: 0.198 | G15: 2 | H15: 3.25 | I15: 3.3 | J15: =IF(G15="","",IF((G15*D15-1)>=Coeff!$B$5,Coeff!$B$3/Coeff!$B$4*(G15*D15-1)/(G15-1),0)) -> 11 | K15: =IF(I15="","",IF((I15*F15-1)>=Coeff!$B$5,Coeff!$B$3/Coeff!$B$4*(I15*F15-1)/(I15-1),0)) -> 0
A16: Bulgaria A Grupa | B16: Minyor | C16: Cherno More Varna | D16: 0.228 | E16: 0.261 | F16: 0.511 | G16: 4.5 | H16: 3.5 | I16: 1.7 | J16: =IF(G16="","",IF((G16*D16-1)>=Coeff!$B$5,Coeff!$B$3/Coeff!$B$4*(G16*D16-1)/(G16-1),0)) -> 0 | K16: =IF(I16="","",IF((I16*F16-1)>=Coeff!$B$5,Coeff!$B$3/Coeff!$B$4*(I16*F16-1)/(I16-1),0)) -> 0
A17: Bulgaria A Grupa | B17: PFC Ludogorets Razgrad | C17: Botev Plovdiv | D17: 0.675 | E17: 0.196 | F17: 0.129 | G17: 1.67 | H17: 3.8 | I17: 4 | J17: =IF(G17="","",IF((G17*D17-1)>=Coeff!$B$5,Coeff!$B$3/Coeff!$B$4*(G17*D17-1)/(G17-1),0)) -> 18.99253731 | K17: =IF(I17="","",IF((I17*F17-1)>=Coeff!$B$5,Coeff!$B$3/Coeff!$B$4*(I17*F17-1)/(I17-1),0)) -> 0
A18: Bulgaria A Grupa | B18: CSKA Sofia | C18: Pirin Gotse Delchev | D18: 0.908 | E18: 0.062 | F18: 0.03 | J18: =IF(G18="","",IF((G18*D18-1)>=Coeff!$B$5,Coeff!$B$3/Coeff!$B$4*(G18*D18-1)/(G18-1),0)) ->  | K18: =IF(I18="","",IF((I18*F18-1)>=Coeff!$B$5,Coeff!$B$3/Coeff!$B$4*(I18*F18-1)/(I18-1),0)) -> 
A19: Czech Republic Gambrinus League | B19: Jihlava | C19: Slovacko | D19: 0.406 | E19: 0.29 | F19: 0.304 | G19: 2.54 | H19: 3.11 | I19: 3.27 | J19: =IF(G19="","",IF((G19*D19-1)>=Coeff!$B$5,Coeff!$B$3/Coeff!$B$4*(G19*D19-1)/(G19-1),0)) -> 0 | K19: =IF(I19="","",IF((I19*F19-1)>=Coeff!$B$5,Coeff!$B$3/Coeff!$B$4*(I19*F19-1)/(I19-1),0)) -> 0
A20: Czech Republic Gambrinus League | B20: Slavia Prague | C20: Budejovice | D20: 0.677 | E20: 0.198 | F20: 0.125 | G20: 1.74 | H20: 4.15 | I20: 5.01 | J20: =IF(G20="","",IF((G20*D20-1)>=Coeff!$B$5,Coeff!$B$3/Coeff!$B$4*(G20*D20-1)/(G20-1),0)) -> 24.05135135 | K20: =IF(I20="","",IF((I20*F20-1)>=Coeff!$B$5,Coeff!$B$3/Coeff!$B$4*(I20*F20-1)/(I20-1),0)) -> 0
A21: Czech Republic Gambrinus League | B21: Banik Ostrava | C21: Dukla Praha | D21: 0.316 | E21: 0.291 | F21: 0.393 | G21: 2.47 | H21: 3.42 | I21: 3.1 | J21: =IF(G21="","",IF((G21*D21-1)>=Coeff!$B$5,Coeff!$B$3/Coeff!$B$4*(G21*D21-1)/(G21-1),0)) -> 0 | K21: =IF(I21="","",IF((I21*F21-1)>=Coeff!$B$5,Coeff!$B$3/Coeff!$B$4*(I21*F21-1)/(I21-1),0)) -> 10.3952381
A22: Czech Republic Gambrinus League | B22: M Boleslav | C22: Jablonec | D22: 0.404 | E22: 0.29 | F22: 0.306 | G22: 2.35 | H22: 3.47 | I22: 3.23 | J22: =IF(G22="","",IF((G22*D22-1)>=Coeff!$B$5,Coeff!$B$3/Coeff!$B$4*(G22*D22-1)/(G22-1),0)) -> 0 | K22: =IF(I22="","",IF((I22*F22-1)>=Coeff!$B$5,Coeff!$B$3/Coeff!$B$4*(I22*F22-1)/(I22-1),0)) -> 0
A23: Czech Republic Gambrinus League | B23: Sigma Olomouc | C23: Viktoria Plzen | D23: 0.321 | E23: 0.292 | F23: 0.388 | G23: 4.75 | H23: 3.78 | I23: 1.85 | J23: =IF(G23="","",IF((G23*D23-1)>=Coeff!$B$5,Coeff!$B$3/Coeff!$B$4*(G23*D23-1)/(G23-1),0)) -> 13.99333333 | K23: =IF(I23="","",IF((I23*F23-1)>=Coeff!$B$5,Coeff!$B$3/Coeff!$B$4*(I23*F23-1)/(I23-1),0)) -> 0
A24: Czech Republic Gambrinus League | B24: Brno | C24: Sparta Prague | D24: 0.164 | E24: 0.232 | F24: 0.603 | G24: 8.05 | H24: 4.61 | I24: 1.47 | J24: =IF(G24="","",IF((G24*D24-1)>=Coeff!$B$5,Coeff!$B$3/Coeff!$B$4*(G24*D24-1)/(G24-1),0)) -> 4.541843972 | K24: =IF(I24="","",IF((I24*F24-1)>=Coeff!$B$5,Coeff!$B$3/Coeff!$B$4*(I24*F24-1)/(I24-1),0)) -> 0
A25: Czech Republic Druha League | B25: Most | C25: Karvina | D25: 0.329 | E25: 0.29 | F25: 0.381 | G25: 1.57 | H25: 4 | I25: 4.33 | J25: =IF(G25="","",IF((G25*D25-1)>=Coeff!$B$5,Coeff!$B$3/Coeff!$B$4*(G25*D25-1)/(G25-1),0)) -> 0 | K25: =IF(I25="","",IF((I25*F25-1)>=Coeff!$B$5,Coeff!$B$3/Coeff!$B$4*(I25*F25-1)/(I25-1),0)) -> 19.51141141
A26: Czech Republic Druha League | B26: FK MAS Taborsko | C26: Slovan Varnsdorf | D26: 0.396 | E26: 0.289 | F26: 0.315 | G26: 2.2 | H26: 3.3 | I26: 2.8 | J26: =IF(G26="","",IF((G26*D26-1)>=Coeff!$B$5,Coeff!$B$3/Coeff!$B$4*(G26*D26-1)/(G26-1),0)) -> 0 | K26: =IF(I26="","",IF((I26*F26-1)>=Coeff!$B$5,Coeff!$B$3/Coeff!$B$4*(I26*F26-1)/(I26-1),0)) -> 0
A27: Czech Republic Druha League | B27: Sokolov | C27: Opava | D27: 0.619 | E27: 0.224 | F27: 0.156 | G27: 1.57 | H27: 3.75 | I27: 5 | J27: =IF(G27="","",IF((G27*D27-1)>=Coeff!$B$5,Coeff!$B$3/Coeff!$B$4*(G27*D27-1)/(G27-1),0)) -> 0 | K27: =IF(I27="","",IF((I27*F27-1)>=Coeff!$B$5,Coeff!$B$3/Coeff!$B$4*(I27*F27-1)/(I27-1),0)) -> 0
A28: Czech Republic Druha League | B28: Caslav | C28: Znojmo | D28: 0.268 | E28: 0.28 | F28: 0.452 | G28: 2.88 | H28: 3.5 | I28: 2.1 | J28: =IF(G28="","",IF((G28*D28-1)>=Coeff!$B$5,Coeff!$B$3/Coeff!$B$4*(G28*D28-1)/(G28-1),0)) -> 0 | K28: =IF(I28="","",IF((I28*F28-1)>=Coeff!$B$5,Coeff!$B$3/Coeff!$B$4*(I28*F28-1)/(I28-1),0)) -> 0
A29: Czech Republic Druha League | B29: Usti nad Labem | C29: FC Vlasim | D29: 0.558 | E29: 0.249 | F29: 0.193 | G29: 1.75 | H29: 3.4 | I29: 4 | J29: =IF(G29="","",IF((G29*D29-1)>=Coeff!$B$5,Coeff!$B$3/Coeff!$B$4*(G29*D29-1)/(G29-1),0)) -> 0 | K29: =IF(I29="","",IF((I29*F29-1)>=Coeff!$B$5,Coeff!$B$3/Coeff!$B$4*(I29*F29-1)/(I29-1),0)) -> 0
A30: Denmark 2. Division | B30: Herlev | C30: Frem | D30: 0.234 | E30: 0.22 | F30: 0.546 | G30: 4.2 | H30: 4.4 | I30: 1.6 | J30: =IF(G30="","",IF((G30*D30-1)>=Coeff!$B$5,Coeff!$B$3/Coeff!$B$4*(G30*D30-1)/(G30-1),0)) -> 0 | K30: =IF(I30="","",IF((I30*F30-1)>=Coeff!$B$5,Coeff!$B$3/Coeff!$B$4*(I30*F30-1)/(I30-1),0)) -> 0
A31: Greece Super League | B31: Pas Giannina | C31: Atromitos | D31: 0.492 | E31: 0.283 | F31: 0.225 | G31: 2.51 | H31: 3.1 | I31: 3.38 | J31: =IF(G31="","",IF((G31*D31-1)>=Coeff!$B$5,Coeff!$B$3/Coeff!$B$4*(G31*D31-1)/(G31-1),0)) -> 15.55761589 | K31: =IF(I31="","",IF((I31*F31-1)>=Coeff!$B$5,Coeff!$B$3/Coeff!$B$4*(I31*F31-1)/(I31-1),0)) -> 0
A32: Greece Super League | B32: Asteras Tripolis | C32: PAOK Thessaloniki FC | D32: 0.353 | E32: 0.307 | F32: 0.34 | G32: 2.6 | H32: 3.12 | I32: 3.25 | J32: =IF(G32="","",IF((G32*D32-1)>=Coeff!$B$5,Coeff!$B$3/Coeff!$B$4*(G32*D32-1)/(G32-1),0)) -> 0 | K32: =IF(I32="","",IF((I32*F32-1)>=Coeff!$B$5,Coeff!$B$3/Coeff!$B$4*(I32*F32-1)/(I32-1),0)) -> 4.666666667
A33: Greece Football League | B33: Olymp. Volou | C33: Iraklis | D33: 0.524 | E33: 0.283 | F33: 0.193 | J33: =IF(G33="","",IF((G33*D33-1)>=Coeff!$B$5,Coeff!$B$3/Coeff!$B$4*(G33*D33-1)/(G33-1),0)) ->  | K33: =IF(I33="","",IF((I33*F33-1)>=Coeff!$B$5,Coeff!$B$3/Coeff!$B$4*(I33*F33-1)/(I33-1),0)) -> 
A34: Greece Football League | B34: Pierikos FC | C34: Panaitolikos | D34: 0.231 | E34: 0.302 | F34: 0.468 | J34: =IF(G34="","",IF((G34*D34-1)>=Coeff!$B$5,Coeff!$B$3/Coeff!$B$4*(G34*D34-1)/(G34-1),0)) ->  | K34: =IF(I34="","",IF((I34*F34-1)>=Coeff!$B$5,Coeff!$B$3/Coeff!$B$4*(I34*F34-1)/(I34-1),0)) -> 
A35: Greece Football League | B35: Apollon Smirnis | C35: Ethnikos Gazoros F.C. | D35: 0.629 | E35: 0.237 | F35: 0.135 | J35: =IF(G35="","",IF((G35*D35-1)>=Coeff!$B$5,Coeff!$B$3/Coeff!$B$4*(G35*D35-1)/(G35-1),0)) ->  | K35: =IF(I35="","",IF((I35*F35-1)>=Coeff!$B$5,Coeff!$B$3/Coeff!$B$4*(I35*F35-1)/(I35-1),0)) -> 
A36: Greece Football League | B36: Anagennisi Giannitsa | C36: Kalloni Lekanopedio | D36: 0.132 | E36: 0.234 | F36: 0.633 | J36: =IF(G36="","",IF((G36*D36-1)>=Coeff!$B$5,Coeff!$B$3/Coeff!$B$4*(G36*D36-1)/(G36-1),0)) ->  | K36: =IF(I36="","",IF((I36*F36-1)>=Coeff!$B$5,Coeff!$B$3/Coeff!$B$4*(I36*F36-1)/(I36-1),0)) -> 
A37: Greece Football League | B37: Anagennisi Epanomi | C37: Kavala | D37: 0.145 | E37: 0.247 | F37: 0.608 | J37: =IF(G37="","",IF((G37*D37-1)>=Coeff!$B$5,Coeff!$B$3/Coeff!$B$4*(G37*D37-1)/(G37-1),0)) ->  | K37: =IF(I37="","",IF((I37*F37-1)>=Coeff!$B$5,Coeff!$B$3/Coeff!$B$4*(I37*F37-1)/(I37-1),0)) -> 
A38: Greece Football League | B38: Kalithea | C38: Fokikos | D38: 0.655 | E38: 0.223 | F38: 0.122 | J38: =IF(G38="","",IF((G38*D38-1)>=Coeff!$B$5,Coeff!$B$3/Coeff!$B$4*(G38*D38-1)/(G38-1),0)) ->  | K38: =IF(I38="","",IF((I38*F38-1)>=Coeff!$B$5,Coeff!$B$3/Coeff!$B$4*(I38*F38-1)/(I38-1),0)) -> 
A39: Greece Football League | B39: Iraklis Psachna FC | C39: Panachaiki | D39: 0.615 | E39: 0.244 | F39: 0.142 | J39: =IF(G39="","",IF((G39*D39-1)>=Coeff!$B$5,Coeff!$B$3/Coeff!$B$4*(G39*D39-1)/(G39-1),0)) ->  | K39: =IF(I39="","",IF((I39*F39-1)>=Coeff!$B$5,Coeff!$B$3/Coeff!$B$4*(I39*F39-1)/(I39-1),0)) -> 
A40: Greece Football League | B40: Panserraikos FC | C40: Vyzas | D40: 0.754 | E40: 0.167 | F40: 0.079 | J40: =IF(G40="","",IF((G40*D40-1)>=Coeff!$B$5,Coeff!$B$3/Coeff!$B$4*(G40*D40-1)/(G40-1),0)) ->  | K40: =IF(I40="","",IF((I40*F40-1)>=Coeff!$B$5,Coeff!$B$3/Coeff!$B$4*(I40*F40-1)/(I40-1),0)) -> 
A41: Greece Football League | B41: Doxa Dramas | C41: Larisa | D41: 0.433 | E41: 0.31 | F41: 0.256 | J41: =IF(G41="","",IF((G41*D41-1)>=Coeff!$B$5,Coeff!$B$3/Coeff!$B$4*(G41*D41-1)/(G41-1),0)) ->  | K41: =IF(I41="","",IF((I41*F41-1)>=Coeff!$B$5,Coeff!$B$3/Coeff!$B$4*(I41*F41-1)/(I41-1),0)) -> 
A42: Greece Football League | B42: Ergotelis | C42: Thrasyvoulos | D42: 0.781 | E42: 0.15 | F42: 0.069 | J42: =IF(G42="","",IF((G42*D42-1)>=Coeff!$B$5,Coeff!$B$3/Coeff!$B$4*(G42*D42-1)/(G42-1),0)) ->  | K42: =IF(I42="","",IF((I42*F42-1)>=Coeff!$B$5,Coeff!$B$3/Coeff!$B$4*(I42*F42-1)/(I42-1),0)) -> 
A43: Lithuania A Lyga | B43: FK Tauras Taurage | C43: Zalgiris Vilnius | D43: 0.027 | E43: 0.114 | F43: 0.859 | G43: 13 | H43: 7 | I43: 1.13 | J43: =IF(G43="","",IF((G43*D43-1)>=Coeff!$B$5,Coeff!$B$3/Coeff!$B$4*(G43*D43-1)/(G43-1),0)) -> 0 | K43: =IF(I43="","",IF((I43*F43-1)>=Coeff!$B$5,Coeff!$B$3/Coeff!$B$4*(I43*F43-1)/(I43-1),0)) -> 0
A44: Lithuania A Lyga | B44: Ekranas | C44: Banga Gargzdai | D44: 0.649 | E44: 0.268 | F44: 0.083 | G44: 1.33 | H44: 4.75 | I44: 6.5 | J44: =IF(G44="","",IF((G44*D44-1)>=Coeff!$B$5,Coeff!$B$3/Coeff!$B$4*(G44*D44-1)/(G44-1),0)) -> 0 | K44: =IF(I44="","",IF((I44*F44-1)>=Coeff!$B$5,Coeff!$B$3/Coeff!$B$4*(I44*F44-1)/(I44-1),0)) -> 0
A45: Norway 1. Division | B45: Kristiansund BK | C45: Hødd | D45: 0.488 | E45: 0.237 | F45: 0.275 | G45: 2.14 | H45: 3.67 | I45: 3.43 | J45: =IF(G45="","",IF((G45*D45-1)>=Coeff!$B$5,Coeff!$B$3/Coeff!$B$4*(G45*D45-1)/(G45-1),0)) -> 0 | K45: =IF(I45="","",IF((I45*F45-1)>=Coeff!$B$5,Coeff!$B$3/Coeff!$B$4*(I45*F45-1)/(I45-1),0)) -> 0
A46: Paraguay Apertura | B46: Sol de America | C46: General Diaz | D46: 0.355 | E46: 0.307 | F46: 0.338 | G46: 2.38 | H46: 3.25 | I46: 3 | J46: =IF(G46="","",IF((G46*D46-1)>=Coeff!$B$5,Coeff!$B$3/Coeff!$B$4*(G46*D46-1)/(G46-1),0)) -> 0 | K46: =IF(I46="","",IF((I46*F46-1)>=Coeff!$B$5,Coeff!$B$3/Coeff!$B$4*(I46*F46-1)/(I46-1),0)) -> 0
A47: Paraguay Apertura | B47: Nacional | C47: Deportivo Capiata | D47: 0.65 | E47: 0.218 | F47: 0.131 | G47: 1.4 | H47: 4.33 | I47: 8.5 | J47: =IF(G47="","",IF((G47*D47-1)>=Coeff!$B$5,Coeff!$B$3/Coeff!$B$4*(G47*D47-1)/(G47-1),0)) -> 0 | K47: =IF(I47="","",IF((I47*F47-1)>=Coeff!$B$5,Coeff!$B$3/Coeff!$B$4*(I47*F47-1)/(I47-1),0)) -> 1.513333333
A48: Paraguay Apertura | B48: Club Deportivo Carapegua | C48: Cerro Porteno PF | D48: 0.399 | E48: 0.303 | F48: 0.298 | G48: 2.1 | H48: 3.2 | I48: 3.1 | J48: =IF(G48="","",IF((G48*D48-1)>=Coeff!$B$5,Coeff!$B$3/Coeff!$B$4*(G48*D48-1)/(G48-1),0)) -> 0 | K48: =IF(I48="","",IF((I48*F48-1)>=Coeff!$B$5,Coeff!$B$3/Coeff!$B$4*(I48*F48-1)/(I48-1),0)) -> 0
A49: Poland 1. Division | B49: Kolejarz Stroze | C49: Okocimski KS Brzesko | D49: 0.562 | E49: 0.257 | F49: 0.181 | G49: 2.15 | H49: 3.2 | I49: 3.6 | J49: =IF(G49="","",IF((G49*D49-1)>=Coeff!$B$5,Coeff!$B$3/Coeff!$B$4*(G49*D49-1)/(G49-1),0)) -> 18.11304348 | K49: =IF(I49="","",IF((I49*F49-1)>=Coeff!$B$5,Coeff!$B$3/Coeff!$B$4*(I49*F49-1)/(I49-1),0)) -> 0
A50: Poland 1. Division | B50: Warta Poznan | C50: Stomil Olsztyn | D50: 0.301 | E50: 0.302 | F50: 0.397 | G50: 4.2 | H50: 3.3 | I50: 1.99 | J50: =IF(G50="","",IF((G50*D50-1)>=Coeff!$B$5,Coeff!$B$3/Coeff!$B$4*(G50*D50-1)/(G50-1),0)) -> 8.25625 | K50: =IF(I50="","",IF((I50*F50-1)>=Coeff!$B$5,Coeff!$B$3/Coeff!$B$4*(I50*F50-1)/(I50-1),0)) -> 0
A51: Poland 1. Division | B51: Olimpia Grudziadz | C51: Polonia Bytom | D51: 0.621 | E51: 0.232 | F51: 0.147 | G51: 1.57 | H51: 3.8 | I51: 6 | J51: =IF(G51="","",IF((G51*D51-1)>=Coeff!$B$5,Coeff!$B$3/Coeff!$B$4*(G51*D51-1)/(G51-1),0)) -> 0 | K51: =IF(I51="","",IF((I51*F51-1)>=Coeff!$B$5,Coeff!$B$3/Coeff!$B$4*(I51*F51-1)/(I51-1),0)) -> 0
A52: Poland 1. Division | B52: Flota Swinoujscie | C52: Sandecja Nowy Sacz | D52: 0.544 | E52: 0.264 | F52: 0.192 | G52: 1.73 | H52: 3.45 | I52: 5.25 | J52: =IF(G52="","",IF((G52*D52-1)>=Coeff!$B$5,Coeff!$B$3/Coeff!$B$4*(G52*D52-1)/(G52-1),0)) -> 0 | K52: =IF(I52="","",IF((I52*F52-1)>=Coeff!$B$5,Coeff!$B$3/Coeff!$B$4*(I52*F52-1)/(I52-1),0)) -> 0
A53: Serbia Super Liga | B53: FK Donji Srem | C53: Hajduk K. | D53: 0.243 | E53: 0.287 | F53: 0.47 | G53: 1.67 | H53: 3.6 | I53: 4.2 | J53: =IF(G53="","",IF((G53*D53-1)>=Coeff!$B$5,Coeff!$B$3/Coeff!$B$4*(G53*D53-1)/(G53-1),0)) -> 0 | K53: =IF(I53="","",IF((I53*F53-1)>=Coeff!$B$5,Coeff!$B$3/Coeff!$B$4*(I53*F53-1)/(I53-1),0)) -> 30.4375
A54: Serbia Super Liga | B54: BSK Borca | C54: Jagodina | D54: 0.319 | E54: 0.304 | F54: 0.377 | G54: 1.67 | H54: 3.5 | I54: 4.33 | J54: =IF(G54="","",IF((G54*D54-1)>=Coeff!$B$5,Coeff!$B$3/Coeff!$B$4*(G54*D54-1)/(G54-1),0)) -> 0 | K54: =IF(I54="","",IF((I54*F54-1)>=Coeff!$B$5,Coeff!$B$3/Coeff!$B$4*(I54*F54-1)/(I54-1),0)) -> 18.99129129
A55: Serbia Super Liga | B55: FK Spartak Zlatibor Voda | C55: OFK Beograd | D55: 0.44 | E55: 0.294 | F55: 0.265 | J55: =IF(G55="","",IF((G55*D55-1)>=Coeff!$B$5,Coeff!$B$3/Coeff!$B$4*(G55*D55-1)/(G55-1),0)) ->  | K55: =IF(I55="","",IF((I55*F55-1)>=Coeff!$B$5,Coeff!$B$3/Coeff!$B$4*(I55*F55-1)/(I55-1),0)) -> 
A56: Serbia Super Liga | B56: FC Smederevo | C56: Partizan Belgrad | D56: 0.063 | E56: 0.128 | F56: 0.809 | G56: 10 | H56: 5.5 | I56: 1.2 | J56: =IF(G56="","",IF((G56*D56-1)>=Coeff!$B$5,Coeff!$B$3/Coeff!$B$4*(G56*D56-1)/(G56-1),0)) -> 0 | K56: =IF(I56="","",IF((I56*F56-1)>=Coeff!$B$5,Coeff!$B$3/Coeff!$B$4*(I56*F56-1)/(I56-1),0)) -> 0
A57: Serbia Super Liga | B57: Novi Pazar | C57: Rad | D57: 0.299 | E57: 0.301 | F57: 0.399 | G57: 1.4 | H57: 4 | I57: 6.5 | J57: =IF(G57="","",IF((G57*D57-1)>=Coeff!$B$5,Coeff!$B$3/Coeff!$B$4*(G57*D57-1)/(G57-1),0)) -> 0 | K57: =IF(I57="","",IF((I57*F57-1)>=Coeff!$B$5,Coeff!$B$3/Coeff!$B$4*(I57*F57-1)/(I57-1),0)) -> 28.97272727
A58: Serbia Super Liga | B58: FK Radnicki 1923 | C58: Vojvodina | D58: 0.212 | E58: 0.274 | F58: 0.514 | G58: 1.57 | H58: 3.75 | I58: 4.75 | J58: =IF(G58="","",IF((G58*D58-1)>=Coeff!$B$5,Coeff!$B$3/Coeff!$B$4*(G58*D58-1)/(G58-1),0)) -> 0 | K58: =IF(I58="","",IF((I58*F58-1)>=Coeff!$B$5,Coeff!$B$3/Coeff!$B$4*(I58*F58-1)/(I58-1),0)) -> 38.44
A59: Serbia Super Liga | B59: Radnicki N. | C59: Javor | D59: 0.289 | E59: 0.3 | F59: 0.412 | G59: 1.91 | H59: 3.6 | I59: 3.2 | J59: =IF(G59="","",IF((G59*D59-1)>=Coeff!$B$5,Coeff!$B$3/Coeff!$B$4*(G59*D59-1)/(G59-1),0)) -> 0 | K59: =IF(I59="","",IF((I59*F59-1)>=Coeff!$B$5,Coeff!$B$3/Coeff!$B$4*(I59*F59-1)/(I59-1),0)) -> 14.47272727
A60: Serbia Super Liga | B60: Red Star Belgrad | C60: FK Sloboda Point Sevojno | D60: 0.632 | E60: 0.226 | F60: 0.142 | J60: =IF(G60="","",IF((G60*D60-1)>=Coeff!$B$5,Coeff!$B$3/Coeff!$B$4*(G60*D60-1)/(G60-1),0)) ->  | K60: =IF(I60="","",IF((I60*F60-1)>=Coeff!$B$5,Coeff!$B$3/Coeff!$B$4*(I60*F60-1)/(I60-1),0)) -> 
A61: Slovakia Corgon Liga | B61: Trencin | C61: Ruzomberok | D61: 0.433 | E61: 0.316 | F61: 0.25 | G61: 1.75 | H61: 3.4 | I61: 4.43 | J61: =IF(G61="","",IF((G61*D61-1)>=Coeff!$B$5,Coeff!$B$3/Coeff!$B$4*(G61*D61-1)/(G61-1),0)) -> 0 | K61: =IF(I61="","",IF((I61*F61-1)>=Coeff!$B$5,Coeff!$B$3/Coeff!$B$4*(I61*F61-1)/(I61-1),0)) -> 3.134110787
A62: Slovakia Corgon Liga | B62: Myjava | C62: Kosice | D62: 0.266 | E62: 0.321 | F62: 0.413 | G62: 2.3 | H62: 3.3 | I62: 3 | J62: =IF(G62="","",IF((G62*D62-1)>=Coeff!$B$5,Coeff!$B$3/Coeff!$B$4*(G62*D62-1)/(G62-1),0)) -> 0 | K62: =IF(I62="","",IF((I62*F62-1)>=Coeff!$B$5,Coeff!$B$3/Coeff!$B$4*(I62*F62-1)/(I62-1),0)) -> 11.95
A63: Slovakia Corgon Liga | B63: FK Senica | C63: Zlate Moravce | D63: 0.559 | E63: 0.273 | F63: 0.168 | G63: 1.44 | H63: 4 | I63: 7 | J63: =IF(G63="","",IF((G63*D63-1)>=Coeff!$B$5,Coeff!$B$3/Coeff!$B$4*(G63*D63-1)/(G63-1),0)) -> 0 | K63: =IF(I63="","",IF((I63*F63-1)>=Coeff!$B$5,Coeff!$B$3/Coeff!$B$4*(I63*F63-1)/(I63-1),0)) -> 2.933333333
A64: Slovakia Corgon Liga | B64: Zilina | C64: Presov | D64: 0.614 | E64: 0.248 | F64: 0.138 | G64: 2 | H64: 3.4 | I64: 3.55 | J64: =IF(G64="","",IF((G64*D64-1)>=Coeff!$B$5,Coeff!$B$3/Coeff!$B$4*(G64*D64-1)/(G64-1),0)) -> 22.8 | K64: =IF(I64="","",IF((I64*F64-1)>=Coeff!$B$5,Coeff!$B$3/Coeff!$B$4*(I64*F64-1)/(I64-1),0)) -> 0
A65: Slovakia Corgon Liga | B65: Trnava | C65: Banska Bystrica | D65: 0.611 | E65: 0.249 | F65: 0.14 | G65: 1.8 | H65: 3.5 | I65: 4.35 | J65: =IF(G65="","",IF((G65*D65-1)>=Coeff!$B$5,Coeff!$B$3/Coeff!$B$4*(G65*D65-1)/(G65-1),0)) -> 12.475 | K65: =IF(I65="","",IF((I65*F65-1)>=Coeff!$B$5,Coeff!$B$3/Coeff!$B$4*(I65*F65-1)/(I65-1),0)) -> 0
A66: Slovakia Corgon Liga | B66: Slovan Bratislava | C66: Nitra | D66: 0.561 | E66: 0.272 | F66: 0.167 | G66: 1.36 | H66: 4.5 | I66: 8 | J66: =IF(G66="","",IF((G66*D66-1)>=Coeff!$B$5,Coeff!$B$3/Coeff!$B$4*(G66*D66-1)/(G66-1),0)) -> 0 | K66: =IF(I66="","",IF((I66*F66-1)>=Coeff!$B$5,Coeff!$B$3/Coeff!$B$4*(I66*F66-1)/(I66-1),0)) -> 4.8
A67: Slovenia PrvaLiga | B67: Rudar Velenje | C67: Maribor | D67: 0.241 | E67: 0.223 | F67: 0.536 | G67: 5 | H67: 4 | I67: 1.67 | J67: =IF(G67="","",IF((G67*D67-1)>=Coeff!$B$5,Coeff!$B$3/Coeff!$B$4*(G67*D67-1)/(G67-1),0)) -> 5.125 | K67: =IF(I67="","",IF((I67*F67-1)>=Coeff!$B$5,Coeff!$B$3/Coeff!$B$4*(I67*F67-1)/(I67-1),0)) -> 0
A68: Slovenia PrvaLiga | B68: Koper | C68: Ol Ljubljana | D68: 0.519 | E68: 0.227 | F68: 0.253 | G68: 2.1 | H68: 3.6 | I68: 3.75 | J68: =IF(G68="","",IF((G68*D68-1)>=Coeff!$B$5,Coeff!$B$3/Coeff!$B$4*(G68*D68-1)/(G68-1),0)) -> 8.172727273 | K68: =IF(I68="","",IF((I68*F68-1)>=Coeff!$B$5,Coeff!$B$3/Coeff!$B$4*(I68*F68-1)/(I68-1),0)) -> 0
A69: Slovenia PrvaLiga | B69: Domzale | C69: Gorica | D69: 0.432 | E69: 0.243 | F69: 0.325 | G69: 1.6 | H69: 4.33 | I69: 5.5 | J69: =IF(G69="","",IF((G69*D69-1)>=Coeff!$B$5,Coeff!$B$3/Coeff!$B$4*(G69*D69-1)/(G69-1),0)) -> 0 | K69: =IF(I69="","",IF((I69*F69-1)>=Coeff!$B$5,Coeff!$B$3/Coeff!$B$4*(I69*F69-1)/(I69-1),0)) -> 17.5
A70: Slovenia PrvaLiga | B70: ND Triglav | C70: Mura | D70: 0.425 | E70: 0.243 | F70: 0.332 | J70: =IF(G70="","",IF((G70*D70-1)>=Coeff!$B$5,Coeff!$B$3/Coeff!$B$4*(G70*D70-1)/(G70-1),0)) ->  | K70: =IF(I70="","",IF((I70*F70-1)>=Coeff!$B$5,Coeff!$B$3/Coeff!$B$4*(I70*F70-1)/(I70-1),0)) -> 
A71: Slovenia PrvaLiga | B71: Aluminij | C71: MIK CM Celje | D71: 0.284 | E71: 0.236 | F71: 0.481 | G71: 1.91 | H71: 3.4 | I71: 3.6 | J71: =IF(G71="","",IF((G71*D71-1)>=Coeff!$B$5,Coeff!$B$3/Coeff!$B$4*(G71*D71-1)/(G71-1),0)) -> 0 | K71: =IF(I71="","",IF((I71*F71-1)>=Coeff!$B$5,Coeff!$B$3/Coeff!$B$4*(I71*F71-1)/(I71-1),0)) -> 28.13846154
A72: Sweden Allsvenskan | B72: Gefle | C72: IFK Gothenburg | D72: 0.252 | E72: 0.254 | F72: 0.494 | G72: 3.65 | H72: 3.46 | I72: 2.21 | J72: =IF(G72="","",IF((G72*D72-1)>=Coeff!$B$5,Coeff!$B$3/Coeff!$B$4*(G72*D72-1)/(G72-1),0)) -> 0 | K72: =IF(I72="","",IF((I72*F72-1)>=Coeff!$B$5,Coeff!$B$3/Coeff!$B$4*(I72*F72-1)/(I72-1),0)) -> 7.581818182
A73: Sweden Allsvenskan | B73: AIK | C73: Djurgaarden | D73: 0.686 | E73: 0.183 | F73: 0.131 | G73: 1.69 | H73: 3.95 | I73: 6 | J73: =IF(G73="","",IF((G73*D73-1)>=Coeff!$B$5,Coeff!$B$3/Coeff!$B$4*(G73*D73-1)/(G73-1),0)) -> 23.09275362 | K73: =IF(I73="","",IF((I73*F73-1)>=Coeff!$B$5,Coeff!$B$3/Coeff!$B$4*(I73*F73-1)/(I73-1),0)) -> 0
A74: Sweden Superettan | B74: Degerfors | C74: Ostersund | J74: =IF(G74="","",IF((G74*D74-1)>=Coeff!$B$5,Coeff!$B$3/Coeff!$B$4*(G74*D74-1)/(G74-1),0)) ->  | K74: =IF(I74="","",IF((I74*F74-1)>=Coeff!$B$5,Coeff!$B$3/Coeff!$B$4*(I74*F74-1)/(I74-1),0)) -> 
A75: Sweden Superettan | B75: Orebro | C75: Angelholm | D75: 0.572 | E75: 0.22 | F75: 0.208 | G75: 1.36 | H75: 5.35 | I75: 10.15 | J75: =IF(G75="","",IF((G75*D75-1)>=Coeff!$B$5,Coeff!$B$3/Coeff!$B$4*(G75*D75-1)/(G75-1),0)) -> 0 | K75: =IF(I75="","",IF((I75*F75-1)>=Coeff!$B$5,Coeff!$B$3/Coeff!$B$4*(I75*F75-1)/(I75-1),0)) -> 12.1442623
A76: Sweden Superettan | B76: Jonkoping S. | C76: IFK Varnamo | D76: 0.49 | E76: 0.243 | F76: 0.267 | G76: 1.71 | H76: 4.11 | I76: 5.13 | J76: =IF(G76="","",IF((G76*D76-1)>=Coeff!$B$5,Coeff!$B$3/Coeff!$B$4*(G76*D76-1)/(G76-1),0)) -> 0 | K76: =IF(I76="","",IF((I76*F76-1)>=Coeff!$B$5,Coeff!$B$3/Coeff!$B$4*(I76*F76-1)/(I76-1),0)) -> 8.951815981
A77: Switzerland Super League | B77: Servette | C77: Sion | D77: 0.526 | E77: 0.265 | F77: 0.209 | G77: 2.4 | H77: 3.53 | I77: 3.3 | J77: =IF(G77="","",IF((G77*D77-1)>=Coeff!$B$5,Coeff!$B$3/Coeff!$B$4*(G77*D77-1)/(G77-1),0)) -> 18.74285714 | K77: =IF(I77="","",IF((I77*F77-1)>=Coeff!$B$5,Coeff!$B$3/Coeff!$B$4*(I77*F77-1)/(I77-1),0)) -> 0
A78: Bolivia Apertura | B78: La Paz FC | C78: Nacional Potosi | D78: 0.565 | E78: 0.231 | F78: 0.203 | J78: =IF(G78="","",IF((G78*D78-1)>=Coeff!$B$5,Coeff!$B$3/Coeff!$B$4*(G78*D78-1)/(G78-1),0)) ->  | K78: =IF(I78="","",IF((I78*F78-1)>=Coeff!$B$5,Coeff!$B$3/Coeff!$B$4*(I78*F78-1)/(I78-1),0)) -> 
A79: Bolivia Apertura | B79: The Strongest | C79: Jorge Wilstermann | D79: 0.597 | E79: 0.22 | F79: 0.183 | J79: =IF(G79="","",IF((G79*D79-1)>=Coeff!$B$5,Coeff!$B$3/Coeff!$B$4*(G79*D79-1)/(G79-1),0)) ->  | K79: =IF(I79="","",IF((I79*F79-1)>=Coeff!$B$5,Coeff!$B$3/Coeff!$B$4*(I79*F79-1)/(I79-1),0)) -> 
A80: Paraguay Apertura | B80: Guarani | C80: Luqueno | D80: 0.572 | E80: 0.254 | F80: 0.174 | G80: 1.5 | H80: 3.75 | I80: 7.5 | J80: =IF(G80="","",IF((G80*D80-1)>=Coeff!$B$5,Coeff!$B$3/Coeff!$B$4*(G80*D80-1)/(G80-1),0)) -> 0 | K80: =IF(I80="","",IF((I80*F80-1)>=Coeff!$B$5,Coeff!$B$3/Coeff!$B$4*(I80*F80-1)/(I80-1),0)) -> 4.692307692
A81: Paraguay Apertura | B81: Cerro Porteno | C81: Libertad | D81: 0.293 | E81: 0.303 | F81: 0.404 | G81: 2.3 | H81: 3.25 | I81: 3.1 | J81: =IF(G81="","",IF((G81*D81-1)>=Coeff!$B$5,Coeff!$B$3/Coeff!$B$4*(G81*D81-1)/(G81-1),0)) -> 0 | K81: =IF(I81="","",IF((I81*F81-1)>=Coeff!$B$5,Coeff!$B$3/Coeff!$B$4*(I81*F81-1)/(I81-1),0)) -> 12.01904762
A82: Peru Primera División | B82: Juan Aurich | C82: Sport Huancayo | D82: 0.621 | E82: 0.213 | F82: 0.166 | G82: 1.67 | H82: 3.6 | I82: 4.2 | J82: =IF(G82="","",IF((G82*D82-1)>=Coeff!$B$5,Coeff!$B$3/Coeff!$B$4*(G82*D82-1)/(G82-1),0)) -> 0 | K82: =IF(I82="","",IF((I82*F82-1)>=Coeff!$B$5,Coeff!$B$3/Coeff!$B$4*(I82*F82-1)/(I82-1),0)) -> 0
J83: =IF(G83="","",IF((G83*D83-1)>=Coeff!$B$5,Coeff!$B$3/Coeff!$B$4*(G83*D83-1)/(G83-1),0)) ->  | K83: =IF(I83="","",IF((I83*F83-1)>=Coeff!$B$5,Coeff!$B$3/Coeff!$B$4*(I83*F83-1)/(I83-1),0)) -> 
J84: =IF(G84="","",IF((G84*D84-1)>=Coeff!$B$5,Coeff!$B$3/Coeff!$B$4*(G84*D84-1)/(G84-1),0)) ->  | K84: =IF(I84="","",IF((I84*F84-1)>=Coeff!$B$5,Coeff!$B$3/Coeff!$B$4*(I84*F84-1)/(I84-1),0)) -> 
J85: =IF(G85="","",IF((G85*D85-1)>=Coeff!$B$5,Coeff!$B$3/Coeff!$B$4*(G85*D85-1)/(G85-1),0)) ->  | K85: =IF(I85="","",IF((I85*F85-1)>=Coeff!$B$5,Coeff!$B$3/Coeff!$B$4*(I85*F85-1)/(I85-1),0)) -> 
J86: =IF(G86="","",IF((G86*D86-1)>=Coeff!$B$5,Coeff!$B$3/Coeff!$B$4*(G86*D86-1)/(G86-1),0)) ->  | K86: =IF(I86="","",IF((I86*F86-1)>=Coeff!$B$5,Coeff!$B$3/Coeff!$B$4*(I86*F86-1)/(I86-1),0)) -> 
J87: =IF(G87="","",IF((G87*D87-1)>=Coeff!$B$5,Coeff!$B$3/Coeff!$B$4*(G87*D87-1)/(G87-1),0)) ->  | K87: =IF(I87="","",IF((I87*F87-1)>=Coeff!$B$5,Coeff!$B$3/Coeff!$B$4*(I87*F87-1)/(I87-1),0)) -> 
J88: =IF(G88="","",IF((G88*D88-1)>=Coeff!$B$5,Coeff!$B$3/Coeff!$B$4*(G88*D88-1)/(G88-1),0)) ->  | K88: =IF(I88="","",IF((I88*F88-1)>=Coeff!$B$5,Coeff!$B$3/Coeff!$B$4*(I88*F88-1)/(I88-1),0)) -> 
J89: =IF(G89="","",IF((G89*D89-1)>=Coeff!$B$5,Coeff!$B$3/Coeff!$B$4*(G89*D89-1)/(G89-1),0)) ->  | K89: =IF(I89="","",IF((I89*F89-1)>=Coeff!$B$5,Coeff!$B$3/Coeff!$B$4*(I89*F89-1)/(I89-1),0)) -> 
J90: =IF(G90="","",IF((G90*D90-1)>=Coeff!$B$5,Coeff!$B$3/Coeff!$B$4*(G90*D90-1)/(G90-1),0)) ->  | K90: =IF(I90="","",IF((I90*F90-1)>=Coeff!$B$5,Coeff!$B$3/Coeff!$B$4*(I90*F90-1)/(I90-1),0)) -> 
J91: =IF(G91="","",IF((G91*D91-1)>=Coeff!$B$5,Coeff!$B$3/Coeff!$B$4*(G91*D91-1)/(G91-1),0)) ->  | K91: =IF(I91="","",IF((I91*F91-1)>=Coeff!$B$5,Coeff!$B$3/Coeff!$B$4*(I91*F91-1)/(I91-1),0)) -> 
J92: =IF(G92="","",IF((G92*D92-1)>=Coeff!$B$5,Coeff!$B$3/Coeff!$B$4*(G92*D92-1)/(G92-1),0)) ->  | K92: =IF(I92="","",IF((I92*F92-1)>=Coeff!$B$5,Coeff!$B$3/Coeff!$B$4*(I92*F92-1)/(I92-1),0)) -> 
J93: =IF(G93="","",IF((G93*D93-1)>=Coeff!$B$5,Coeff!$B$3/Coeff!$B$4*(G93*D93-1)/(G93-1),0)) ->  | K93: =IF(I93="","",IF((I93*F93-1)>=Coeff!$B$5,Coeff!$B$3/Coeff!$B$4*(I93*F93-1)/(I93-1),0)) -> 
J94: =IF(G94="","",IF((G94*D94-1)>=Coeff!$B$5,Coeff!$B$3/Coeff!$B$4*(G94*D94-1)/(G94-1),0)) ->  | K94: =IF(I94="","",IF((I94*F94-1)>=Coeff!$B$5,Coeff!$B$3/Coeff!$B$4*(I94*F94-1)/(I94-1),0)) -> 
J95: =IF(G95="","",IF((G95*D95-1)>=Coeff!$B$5,Coeff!$B$3/Coeff!$B$4*(G95*D95-1)/(G95-1),0)) ->  | K95: =IF(I95="","",IF((I95*F95-1)>=Coeff!$B$5,Coeff!$B$3/Coeff!$B$4*(I95*F95-1)/(I95-1),0)) -> 
J96: =IF(G96="","",IF((G96*D96-1)>=Coeff!$B$5,Coeff!$B$3/Coeff!$B$4*(G96*D96-1)/(G96-1),0)) ->  | K96: =IF(I96="","",IF((I96*F96-1)>=Coeff!$B$5,Coeff!$B$3/Coeff!$B$4*(I96*F96-1)/(I96-1),0)) -> 
J97: =IF(G97="","",IF((G97*D97-1)>=Coeff!$B$5,Coeff!$B$3/Coeff!$B$4*(G97*D97-1)/(G97-1),0)) ->  | K97: =IF(I97="","",IF((I97*F97-1)>=Coeff!$B$5,Coeff!$B$3/Coeff!$B$4*(I97*F97-1)/(I97-1),0)) -> 
J98: =IF(G98="","",IF((G98*D98-1)>=Coeff!$B$5,Coeff!$B$3/Coeff!$B$4*(G98*D98-1)/(G98-1),0)) ->  | K98: =IF(I98="","",IF((I98*F98-1)>=Coeff!$B$5,Coeff!$B$3/Coeff!$B$4*(I98*F98-1)/(I98-1),0)) -> 
J99: =IF(G99="","",IF((G99*D99-1)>=Coeff!$B$5,Coeff!$B$3/Coeff!$B$4*(G99*D99-1)/(G99-1),0)) ->  | K99: =IF(I99="","",IF((I99*F99-1)>=Coeff!$B$5,Coeff!$B$3/Coeff!$B$4*(I99*F99-1)/(I99-1),0)) -> 
J100: =IF(G100="","",IF((G100*D100-1)>=Coeff!$B$5,Coeff!$B$3/Coeff!$B$4*(G100*D100-1)/(G100-1),0)) ->  | K100: =IF(I100="","",IF((I100*F100-1)>=Coeff!$B$5,Coeff!$B$3/Coeff!$B$4*(I100*F100-1)/(I100-1),0)) -> 
J101: =IF(G101="","",IF((G101*D101-1)>=Coeff!$B$5,Coeff!$B$3/Coeff!$B$4*(G101*D101-1)/(G101-1),0)) ->  | K101: =IF(I101="","",IF((I101*F101-1)>=Coeff!$B$5,Coeff!$B$3/Coeff!$B$4*(I101*F101-1)/(I101-1),0)) -> 
J102: =IF(G102="","",IF((G102*D102-1)>=Coeff!$B$5,Coeff!$B$3/Coeff!$B$4*(G102*D102-1)/(G102-1),0)) ->  | K102: =IF(I102="","",IF((I102*F102-1)>=Coeff!$B$5,Coeff!$B$3/Coeff!$B$4*(I102*F102-1)/(I102-1),0)) -> 
J103: =IF(G103="","",IF((G103*D103-1)>=Coeff!$B$5,Coeff!$B$3/Coeff!$B$4*(G103*D103-1)/(G103-1),0)) ->  | K103: =IF(I103="","",IF((I103*F103-1)>=Coeff!$B$5,Coeff!$B$3/Coeff!$B$4*(I103*F103-1)/(I103-1),0)) -> 
J104: =IF(G104="","",IF((G104*D104-1)>=Coeff!$B$5,Coeff!$B$3/Coeff!$B$4*(G104*D104-1)/(G104-1),0)) ->  | K104: =IF(I104="","",IF((I104*F104-1)>=Coeff!$B$5,Coeff!$B$3/Coeff!$B$4*(I104*F104-1)/(I104-1),0)) -> 
J105: =IF(G105="","",IF((G105*D105-1)>=Coeff!$B$5,Coeff!$B$3/Coeff!$B$4*(G105*D105-1)/(G105-1),0)) ->  | K105: =IF(I105="","",IF((I105*F105-1)>=Coeff!$B$5,Coeff!$B$3/Coeff!$B$4*(I105*F105-1)/(I105-1),0)) -> 
J106: =IF(G106="","",IF((G106*D106-1)>=Coeff!$B$5,Coeff!$B$3/Coeff!$B$4*(G106*D106-1)/(G106-1),0)) ->  | K106: =IF(I106="","",IF((I106*F106-1)>=Coeff!$B$5,Coeff!$B$3/Coeff!$B$4*(I106*F106-1)/(I106-1),0)) -> 
J107: =IF(G107="","",IF((G107*D107-1)>=Coeff!$B$5,Coeff!$B$3/Coeff!$B$4*(G107*D107-1)/(G107-1),0)) ->  | K107: =IF(I107="","",IF((I107*F107-1)>=Coeff!$B$5,Coeff!$B$3/Coeff!$B$4*(I107*F107-1)/(I107-1),0)) -> 
J108: =IF(G108="","",IF((G108*D108-1)>=Coeff!$B$5,Coeff!$B$3/Coeff!$B$4*(G108*D108-1)/(G108-1),0)) ->  | K108: =IF(I108="","",IF((I108*F108-1)>=Coeff!$B$5,Coeff!$B$3/Coeff!$B$4*(I108*F108-1)/(I108-1),0)) -> 
J109: =IF(G109="","",IF((G109*D109-1)>=Coeff!$B$5,Coeff!$B$3/Coeff!$B$4*(G109*D109-1)/(G109-1),0)) ->  | K109: =IF(I109="","",IF((I109*F109-1)>=Coeff!$B$5,Coeff!$B$3/Coeff!$B$4*(I109*F109-1)/(I109-1),0)) -> 
J110: =IF(G110="","",IF((G110*D110-1)>=Coeff!$B$5,Coeff!$B$3/Coeff!$B$4*(G110*D110-1)/(G110-1),0)) ->  | K110: =IF(I110="","",IF((I110*F110-1)>=Coeff!$B$5,Coeff!$B$3/Coeff!$B$4*(I110*F110-1)/(I110-1),0)) -> 
J111: =IF(G111="","",IF((G111*D111-1)>=Coeff!$B$5,Coeff!$B$3/Coeff!$B$4*(G111*D111-1)/(G111-1),0)) ->  | K111: =IF(I111="","",IF((I111*F111-1)>=Coeff!$B$5,Coeff!$B$3/Coeff!$B$4*(I111*F111-1)/(I111-1),0)) -> 
J112: =IF(G112="","",IF((G112*D112-1)>=Coeff!$B$5,Coeff!$B$3/Coeff!$B$4*(G112*D112-1)/(G112-1),0)) ->  | K112: =IF(I112="","",IF((I112*F112-1)>=Coeff!$B$5,Coeff!$B$3/Coeff!$B$4*(I112*F112-1)/(I112-1),0)) -> 
J113: =IF(G113="","",IF((G113*D113-1)>=Coeff!$B$5,Coeff!$B$3/Coeff!$B$4*(G113*D113-1)/(G113-1),0)) ->  | K113: =IF(I113="","",IF((I113*F113-1)>=Coeff!$B$5,Coeff!$B$3/Coeff!$B$4*(I113*F113-1)/(I113-1),0)) -> 
J114: =IF(G114="","",IF((G114*D114-1)>=Coeff!$B$5,Coeff!$B$3/Coeff!$B$4*(G114*D114-1)/(G114-1),0)) ->  | K114: =IF(I114="","",IF((I114*F114-1)>=Coeff!$B$5,Coeff!$B$3/Coeff!$B$4*(I114*F114-1)/(I114-1),0)) -> 
J115: =IF(G115="","",IF((G115*D115-1)>=Coeff!$B$5,Coeff!$B$3/Coeff!$B$4*(G115*D115-1)/(G115-1),0)) ->  | K115: =IF(I115="","",IF((I115*F115-1)>=Coeff!$B$5,Coeff!$B$3/Coeff!$B$4*(I115*F115-1)/(I115-1),0)) -> 
J116: =IF(G116="","",IF((G116*D116-1)>=Coeff!$B$5,Coeff!$B$3/Coeff!$B$4*(G116*D116-1)/(G116-1),0)) ->  | K116: =IF(I116="","",IF((I116*F116-1)>=Coeff!$B$5,Coeff!$B$3/Coeff!$B$4*(I116*F116-1)/(I116-1),0)) -> 
J117: =IF(G117="","",IF((G117*D117-1)>=Coeff!$B$5,Coeff!$B$3/Coeff!$B$4*(G117*D117-1)/(G117-1),0)) ->  | K117: =IF(I117="","",IF((I117*F117-1)>=Coeff!$B$5,Coeff!$B$3/Coeff!$B$4*(I117*F117-1)/(I117-1),0)) -> 
J118: =IF(G118="","",IF((G118*D118-1)>=Coeff!$B$5,Coeff!$B$3/Coeff!$B$4*(G118*D118-1)/(G118-1),0)) ->  | K118: =IF(I118="","",IF((I118*F118-1)>=Coeff!$B$5,Coeff!$B$3/Coeff!$B$4*(I118*F118-1)/(I118-1),0)) -> 
J119: =IF(G119="","",IF((G119*D119-1)>=Coeff!$B$5,Coeff!$B$3/Coeff!$B$4*(G119*D119-1)/(G119-1),0)) ->  | K119: =IF(I119="","",IF((I119*F119-1)>=Coeff!$B$5,Coeff!$B$3/Coeff!$B$4*(I119*F119-1)/(I119-1),0)) -> 
J120: =IF(G120="","",IF((G120*D120-1)>=Coeff!$B$5,Coeff!$B$3/Coeff!$B$4*(G120*D120-1)/(G120-1),0)) ->  | K120: =IF(I120="","",IF((I120*F120-1)>=Coeff!$B$5,Coeff!$B$3/Coeff!$B$4*(I120*F120-1)/(I120-1),0)) -> 
J121: =IF(G121="","",IF((G121*D121-1)>=Coeff!$B$5,Coeff!$B$3/Coeff!$B$4*(G121*D121-1)/(G121-1),0)) ->  | K121: =IF(I121="","",IF((I121*F121-1)>=Coeff!$B$5,Coeff!$B$3/Coeff!$B$4*(I121*F121-1)/(I121-1),0)) -> 
J122: =IF(G122="","",IF((G122*D122-1)>=Coeff!$B$5,Coeff!$B$3/Coeff!$B$4*(G122*D122-1)/(G122-1),0)) ->  | K122: =IF(I122="","",IF((I122*F122-1)>=Coeff!$B$5,Coeff!$B$3/Coeff!$B$4*(I122*F122-1)/(I122-1),0)) -> 
J123: =IF(G123="","",IF((G123*D123-1)>=Coeff!$B$5,Coeff!$B$3/Coeff!$B$4*(G123*D123-1)/(G123-1),0)) ->  | K123: =IF(I123="","",IF((I123*F123-1)>=Coeff!$B$5,Coeff!$B$3/Coeff!$B$4*(I123*F123-1)/(I123-1),0)) -> 
J124: =IF(G124="","",IF((G124*D124-1)>=Coeff!$B$5,Coeff!$B$3/Coeff!$B$4*(G124*D124-1)/(G124-1),0)) ->  | K124: =IF(I124="","",IF((I124*F124-1)>=Coeff!$B$5,Coeff!$B$3/Coeff!$B$4*(I124*F124-1)/(I124-1),0)) -> 
J125: =IF(G125="","",IF((G125*D125-1)>=Coeff!$B$5,Coeff!$B$3/Coeff!$B$4*(G125*D125-1)/(G125-1),0)) ->  | K125: =IF(I125="","",IF((I125*F125-1)>=Coeff!$B$5,Coeff!$B$3/Coeff!$B$4*(I125*F125-1)/(I125-1),0)) -> 
J126: =IF(G126="","",IF((G126*D126-1)>=Coeff!$B$5,Coeff!$B$3/Coeff!$B$4*(G126*D126-1)/(G126-1),0)) ->  | K126: =IF(I126="","",IF((I126*F126-1)>=Coeff!$B$5,Coeff!$B$3/Coeff!$B$4*(I126*F126-1)/(I126-1),0)) -> 
J127: =IF(G127="","",IF((G127*D127-1)>=Coeff!$B$5,Coeff!$B$3/Coeff!$B$4*(G127*D127-1)/(G127-1),0)) ->  | K127: =IF(I127="","",IF((I127*F127-1)>=Coeff!$B$5,Coeff!$B$3/Coeff!$B$4*(I127*F127-1)/(I127-1),0)) -> 
J128: =IF(G128="","",IF((G128*D128-1)>=Coeff!$B$5,Coeff!$B$3/Coeff!$B$4*(G128*D128-1)/(G128-1),0)) ->  | K128: =IF(I128="","",IF((I128*F128-1)>=Coeff!$B$5,Coeff!$B$3/Coeff!$B$4*(I128*F128-1)/(I128-1),0)) -> 
J129: =IF(G129="","",IF((G129*D129-1)>=Coeff!$B$5,Coeff!$B$3/Coeff!$B$4*(G129*D129-1)/(G129-1),0)) ->  | K129: =IF(I129="","",IF((I129*F129-1)>=Coeff!$B$5,Coeff!$B$3/Coeff!$B$4*(I129*F129-1)/(I129-1),0)) -> 
J130: =IF(G130="","",IF((G130*D130-1)>=Coeff!$B$5,Coeff!$B$3/Coeff!$B$4*(G130*D130-1)/(G130-1),0)) ->  | K130: =IF(I130="","",IF((I130*F130-1)>=Coeff!$B$5,Coeff!$B$3/Coeff!$B$4*(I130*F130-1)/(I130-1),0)) -> 
J131: =IF(G131="","",IF((G131*D131-1)>=Coeff!$B$5,Coeff!$B$3/Coeff!$B$4*(G131*D131-1)/(G131-1),0)) ->  | K131: =IF(I131="","",IF((I131*F131-1)>=Coeff!$B$5,Coeff!$B$3/Coeff!$B$4*(I131*F131-1)/(I131-1),0)) -> 
J132: =IF(G132="","",IF((G132*D132-1)>=Coeff!$B$5,Coeff!$B$3/Coeff!$B$4*(G132*D132-1)/(G132-1),0)) ->  | K132: =IF(I132="","",IF((I132*F132-1)>=Coeff!$B$5,Coeff!$B$3/Coeff!$B$4*(I132*F132-1)/(I132-1),0)) -> 
J133: =IF(G133="","",IF((G133*D133-1)>=Coeff!$B$5,Coeff!$B$3/Coeff!$B$4*(G133*D133-1)/(G133-1),0)) ->  | K133: =IF(I133="","",IF((I133*F133-1)>=Coeff!$B$5,Coeff!$B$3/Coeff!$B$4*(I133*F133-1)/(I133-1),0)) -> 
J134: =IF(G134="","",IF((G134*D134-1)>=Coeff!$B$5,Coeff!$B$3/Coeff!$B$4*(G134*D134-1)/(G134-1),0)) ->  | K134: =IF(I134="","",IF((I134*F134-1)>=Coeff!$B$5,Coeff!$B$3/Coeff!$B$4*(I134*F134-1)/(I134-1),0)) -> 
J135: =IF(G135="","",IF((G135*D135-1)>=Coeff!$B$5,Coeff!$B$3/Coeff!$B$4*(G135*D135-1)/(G135-1),0)) ->  | K135: =IF(I135="","",IF((I135*F135-1)>=Coeff!$B$5,Coeff!$B$3/Coeff!$B$4*(I135*F135-1)/(I135-1),0)) -> 
J136: =IF(G136="","",IF((G136*D136-1)>=Coeff!$B$5,Coeff!$B$3/Coeff!$B$4*(G136*D136-1)/(G136-1),0)) ->  | K136: =IF(I136="","",IF((I136*F136-1)>=Coeff!$B$5,Coeff!$B$3/Coeff!$B$4*(I136*F136-1)/(I136-1),0)) -> 
J137: =IF(G137="","",IF((G137*D137-1)>=Coeff!$B$5,Coeff!$B$3/Coeff!$B$4*(G137*D137-1)/(G137-1),0)) ->  | K137: =IF(I137="","",IF((I137*F137-1)>=Coeff!$B$5,Coeff!$B$3/Coeff!$B$4*(I137*F137-1)/(I137-1),0)) -> 
J138: =IF(G138="","",IF((G138*D138-1)>=Coeff!$B$5,Coeff!$B$3/Coeff!$B$4*(G138*D138-1)/(G138-1),0)) ->  | K138: =IF(I138="","",IF((I138*F138-1)>=Coeff!$B$5,Coeff!$B$3/Coeff!$B$4*(I138*F138-1)/(I138-1),0)) -> 
J139: =IF(G139="","",IF((G139*D139-1)>=Coeff!$B$5,Coeff!$B$3/Coeff!$B$4*(G139*D139-1)/(G139-1),0)) ->  | K139: =IF(I139="","",IF((I139*F139-1)>=Coeff!$B$5,Coeff!$B$3/Coeff!$B$4*(I139*F139-1)/(I139-1),0)) -> 
J140: =IF(G140="","",IF((G140*D140-1)>=Coeff!$B$5,Coeff!$B$3/Coeff!$B$4*(G140*D140-1)/(G140-1),0)) ->  | K140: =IF(I140="","",IF((I140*F140-1)>=Coeff!$B$5,Coeff!$B$3/Coeff!$B$4*(I140*F140-1)/(I140-1),0)) -> 
J141: =IF(G141="","",IF((G141*D141-1)>=Coeff!$B$5,Coeff!$B$3/Coeff!$B$4*(G141*D141-1)/(G141-1),0)) ->  | K141: =IF(I141="","",IF((I141*F141-1)>=Coeff!$B$5,Coeff!$B$3/Coeff!$B$4*(I141*F141-1)/(I141-1),0)) -> 
J142: =IF(G142="","",IF((G142*D142-1)>=Coeff!$B$5,Coeff!$B$3/Coeff!$B$4*(G142*D142-1)/(G142-1),0)) ->  | K142: =IF(I142="","",IF((I142*F142-1)>=Coeff!$B$5,Coeff!$B$3/Coeff!$B$4*(I142*F142-1)/(I142-1),0)) -> 
J143: =IF(G143="","",IF((G143*D143-1)>=Coeff!$B$5,Coeff!$B$3/Coeff!$B$4*(G143*D143-1)/(G143-1),0)) ->  | K143: =IF(I143="","",IF((I143*F143-1)>=Coeff!$B$5,Coeff!$B$3/Coeff!$B$4*(I143*F143-1)/(I143-1),0)) -> 
J144: =IF(G144="","",IF((G144*D144-1)>=Coeff!$B$5,Coeff!$B$3/Coeff!$B$4*(G144*D144-1)/(G144-1),0)) ->  | K144: =IF(I144="","",IF((I144*F144-1)>=Coeff!$B$5,Coeff!$B$3/Coeff!$B$4*(I144*F144-1)/(I144-1),0)) -> 
J145: =IF(G145="","",IF((G145*D145-1)>=Coeff!$B$5,Coeff!$B$3/Coeff!$B$4*(G145*D145-1)/(G145-1),0)) ->  | K145: =IF(I145="","",IF((I145*F145-1)>=Coeff!$B$5,Coeff!$B$3/Coeff!$B$4*(I145*F145-1)/(I145-1),0)) -> 
J146: =IF(G146="","",IF((G146*D146-1)>=Coeff!$B$5,Coeff!$B$3/Coeff!$B$4*(G146*D146-1)/(G146-1),0)) ->  | K146: =IF(I146="","",IF((I146*F146-1)>=Coeff!$B$5,Coeff!$B$3/Coeff!$B$4*(I146*F146-1)/(I146-1),0)) -> 
J147: =IF(G147="","",IF((G147*D147-1)>=Coeff!$B$5,Coeff!$B$3/Coeff!$B$4*(G147*D147-1)/(G147-1),0)) ->  | K147: =IF(I147="","",IF((I147*F147-1)>=Coeff!$B$5,Coeff!$B$3/Coeff!$B$4*(I147*F147-1)/(I147-1),0)) -> 
J148: =IF(G148="","",IF((G148*D148-1)>=Coeff!$B$5,Coeff!$B$3/Coeff!$B$4*(G148*D148-1)/(G148-1),0)) ->  | K148: =IF(I148="","",IF((I148*F148-1)>=Coeff!$B$5,Coeff!$B$3/Coeff!$B$4*(I148*F148-1)/(I148-1),0)) -> 
J149: =IF(G149="","",IF((G149*D149-1)>=Coeff!$B$5,Coeff!$B$3/Coeff!$B$4*(G149*D149-1)/(G149-1),0)) ->  | K149: =IF(I149="","",IF((I149*F149-1)>=Coeff!$B$5,Coeff!$B$3/Coeff!$B$4*(I149*F149-1)/(I149-1),0)) -> 
J150: =IF(G150="","",IF((G150*D150-1)>=Coeff!$B$5,Coeff!$B$3/Coeff!$B$4*(G150*D150-1)/(G150-1),0)) ->  | K150: =IF(I150="","",IF((I150*F150-1)>=Coeff!$B$5,Coeff!$B$3/Coeff!$B$4*(I150*F150-1)/(I150-1),0)) -> 
J151: =IF(G151="","",IF((G151*D151-1)>=Coeff!$B$5,Coeff!$B$3/Coeff!$B$4*(G151*D151-1)/(G151-1),0)) ->  | K151: =IF(I151="","",IF((I151*F151-1)>=Coeff!$B$5,Coeff!$B$3/Coeff!$B$4*(I151*F151-1)/(I151-1),0)) -> 
J152: =IF(G152="","",IF((G152*D152-1)>=Coeff!$B$5,Coeff!$B$3/Coeff!$B$4*(G152*D152-1)/(G152-1),0)) ->  | K152: =IF(I152="","",IF((I152*F152-1)>=Coeff!$B$5,Coeff!$B$3/Coeff!$B$4*(I152*F152-1)/(I152-1),0)) -> 
J153: =IF(G153="","",IF((G153*D153-1)>=Coeff!$B$5,Coeff!$B$3/Coeff!$B$4*(G153*D153-1)/(G153-1),0)) ->  | K153: =IF(I153="","",IF((I153*F153-1)>=Coeff!$B$5,Coeff!$B$3/Coeff!$B$4*(I153*F153-1)/(I153-1),0)) -> 
J154: =IF(G154="","",IF((G154*D154-1)>=Coeff!$B$5,Coeff!$B$3/Coeff!$B$4*(G154*D154-1)/(G154-1),0)) ->  | K154: =IF(I154="","",IF((I154*F154-1)>=Coeff!$B$5,Coeff!$B$3/Coeff!$B$4*(I154*F154-1)/(I154-1),0)) -> 
J155: =IF(G155="","",IF((G155*D155-1)>=Coeff!$B$5,Coeff!$B$3/Coeff!$B$4*(G155*D155-1)/(G155-1),0)) ->  | K155: =IF(I155="","",IF((I155*F155-1)>=Coeff!$B$5,Coeff!$B$3/Coeff!$B$4*(I155*F155-1)/(I155-1),0)) -> 
J156: =IF(G156="","",IF((G156*D156-1)>=Coeff!$B$5,Coeff!$B$3/Coeff!$B$4*(G156*D156-1)/(G156-1),0)) ->  | K156: =IF(I156="","",IF((I156*F156-1)>=Coeff!$B$5,Coeff!$B$3/Coeff!$B$4*(I156*F156-1)/(I156-1),0)) -> 
J157: =IF(G157="","",IF((G157*D157-1)>=Coeff!$B$5,Coeff!$B$3/Coeff!$B$4*(G157*D157-1)/(G157-1),0)) ->  | K157: =IF(I157="","",IF((I157*F157-1)>=Coeff!$B$5,Coeff!$B$3/Coeff!$B$4*(I157*F157-1)/(I157-1),0)) -> 
J158: =IF(G158="","",IF((G158*D158-1)>=Coeff!$B$5,Coeff!$B$3/Coeff!$B$4*(G158*D158-1)/(G158-1),0)) ->  | K158: =IF(I158="","",IF((I158*F158-1)>=Coeff!$B$5,Coeff!$B$3/Coeff!$B$4*(I158*F158-1)/(I158-1),0)) -> 
J159: =IF(G159="","",IF((G159*D159-1)>=Coeff!$B$5,Coeff!$B$3/Coeff!$B$4*(G159*D159-1)/(G159-1),0)) ->  | K159: =IF(I159="","",IF((I159*F159-1)>=Coeff!$B$5,Coeff!$B$3/Coeff!$B$4*(I159*F159-1)/(I159-1),0)) -> 
J160: =IF(G160="","",IF((G160*D160-1)>=Coeff!$B$5,Coeff!$B$3/Coeff!$B$4*(G160*D160-1)/(G160-1),0)) ->  | K160: =IF(I160="","",IF((I160*F160-1)>=Coeff!$B$5,Coeff!$B$3/Coeff!$B$4*(I160*F160-1)/(I160-1),0)) -> 
J161: =IF(G161="","",IF((G161*D161-1)>=Coeff!$B$5,Coeff!$B$3/Coeff!$B$4*(G161*D161-1)/(G161-1),0)) ->  | K161: =IF(I161="","",IF((I161*F161-1)>=Coeff!$B$5,Coeff!$B$3/Coeff!$B$4*(I161*F161-1)/(I161-1),0)) -> 
J162: =IF(G162="","",IF((G162*D162-1)>=Coeff!$B$5,Coeff!$B$3/Coeff!$B$4*(G162*D162-1)/(G162-1),0)) ->  | K162: =IF(I162="","",IF((I162*F162-1)>=Coeff!$B$5,Coeff!$B$3/Coeff!$B$4*(I162*F162-1)/(I162-1),0)) -> 
J163: =IF(G163="","",IF((G163*D163-1)>=Coeff!$B$5,Coeff!$B$3/Coeff!$B$4*(G163*D163-1)/(G163-1),0)) ->  | K163: =IF(I163="","",IF((I163*F163-1)>=Coeff!$B$5,Coeff!$B$3/Coeff!$B$4*(I163*F163-1)/(I163-1),0)) -> 
J164: =IF(G164="","",IF((G164*D164-1)>=Coeff!$B$5,Coeff!$B$3/Coeff!$B$4*(G164*D164-1)/(G164-1),0)) ->  | K164: =IF(I164="","",IF((I164*F164-1)>=Coeff!$B$5,Coeff!$B$3/Coeff!$B$4*(I164*F164-1)/(I164-1),0)) -> 
J165: =IF(G165="","",IF((G165*D165-1)>=Coeff!$B$5,Coeff!$B$3/Coeff!$B$4*(G165*D165-1)/(G165-1),0)) ->  | K165: =IF(I165="","",IF((I165*F165-1)>=Coeff!$B$5,Coeff!$B$3/Coeff!$B$4*(I165*F165-1)/(I165-1),0)) -> 
J166: =IF(G166="","",IF((G166*D166-1)>=Coeff!$B$5,Coeff!$B$3/Coeff!$B$4*(G166*D166-1)/(G166-1),0)) ->  | K166: =IF(I166="","",IF((I166*F166-1)>=Coeff!$B$5,Coeff!$B$3/Coeff!$B$4*(I166*F166-1)/(I166-1),0)) -> 
J167: =IF(G167="","",IF((G167*D167-1)>=Coeff!$B$5,Coeff!$B$3/Coeff!$B$4*(G167*D167-1)/(G167-1),0)) ->  | K167: =IF(I167="","",IF((I167*F167-1)>=Coeff!$B$5,Coeff!$B$3/Coeff!$B$4*(I167*F167-1)/(I167-1),0)) -> 
J168: =IF(G168="","",IF((G168*D168-1)>=Coeff!$B$5,Coeff!$B$3/Coeff!$B$4*(G168*D168-1)/(G168-1),0)) ->  | K168: =IF(I168="","",IF((I168*F168-1)>=Coeff!$B$5,Coeff!$B$3/Coeff!$B$4*(I168*F168-1)/(I168-1),0)) -> 
J169: =IF(G169="","",IF((G169*D169-1)>=Coeff!$B$5,Coeff!$B$3/Coeff!$B$4*(G169*D169-1)/(G169-1),0)) ->  | K169: =IF(I169="","",IF((I169*F169-1)>=Coeff!$B$5,Coeff!$B$3/Coeff!$B$4*(I169*F169-1)/(I169-1),0)) -> 
J170: =IF(G170="","",IF((G170*D170-1)>=Coeff!$B$5,Coeff!$B$3/Coeff!$B$4*(G170*D170-1)/(G170-1),0)) ->  | K170: =IF(I170="","",IF((I170*F170-1)>=Coeff!$B$5,Coeff!$B$3/Coeff!$B$4*(I170*F170-1)/(I170-1),0)) -> 
J171: =IF(G171="","",IF((G171*D171-1)>=Coeff!$B$5,Coeff!$B$3/Coeff!$B$4*(G171*D171-1)/(G171-1),0)) ->  | K171: =IF(I171="","",IF((I171*F171-1)>=Coeff!$B$5,Coeff!$B$3/Coeff!$B$4*(I171*F171-1)/(I171-1),0)) -> 
J172: =IF(G172="","",IF((G172*D172-1)>=Coeff!$B$5,Coeff!$B$3/Coeff!$B$4*(G172*D172-1)/(G172-1),0)) ->  | K172: =IF(I172="","",IF((I172*F172-1)>=Coeff!$B$5,Coeff!$B$3/Coeff!$B$4*(I172*F172-1)/(I172-1),0)) -> 
J173: =IF(G173="","",IF((G173*D173-1)>=Coeff!$B$5,Coeff!$B$3/Coeff!$B$4*(G173*D173-1)/(G173-1),0)) ->  | K173: =IF(I173="","",IF((I173*F173-1)>=Coeff!$B$5,Coeff!$B$3/Coeff!$B$4*(I173*F173-1)/(I173-1),0)) -> 
J174: =IF(G174="","",IF((G174*D174-1)>=Coeff!$B$5,Coeff!$B$3/Coeff!$B$4*(G174*D174-1)/(G174-1),0)) ->  | K174: =IF(I174="","",IF((I174*F174-1)>=Coeff!$B$5,Coeff!$B$3/Coeff!$B$4*(I174*F174-1)/(I174-1),0)) -> 
J175: =IF(G175="","",IF((G175*D175-1)>=Coeff!$B$5,Coeff!$B$3/Coeff!$B$4*(G175*D175-1)/(G175-1),0)) ->  | K175: =IF(I175="","",IF((I175*F175-1)>=Coeff!$B$5,Coeff!$B$3/Coeff!$B$4*(I175*F175-1)/(I175-1),0)) -> 
J176: =IF(G176="","",IF((G176*D176-1)>=Coeff!$B$5,Coeff!$B$3/Coeff!$B$4*(G176*D176-1)/(G176-1),0)) ->  | K176: =IF(I176="","",IF((I176*F176-1)>=Coeff!$B$5,Coeff!$B$3/Coeff!$B$4*(I176*F176-1)/(I176-1),0)) -> 
J177: =IF(G177="","",IF((G177*D177-1)>=Coeff!$B$5,Coeff!$B$3/Coeff!$B$4*(G177*D177-1)/(G177-1),0)) ->  | K177: =IF(I177="","",IF((I177*F177-1)>=Coeff!$B$5,Coeff!$B$3/Coeff!$B$4*(I177*F177-1)/(I177-1),0)) -> 
J178: =IF(G178="","",IF((G178*D178-1)>=Coeff!$B$5,Coeff!$B$3/Coeff!$B$4*(G178*D178-1)/(G178-1),0)) ->  | K178: =IF(I178="","",IF((I178*F178-1)>=Coeff!$B$5,Coeff!$B$3/Coeff!$B$4*(I178*F178-1)/(I178-1),0)) -> 
J179: =IF(G179="","",IF((G179*D179-1)>=Coeff!$B$5,Coeff!$B$3/Coeff!$B$4*(G179*D179-1)/(G179-1),0)) ->  | K179: =IF(I179="","",IF((I179*F179-1)>=Coeff!$B$5,Coeff!$B$3/Coeff!$B$4*(I179*F179-1)/(I179-1),0)) -> 
J180: =IF(G180="","",IF((G180*D180-1)>=Coeff!$B$5,Coeff!$B$3/Coeff!$B$4*(G180*D180-1)/(G180-1),0)) ->  | K180: =IF(I180="","",IF((I180*F180-1)>=Coeff!$B$5,Coeff!$B$3/Coeff!$B$4*(I180*F180-1)/(I180-1),0)) -> 
J181: =IF(G181="","",IF((G181*D181-1)>=Coeff!$B$5,Coeff!$B$3/Coeff!$B$4*(G181*D181-1)/(G181-1),0)) ->  | K181: =IF(I181="","",IF((I181*F181-1)>=Coeff!$B$5,Coeff!$B$3/Coeff!$B$4*(I181*F181-1)/(I181-1),0)) -> 
J182: =IF(G182="","",IF((G182*D182-1)>=Coeff!$B$5,Coeff!$B$3/Coeff!$B$4*(G182*D182-1)/(G182-1),0)) ->  | K182: =IF(I182="","",IF((I182*F182-1)>=Coeff!$B$5,Coeff!$B$3/Coeff!$B$4*(I182*F182-1)/(I182-1),0)) -> 
J183: =IF(G183="","",IF((G183*D183-1)>=Coeff!$B$5,Coeff!$B$3/Coeff!$B$4*(G183*D183-1)/(G183-1),0)) ->  | K183: =IF(I183="","",IF((I183*F183-1)>=Coeff!$B$5,Coeff!$B$3/Coeff!$B$4*(I183*F183-1)/(I183-1),0)) -> 
J184: =IF(G184="","",IF((G184*D184-1)>=Coeff!$B$5,Coeff!$B$3/Coeff!$B$4*(G184*D184-1)/(G184-1),0)) ->  | K184: =IF(I184="","",IF((I184*F184-1)>=Coeff!$B$5,Coeff!$B$3/Coeff!$B$4*(I184*F184-1)/(I184-1),0)) -> 
J185: =IF(G185="","",IF((G185*D185-1)>=Coeff!$B$5,Coeff!$B$3/Coeff!$B$4*(G185*D185-1)/(G185-1),0)) ->  | K185: =IF(I185="","",IF((I185*F185-1)>=Coeff!$B$5,Coeff!$B$3/Coeff!$B$4*(I185*F185-1)/(I185-1),0)) -> 
J186: =IF(G186="","",IF((G186*D186-1)>=Coeff!$B$5,Coeff!$B$3/Coeff!$B$4*(G186*D186-1)/(G186-1),0)) ->  | K186: =IF(I186="","",IF((I186*F186-1)>=Coeff!$B$5,Coeff!$B$3/Coeff!$B$4*(I186*F186-1)/(I186-1),0)) -> 
J187: =IF(G187="","",IF((G187*D187-1)>=Coeff!$B$5,Coeff!$B$3/Coeff!$B$4*(G187*D187-1)/(G187-1),0)) ->  | K187: =IF(I187="","",IF((I187*F187-1)>=Coeff!$B$5,Coeff!$B$3/Coeff!$B$4*(I187*F187-1)/(I187-1),0)) -> 
J188: =IF(G188="","",IF((G188*D188-1)>=Coeff!$B$5,Coeff!$B$3/Coeff!$B$4*(G188*D188-1)/(G188-1),0)) ->  | K188: =IF(I188="","",IF((I188*F188-1)>=Coeff!$B$5,Coeff!$B$3/Coeff!$B$4*(I188*F188-1)/(I188-1),0)) -> 
J189: =IF(G189="","",IF((G189*D189-1)>=Coeff!$B$5,Coeff!$B$3/Coeff!$B$4*(G189*D189-1)/(G189-1),0)) ->  | K189: =IF(I189="","",IF((I189*F189-1)>=Coeff!$B$5,Coeff!$B$3/Coeff!$B$4*(I189*F189-1)/(I189-1),0)) -> 
J190: =IF(G190="","",IF((G190*D190-1)>=Coeff!$B$5,Coeff!$B$3/Coeff!$B$4*(G190*D190-1)/(G190-1),0)) ->  | K190: =IF(I190="","",IF((I190*F190-1)>=Coeff!$B$5,Coeff!$B$3/Coeff!$B$4*(I190*F190-1)/(I190-1),0)) -> 
J191: =IF(G191="","",IF((G191*D191-1)>=Coeff!$B$5,Coeff!$B$3/Coeff!$B$4*(G191*D191-1)/(G191-1),0)) ->  | K191: =IF(I191="","",IF((I191*F191-1)>=Coeff!$B$5,Coeff!$B$3/Coeff!$B$4*(I191*F191-1)/(I191-1),0)) -> 
J192: =IF(G192="","",IF((G192*D192-1)>=Coeff!$B$5,Coeff!$B$3/Coeff!$B$4*(G192*D192-1)/(G192-1),0)) ->  | K192: =IF(I192="","",IF((I192*F192-1)>=Coeff!$B$5,Coeff!$B$3/Coeff!$B$4*(I192*F192-1)/(I192-1),0)) -> 
J193: =IF(G193="","",IF((G193*D193-1)>=Coeff!$B$5,Coeff!$B$3/Coeff!$B$4*(G193*D193-1)/(G193-1),0)) ->  | K193: =IF(I193="","",IF((I193*F193-1)>=Coeff!$B$5,Coeff!$B$3/Coeff!$B$4*(I193*F193-1)/(I193-1),0)) -> 
J194: =IF(G194="","",IF((G194*D194-1)>=Coeff!$B$5,Coeff!$B$3/Coeff!$B$4*(G194*D194-1)/(G194-1),0)) ->  | K194: =IF(I194="","",IF((I194*F194-1)>=Coeff!$B$5,Coeff!$B$3/Coeff!$B$4*(I194*F194-1)/(I194-1),0)) -> 
J195: =IF(G195="","",IF((G195*D195-1)>=Coeff!$B$5,Coeff!$B$3/Coeff!$B$4*(G195*D195-1)/(G195-1),0)) ->  | K195: =IF(I195="","",IF((I195*F195-1)>=Coeff!$B$5,Coeff!$B$3/Coeff!$B$4*(I195*F195-1)/(I195-1),0)) -> 
J196: =IF(G196="","",IF((G196*D196-1)>=Coeff!$B$5,Coeff!$B$3/Coeff!$B$4*(G196*D196-1)/(G196-1),0)) ->  | K196: =IF(I196="","",IF((I196*F196-1)>=Coeff!$B$5,Coeff!$B$3/Coeff!$B$4*(I196*F196-1)/(I196-1),0)) -> 
J197: =IF(G197="","",IF((G197*D197-1)>=Coeff!$B$5,Coeff!$B$3/Coeff!$B$4*(G197*D197-1)/(G197-1),0)) ->  | K197: =IF(I197="","",IF((I197*F197-1)>=Coeff!$B$5,Coeff!$B$3/Coeff!$B$4*(I197*F197-1)/(I197-1),0)) -> 
J198: =IF(G198="","",IF((G198*D198-1)>=Coeff!$B$5,Coeff!$B$3/Coeff!$B$4*(G198*D198-1)/(G198-1),0)) ->  | K198: =IF(I198="","",IF((I198*F198-1)>=Coeff!$B$5,Coeff!$B$3/Coeff!$B$4*(I198*F198-1)/(I198-1),0)) -> 
J199: =IF(G199="","",IF((G199*D199-1)>=Coeff!$B$5,Coeff!$B$3/Coeff!$B$4*(G199*D199-1)/(G199-1),0)) ->  | K199: =IF(I199="","",IF((I199*F199-1)>=Coeff!$B$5,Coeff!$B$3/Coeff!$B$4*(I199*F199-1)/(I199-1),0)) -> 
J200: =IF(G200="","",IF((G200*D200-1)>=Coeff!$B$5,Coeff!$B$3/Coeff!$B$4*(G200*D200-1)/(G200-1),0)) ->  | K200: =IF(I200="","",IF((I200*F200-1)>=Coeff!$B$5,Coeff!$B$3/Coeff!$B$4*(I200*F200-1)/(I200-1),0)) -> 
J201: =IF(G201="","",IF((G201*D201-1)>=Coeff!$B$5,Coeff!$B$3/Coeff!$B$4*(G201*D201-1)/(G201-1),0)) ->  | K201: =IF(I201="","",IF((I201*F201-1)>=Coeff!$B$5,Coeff!$B$3/Coeff!$B$4*(I201*F201-1)/(I201-1),0)) -> 
J202: =IF(G202="","",IF((G202*D202-1)>=Coeff!$B$5,Coeff!$B$3/Coeff!$B$4*(G202*D202-1)/(G202-1),0)) ->  | K202: =IF(I202="","",IF((I202*F202-1)>=Coeff!$B$5,Coeff!$B$3/Coeff!$B$4*(I202*F202-1)/(I202-1),0)) -> 
... 298 more rows

Sheet handicap
A3: League | B3: Team1 | C3: Team2 | D3: Line | E3: ProbLine | F3: Odds1 | G3: Odds2 | H3: $Bet1 | I3: $Bet2
A4: Austria tipp3-Bundesliga | B4: Wiener Neustadt | C4: RZ Pellets WAC | D4: 0 | E4: 0.546 | F4: 1.74 | G4: 2.2 | H4: =IF(F4="","",IF((F4*E4-1)>=Coeff!$B$10,Coeff!$B$8/Coeff!$B$9*(F4*E4-1)/(F4-1),0)) -> 0 | I4: =IF(G4="","",IF((G4*(1-E4)-1)>=Coeff!$B$10,Coeff!$B$8/Coeff!$B$9*(G4*(1-E4)-1)/(G4-1),0)) -> 0
A5: Austria tipp3-Bundesliga | B5: Austria Wien | C5: Mattersburg | D5: -1.5 | E5: 0.58 | F5: 1.95 | G5: 2 | H5: =IF(F5="","",IF((F5*E5-1)>=Coeff!$B$10,Coeff!$B$8/Coeff!$B$9*(F5*E5-1)/(F5-1),0)) -> 13.78947368 | I5: =IF(G5="","",IF((G5*(1-E5)-1)>=Coeff!$B$10,Coeff!$B$8/Coeff!$B$9*(G5*(1-E5)-1)/(G5-1),0)) -> 0
A6: Austria tipp3-Bundesliga | B6: Adm/Modling | C6: Rapid Wien | D6: 0.25 | E6: 0.559 | F6: 1.84 | G6: 2.09 | H6: =IF(F6="","",IF((F6*E6-1)>=Coeff!$B$10,Coeff!$B$8/Coeff!$B$9*(F6*E6-1)/(F6-1),0)) -> 0 | I6: =IF(G6="","",IF((G6*(1-E6)-1)>=Coeff!$B$10,Coeff!$B$8/Coeff!$B$9*(G6*(1-E6)-1)/(G6-1),0)) -> 0
A7: Austria tipp3-Bundesliga | B7: FC Wacker Innsbruck | C7: Sturm Graz | D7: 0 | E7: 0.484 | F7: 1.82 | G7: 2.13 | H7: =IF(F7="","",IF((F7*E7-1)>=Coeff!$B$10,Coeff!$B$8/Coeff!$B$9*(F7*E7-1)/(F7-1),0)) -> 0 | I7: =IF(G7="","",IF((G7*(1-E7)-1)>=Coeff!$B$10,Coeff!$B$8/Coeff!$B$9*(G7*(1-E7)-1)/(G7-1),0)) -> 8.768141593
A8: Austria tipp3-Bundesliga | B8: Ried | C8: Salzburg | D8: 0.5 | E8: 0.523 | F8: 2.06 | G8: 1.86 | H8: =IF(F8="","",IF((F8*E8-1)>=Coeff!$B$10,Coeff!$B$8/Coeff!$B$9*(F8*E8-1)/(F8-1),0)) -> 7.3 | I8: =IF(G8="","",IF((G8*(1-E8)-1)>=Coeff!$B$10,Coeff!$B$8/Coeff!$B$9*(G8*(1-E8)-1)/(G8-1),0)) -> 0
A9: Austria ADEG Erste Liga | B9: Vienna FC | C9: SV Horn | H9: =IF(F9="","",IF((F9*E9-1)>=Coeff!$B$10,Coeff!$B$8/Coeff!$B$9*(F9*E9-1)/(F9-1),0)) ->  | I9: =IF(G9="","",IF((G9*(1-E9)-1)>=Coeff!$B$10,Coeff!$B$8/Coeff!$B$9*(G9*(1-E9)-1)/(G9-1),0)) -> 
A10: Belarus Premier Division | B10: FC Minsk | C10: Shakhtyor Soligorsk | D10: 0.5 | E10: 0.41 | F10: 1.88 | G10: 1.93 | H10: =IF(F10="","",IF((F10*E10-1)>=Coeff!$B$10,Coeff!$B$8/Coeff!$B$9*(F10*E10-1)/(F10-1),0)) -> 0 | I10: =IF(G10="","",IF((G10*(1-E10)-1)>=Coeff!$B$10,Coeff!$B$8/Coeff!$B$9*(G10*(1-E10)-1)/(G10-1),0)) -> 14.91397849
A11: Belarus Premier Division | B11: Belshina Bobruisk | C11: Dinamo Minsk | D11: 0.5 | E11: 0.517 | F11: 1.89 | G11: 1.98 | H11: =IF(F11="","",IF((F11*E11-1)>=Coeff!$B$10,Coeff!$B$8/Coeff!$B$9*(F11*E11-1)/(F11-1),0)) -> 0 | I11: =IF(G11="","",IF((G11*(1-E11)-1)>=Coeff!$B$10,Coeff!$B$8/Coeff!$B$9*(G11*(1-E11)-1)/(G11-1),0)) -> 0
A12: Bulgaria A Grupa | B12: Botev Vratsa | C12: Montana | H12: =IF(F12="","",IF((F12*E12-1)>=Coeff!$B$10,Coeff!$B$8/Coeff!$B$9*(F12*E12-1)/(F12-1),0)) ->  | I12: =IF(G12="","",IF((G12*(1-E12)-1)>=Coeff!$B$10,Coeff!$B$8/Coeff!$B$9*(G12*(1-E12)-1)/(G12-1),0)) -> 
A13: Bulgaria A Grupa | B13: Slavia Sofia | C13: Chernomorets Burgas | H13: =IF(F13="","",IF((F13*E13-1)>=Coeff!$B$10,Coeff!$B$8/Coeff!$B$9*(F13*E13-1)/(F13-1),0)) ->  | I13: =IF(G13="","",IF((G13*(1-E13)-1)>=Coeff!$B$10,Coeff!$B$8/Coeff!$B$9*(G13*(1-E13)-1)/(G13-1),0)) -> 
A14: Bulgaria A Grupa | B14: Litex Lovech | C14: Lokomotiv Sofia | H14: =IF(F14="","",IF((F14*E14-1)>=Coeff!$B$10,Coeff!$B$8/Coeff!$B$9*(F14*E14-1)/(F14-1),0)) ->  | I14: =IF(G14="","",IF((G14*(1-E14)-1)>=Coeff!$B$10,Coeff!$B$8/Coeff!$B$9*(G14*(1-E14)-1)/(G14-1),0)) -> 
A15: Bulgaria A Grupa | B15: Lokomotiv Plovdiv | C15: Beroe | H15: =IF(F15="","",IF((F15*E15-1)>=Coeff!$B$10,Coeff!$B$8/Coeff!$B$9*(F15*E15-1)/(F15-1),0)) ->  | I15: =IF(G15="","",IF((G15*(1-E15)-1)>=Coeff!$B$10,Coeff!$B$8/Coeff!$B$9*(G15*(1-E15)-1)/(G15-1),0)) -> 
A16: Bulgaria A Grupa | B16: Minyor | C16: Cherno More Varna | H16: =IF(F16="","",IF((F16*E16-1)>=Coeff!$B$10,Coeff!$B$8/Coeff!$B$9*(F16*E16-1)/(F16-1),0)) ->  | I16: =IF(G16="","",IF((G16*(1-E16)-1)>=Coeff!$B$10,Coeff!$B$8/Coeff!$B$9*(G16*(1-E16)-1)/(G16-1),0)) -> 
A17: Bulgaria A Grupa | B17: PFC Ludogorets Razgrad | C17: Botev Plovdiv | H17: =IF(F17="","",IF((F17*E17-1)>=Coeff!$B$10,Coeff!$B$8/Coeff!$B$9*(F17*E17-1)/(F17-1),0)) ->  | I17: =IF(G17="","",IF((G17*(1-E17)-1)>=Coeff!$B$10,Coeff!$B$8/Coeff!$B$9*(G17*(1-E17)-1)/(G17-1),0)) -> 
A18: Bulgaria A Grupa | B18: CSKA Sofia | C18: Pirin Gotse Delchev | H18: =IF(F18="","",IF((F18*E18-1)>=Coeff!$B$10,Coeff!$B$8/Coeff!$B$9*(F18*E18-1)/(F18-1),0)) ->  | I18: =IF(G18="","",IF((G18*(1-E18)-1)>=Coeff!$B$10,Coeff!$B$8/Coeff!$B$9*(G18*(1-E18)-1)/(G18-1),0)) -> 
A19: Czech Republic Gambrinus League | B19: Jihlava | C19: Slovacko | D19: -0.25 | E19: 0.489 | F19: 2.14 | G19: 1.81 | H19: =IF(F19="","",IF((F19*E19-1)>=Coeff!$B$10,Coeff!$B$8/Coeff!$B$9*(F19*E19-1)/(F19-1),0)) -> 0 | I19: =IF(G19="","",IF((G19*(1-E19)-1)>=Coeff!$B$10,Coeff!$B$8/Coeff!$B$9*(G19*(1-E19)-1)/(G19-1),0)) -> 0
A20: Czech Republic Gambrinus League | B20: Slavia Prague | C20: Budejovice | D20: -0.75 | E20: 0.612 | F20: 1.93 | G20: 1.99 | H20: =IF(F20="","",IF((F20*E20-1)>=Coeff!$B$10,Coeff!$B$8/Coeff!$B$9*(F20*E20-1)/(F20-1),0)) -> 19.47956989 | I20: =IF(G20="","",IF((G20*(1-E20)-1)>=Coeff!$B$10,Coeff!$B$8/Coeff!$B$9*(G20*(1-E20)-1)/(G20-1),0)) -> 0
A21: Czech Republic Gambrinus League | B21: Banik Ostrava | C21: Dukla Praha | D21: -0.25 | E21: 0.38 | F21: 2.11 | G21: 1.83 | H21: =IF(F21="","",IF((F21*E21-1)>=Coeff!$B$10,Coeff!$B$8/Coeff!$B$9*(F21*E21-1)/(F21-1),0)) -> 0 | I21: =IF(G21="","",IF((G21*(1-E21)-1)>=Coeff!$B$10,Coeff!$B$8/Coeff!$B$9*(G21*(1-E21)-1)/(G21-1),0)) -> 16.21686747
A22: Czech Republic Gambrinus League | B22: M Boleslav | C22: Jablonec | D22: 0 | E22: 0.569 | F22: 1.71 | G22: 2.31 | H22: =IF(F22="","",IF((F22*E22-1)>=Coeff!$B$10,Coeff!$B$8/Coeff!$B$9*(F22*E22-1)/(F22-1),0)) -> 0 | I22: =IF(G22="","",IF((G22*(1-E22)-1)>=Coeff!$B$10,Coeff!$B$8/Coeff!$B$9*(G22*(1-E22)-1)/(G22-1),0)) -> 0
A23: Czech Republic Gambrinus League | B23: Sigma Olomouc | C23: Viktoria Plzen | D23: 0.5 | E23: 0.612 | F23: 2.13 | G23: 1.81 | H23: =IF(F23="","",IF((F23*E23-1)>=Coeff!$B$10,Coeff!$B$8/Coeff!$B$9*(F23*E23-1)/(F23-1),0)) -> 26.86371681 | I23: =IF(G23="","",IF((G23*(1-E23)-1)>=Coeff!$B$10,Coeff!$B$8/Coeff!$B$9*(G23*(1-E23)-1)/(G23-1),0)) -> 0
A24: Czech Republic Gambrinus League | B24: Brno | C24: Sparta Prague | D24: 1 | E24: 0.55 | F24: 2.23 | G24: 1.77 | H24: =IF(F24="","",IF((F24*E24-1)>=Coeff!$B$10,Coeff!$B$8/Coeff!$B$9*(F24*E24-1)/(F24-1),0)) -> 18.41463415 | I24: =IF(G24="","",IF((G24*(1-E24)-1)>=Coeff!$B$10,Coeff!$B$8/Coeff!$B$9*(G24*(1-E24)-1)/(G24-1),0)) -> 0
A25: Czech Republic Druha League | B25: Most | C25: Karvina | H25: =IF(F25="","",IF((F25*E25-1)>=Coeff!$B$10,Coeff!$B$8/Coeff!$B$9*(F25*E25-1)/(F25-1),0)) ->  | I25: =IF(G25="","",IF((G25*(1-E25)-1)>=Coeff!$B$10,Coeff!$B$8/Coeff!$B$9*(G25*(1-E25)-1)/(G25-1),0)) -> 
A26: Czech Republic Druha League | B26: FK MAS Taborsko | C26: Slovan Varnsdorf | H26: =IF(F26="","",IF((F26*E26-1)>=Coeff!$B$10,Coeff!$B$8/Coeff!$B$9*(F26*E26-1)/(F26-1),0)) ->  | I26: =IF(G26="","",IF((G26*(1-E26)-1)>=Coeff!$B$10,Coeff!$B$8/Coeff!$B$9*(G26*(1-E26)-1)/(G26-1),0)) -> 
A27: Czech Republic Druha League | B27: Sokolov | C27: Opava | H27: =IF(F27="","",IF((F27*E27-1)>=Coeff!$B$10,Coeff!$B$8/Coeff!$B$9*(F27*E27-1)/(F27-1),0)) ->  | I27: =IF(G27="","",IF((G27*(1-E27)-1)>=Coeff!$B$10,Coeff!$B$8/Coeff!$B$9*(G27*(1-E27)-1)/(G27-1),0)) -> 
A28: Czech Republic Druha League | B28: Caslav | C28: Znojmo | H28: =IF(F28="","",IF((F28*E28-1)>=Coeff!$B$10,Coeff!$B$8/Coeff!$B$9*(F28*E28-1)/(F28-1),0)) ->  | I28: =IF(G28="","",IF((G28*(1-E28)-1)>=Coeff!$B$10,Coeff!$B$8/Coeff!$B$9*(G28*(1-E28)-1)/(G28-1),0)) -> 
A29: Czech Republic Druha League | B29: Usti nad Labem | C29: FC Vlasim | H29: =IF(F29="","",IF((F29*E29-1)>=Coeff!$B$10,Coeff!$B$8/Coeff!$B$9*(F29*E29-1)/(F29-1),0)) ->  | I29: =IF(G29="","",IF((G29*(1-E29)-1)>=Coeff!$B$10,Coeff!$B$8/Coeff!$B$9*(G29*(1-E29)-1)/(G29-1),0)) -> 
A30: Denmark 2. Division | B30: Herlev | C30: Frem | H30: =IF(F30="","",IF((F30*E30-1)>=Coeff!$B$10,Coeff!$B$8/Coeff!$B$9*(F30*E30-1)/(F30-1),0)) ->  | I30: =IF(G30="","",IF((G30*(1-E30)-1)>=Coeff!$B$10,Coeff!$B$8/Coeff!$B$9*(G30*(1-E30)-1)/(G30-1),0)) -> 
A31: Greece Super League | B31: Pas Giannina | C31: Atromitos | D31: -0.25 | E31: 0.587 | F31: 2.11 | G31: 1.84 | H31: =IF(F31="","",IF((F31*E31-1)>=Coeff!$B$10,Coeff!$B$8/Coeff!$B$9*(F31*E31-1)/(F31-1),0)) -> 21.49279279 | I31: =IF(G31="","",IF((G31*(1-E31)-1)>=Coeff!$B$10,Coeff!$B$8/Coeff!$B$9*(G31*(1-E31)-1)/(G31-1),0)) -> 0
A32: Greece Super League | B32: Asteras Tripolis | C32: PAOK Thessaloniki FC | D32: -0.25 | E32: 0.431 | F32: 2.17 | G32: 1.78 | H32: =IF(F32="","",IF((F32*E32-1)>=Coeff!$B$10,Coeff!$B$8/Coeff!$B$9*(F32*E32-1)/(F32-1),0)) -> 0 | I32: =IF(G32="","",IF((G32*(1-E32)-1)>=Coeff!$B$10,Coeff!$B$8/Coeff!$B$9*(G32*(1-E32)-1)/(G32-1),0)) -> 0
A33: Greece Football League | B33: Olymp. Volou | C33: Iraklis | H33: =IF(F33="","",IF((F33*E33-1)>=Coeff!$B$10,Coeff!$B$8/Coeff!$B$9*(F33*E33-1)/(F33-1),0)) ->  | I33: =IF(G33="","",IF((G33*(1-E33)-1)>=Coeff!$B$10,Coeff!$B$8/Coeff!$B$9*(G33*(1-E33)-1)/(G33-1),0)) -> 
A34: Greece Football League | B34: Pierikos FC | C34: Panaitolikos | H34: =IF(F34="","",IF((F34*E34-1)>=Coeff!$B$10,Coeff!$B$8/Coeff!$B$9*(F34*E34-1)/(F34-1),0)) ->  | I34: =IF(G34="","",IF((G34*(1-E34)-1)>=Coeff!$B$10,Coeff!$B$8/Coeff!$B$9*(G34*(1-E34)-1)/(G34-1),0)) -> 
A35: Greece Football League | B35: Apollon Smirnis | C35: Ethnikos Gazoros F.C. | H35: =IF(F35="","",IF((F35*E35-1)>=Coeff!$B$10,Coeff!$B$8/Coeff!$B$9*(F35*E35-1)/(F35-1),0)) ->  | I35: =IF(G35="","",IF((G35*(1-E35)-1)>=Coeff!$B$10,Coeff!$B$8/Coeff!$B$9*(G35*(1-E35)-1)/(G35-1),0)) -> 
A36: Greece Football League | B36: Anagennisi Giannitsa | C36: Kalloni Lekanopedio | H36: =IF(F36="","",IF((F36*E36-1)>=Coeff!$B$10,Coeff!$B$8/Coeff!$B$9*(F36*E36-1)/(F36-1),0)) ->  | I36: =IF(G36="","",IF((G36*(1-E36)-1)>=Coeff!$B$10,Coeff!$B$8/Coeff!$B$9*(G36*(1-E36)-1)/(G36-1),0)) -> 
A37: Greece Football League | B37: Anagennisi Epanomi | C37: Kavala | H37: =IF(F37="","",IF((F37*E37-1)>=Coeff!$B$10,Coeff!$B$8/Coeff!$B$9*(F37*E37-1)/(F37-1),0)) ->  | I37: =IF(G37="","",IF((G37*(1-E37)-1)>=Coeff!$B$10,Coeff!$B$8/Coeff!$B$9*(G37*(1-E37)-1)/(G37-1),0)) -> 
A38: Greece Football League | B38: Kalithea | C38: Fokikos | H38: =IF(F38="","",IF((F38*E38-1)>=Coeff!$B$10,Coeff!$B$8/Coeff!$B$9*(F38*E38-1)/(F38-1),0)) ->  | I38: =IF(G38="","",IF((G38*(1-E38)-1)>=Coeff!$B$10,Coeff!$B$8/Coeff!$B$9*(G38*(1-E38)-1)/(G38-1),0)) -> 
A39: Greece Football League | B39: Iraklis Psachna FC | C39: Panachaiki | H39: =IF(F39="","",IF((F39*E39-1)>=Coeff!$B$10,Coeff!$B$8/Coeff!$B$9*(F39*E39-1)/(F39-1),0)) ->  | I39: =IF(G39="","",IF((G39*(1-E39)-1)>=Coeff!$B$10,Coeff!$B$8/Coeff!$B$9*(G39*(1-E39)-1)/(G39-1),0)) -> 
A40: Greece Football League | B40: Panserraikos FC | C40: Vyzas | H40: =IF(F40="","",IF((F40*E40-1)>=Coeff!$B$10,Coeff!$B$8/Coeff!$B$9*(F40*E40-1)/(F40-1),0)) ->  | I40: =IF(G40="","",IF((G40*(1-E40)-1)>=Coeff!$B$10,Coeff!$B$8/Coeff!$B$9*(G40*(1-E40)-1)/(G40-1),0)) -> 
A41: Greece Football League | B41: Doxa Dramas | C41: Larisa | H41: =IF(F41="","",IF((F41*E41-1)>=Coeff!$B$10,Coeff!$B$8/Coeff!$B$9*(F41*E41-1)/(F41-1),0)) ->  | I41: =IF(G41="","",IF((G41*(1-E41)-1)>=Coeff!$B$10,Coeff!$B$8/Coeff!$B$9*(G41*(1-E41)-1)/(G41-1),0)) -> 
A42: Greece Football League | B42: Ergotelis | C42: Thrasyvoulos | H42: =IF(F42="","",IF((F42*E42-1)>=Coeff!$B$10,Coeff!$B$8/Coeff!$B$9*(F42*E42-1)/(F42-1),0)) ->  | I42: =IF(G42="","",IF((G42*(1-E42)-1)>=Coeff!$B$10,Coeff!$B$8/Coeff!$B$9*(G42*(1-E42)-1)/(G42-1),0)) -> 
A43: Lithuania A Lyga | B43: FK Tauras Taurage | C43: Zalgiris Vilnius | H43: =IF(F43="","",IF((F43*E43-1)>=Coeff!$B$10,Coeff!$B$8/Coeff!$B$9*(F43*E43-1)/(F43-1),0)) ->  | I43: =IF(G43="","",IF((G43*(1-E43)-1)>=Coeff!$B$10,Coeff!$B$8/Coeff!$B$9*(G43*(1-E43)-1)/(G43-1),0)) -> 
A44: Lithuania A Lyga | B44: Ekranas | C44: Banga Gargzdai | H44: =IF(F44="","",IF((F44*E44-1)>=Coeff!$B$10,Coeff!$B$8/Coeff!$B$9*(F44*E44-1)/(F44-1),0)) ->  | I44: =IF(G44="","",IF((G44*(1-E44)-1)>=Coeff!$B$10,Coeff!$B$8/Coeff!$B$9*(G44*(1-E44)-1)/(G44-1),0)) -> 
A45: Norway 1. Division | B45: Kristiansund BK | C45: Hødd | D45: -0.5 | E45: 0.489 | F45: 2.13 | G45: 1.8 | H45: =IF(F45="","",IF((F45*E45-1)>=Coeff!$B$10,Coeff!$B$8/Coeff!$B$9*(F45*E45-1)/(F45-1),0)) -> 0 | I45: =IF(G45="","",IF((G45*(1-E45)-1)>=Coeff!$B$10,Coeff!$B$8/Coeff!$B$9*(G45*(1-E45)-1)/(G45-1),0)) -> 0
A46: Paraguay Apertura | B46: Sol de America | C46: General Diaz | D46: -0.25 | E46: 0.434 | F46: 2.02 | G46: 1.82 | H46: =IF(F46="","",IF((F46*E46-1)>=Coeff!$B$10,Coeff!$B$8/Coeff!$B$9*(F46*E46-1)/(F46-1),0)) -> 0 | I46: =IF(G46="","",IF((G46*(1-E46)-1)>=Coeff!$B$10,Coeff!$B$8/Coeff!$B$9*(G46*(1-E46)-1)/(G46-1),0)) -> 0
A47: Paraguay Apertura | B47: Nacional | C47: Deportivo Capiata | D47: -1.25 | E47: 0.415 | F47: 1.99 | G47: 1.85 | H47: =IF(F47="","",IF((F47*E47-1)>=Coeff!$B$10,Coeff!$B$8/Coeff!$B$9*(F47*E47-1)/(F47-1),0)) -> 0 | I47: =IF(G47="","",IF((G47*(1-E47)-1)>=Coeff!$B$10,Coeff!$B$8/Coeff!$B$9*(G47*(1-E47)-1)/(G47-1),0)) -> 9.676470588
A48: Paraguay Apertura | B48: Club Deportivo Carapegua | C48: Cerro Porteno PF | H48: =IF(F48="","",IF((F48*E48-1)>=Coeff!$B$10,Coeff!$B$8/Coeff!$B$9*(F48*E48-1)/(F48-1),0)) ->  | I48: =IF(G48="","",IF((G48*(1-E48)-1)>=Coeff!$B$10,Coeff!$B$8/Coeff!$B$9*(G48*(1-E48)-1)/(G48-1),0)) -> 
A49: Poland 1. Division | B49: Kolejarz Stroze | C49: Okocimski KS Brzesko | D49: -0.25 | E49: 0.67 | F49: 1.85 | G49: 2.05 | H49: =IF(F49="","",IF((F49*E49-1)>=Coeff!$B$10,Coeff!$B$8/Coeff!$B$9*(F49*E49-1)/(F49-1),0)) -> 28.17647059 | I49: =IF(G49="","",IF((G49*(1-E49)-1)>=Coeff!$B$10,Coeff!$B$8/Coeff!$B$9*(G49*(1-E49)-1)/(G49-1),0)) -> 0
A50: Poland 1. Division | B50: Warta Poznan | C50: Stomil Olsztyn | D50: 0.5 | E50: 0.602 | F50: 1.9 | G50: 2.01 | H50: =IF(F50="","",IF((F50*E50-1)>=Coeff!$B$10,Coeff!$B$8/Coeff!$B$9*(F50*E50-1)/(F50-1),0)) -> 15.97777778 | I50: =IF(G50="","",IF((G50*(1-E50)-1)>=Coeff!$B$10,Coeff!$B$8/Coeff!$B$9*(G50*(1-E50)-1)/(G50-1),0)) -> 0
A51: Poland 1. Division | B51: Olimpia Grudziadz | C51: Polonia Bytom | D51: -1 | E51: 0.505 | F51: 2.07 | G51: 1.83 | H51: =IF(F51="","",IF((F51*E51-1)>=Coeff!$B$10,Coeff!$B$8/Coeff!$B$9*(F51*E51-1)/(F51-1),0)) -> 0 | I51: =IF(G51="","",IF((G51*(1-E51)-1)>=Coeff!$B$10,Coeff!$B$8/Coeff!$B$9*(G51*(1-E51)-1)/(G51-1),0)) -> 0
A52: Poland 1. Division | B52: Flota Swinoujscie | C52: Sandecja Nowy Sacz | D52: -0.75 | E52: 0.477 | F52: 2.02 | G52: 1.88 | H52: =IF(F52="","",IF((F52*E52-1)>=Coeff!$B$10,Coeff!$B$8/Coeff!$B$9*(F52*E52-1)/(F52-1),0)) -> 0 | I52: =IF(G52="","",IF((G52*(1-E52)-1)>=Coeff!$B$10,Coeff!$B$8/Coeff!$B$9*(G52*(1-E52)-1)/(G52-1),0)) -> 0
A53: Serbia Super Liga | B53: FK Donji Srem | C53: Hajduk K. | H53: =IF(F53="","",IF((F53*E53-1)>=Coeff!$B$10,Coeff!$B$8/Coeff!$B$9*(F53*E53-1)/(F53-1),0)) ->  | I53: =IF(G53="","",IF((G53*(1-E53)-1)>=Coeff!$B$10,Coeff!$B$8/Coeff!$B$9*(G53*(1-E53)-1)/(G53-1),0)) -> 
A54: Serbia Super Liga | B54: BSK Borca | C54: Jagodina | H54: =IF(F54="","",IF((F54*E54-1)>=Coeff!$B$10,Coeff!$B$8/Coeff!$B$9*(F54*E54-1)/(F54-1),0)) ->  | I54: =IF(G54="","",IF((G54*(1-E54)-1)>=Coeff!$B$10,Coeff!$B$8/Coeff!$B$9*(G54*(1-E54)-1)/(G54-1),0)) -> 
A55: Serbia Super Liga | B55: FK Spartak Zlatibor Voda | C55: OFK Beograd | H55: =IF(F55="","",IF((F55*E55-1)>=Coeff!$B$10,Coeff!$B$8/Coeff!$B$9*(F55*E55-1)/(F55-1),0)) ->  | I55: =IF(G55="","",IF((G55*(1-E55)-1)>=Coeff!$B$10,Coeff!$B$8/Coeff!$B$9*(G55*(1-E55)-1)/(G55-1),0)) -> 
A56: Serbia Super Liga | B56: FC Smederevo | C56: Partizan Belgrad | H56: =IF(F56="","",IF((F56*E56-1)>=Coeff!$B$10,Coeff!$B$8/Coeff!$B$9*(F56*E56-1)/(F56-1),0)) ->  | I56: =IF(G56="","",IF((G56*(1-E56)-1)>=Coeff!$B$10,Coeff!$B$8/Coeff!$B$9*(G56*(1-E56)-1)/(G56-1),0)) -> 
A57: Serbia Super Liga | B57: Novi Pazar | C57: Rad | H57: =IF(F57="","",IF((F57*E57-1)>=Coeff!$B$10,Coeff!$B$8/Coeff!$B$9*(F57*E57-1)/(F57-1),0)) ->  | I57: =IF(G57="","",IF((G57*(1-E57)-1)>=Coeff!$B$10,Coeff!$B$8/Coeff!$B$9*(G57*(1-E57)-1)/(G57-1),0)) -> 
A58: Serbia Super Liga | B58: FK Radnicki 1923 | C58: Vojvodina | H58: =IF(F58="","",IF((F58*E58-1)>=Coeff!$B$10,Coeff!$B$8/Coeff!$B$9*(F58*E58-1)/(F58-1),0)) ->  | I58: =IF(G58="","",IF((G58*(1-E58)-1)>=Coeff!$B$10,Coeff!$B$8/Coeff!$B$9*(G58*(1-E58)-1)/(G58-1),0)) -> 
A59: Serbia Super Liga | B59: Radnicki N. | C59: Javor | H59: =IF(F59="","",IF((F59*E59-1)>=Coeff!$B$10,Coeff!$B$8/Coeff!$B$9*(F59*E59-1)/(F59-1),0)) ->  | I59: =IF(G59="","",IF((G59*(1-E59)-1)>=Coeff!$B$10,Coeff!$B$8/Coeff!$B$9*(G59*(1-E59)-1)/(G59-1),0)) -> 
A60: Serbia Super Liga | B60: Red Star Belgrad | C60: FK Sloboda Point Sevojno | H60: =IF(F60="","",IF((F60*E60-1)>=Coeff!$B$10,Coeff!$B$8/Coeff!$B$9*(F60*E60-1)/(F60-1),0)) ->  | I60: =IF(G60="","",IF((G60*(1-E60)-1)>=Coeff!$B$10,Coeff!$B$8/Coeff!$B$9*(G60*(1-E60)-1)/(G60-1),0)) -> 
A61: Slovakia Corgon Liga | B61: Trencin | C61: Ruzomberok | D61: 0.5 | E61: 0.752 | F61: 1.18 | G61: 1.96 | H61: =IF(F61="","",IF((F61*E61-1)>=Coeff!$B$10,Coeff!$B$8/Coeff!$B$9*(F61*E61-1)/(F61-1),0)) -> 0 | I61: =IF(G61="","",IF((G61*(1-E61)-1)>=Coeff!$B$10,Coeff!$B$8/Coeff!$B$9*(G61*(1-E61)-1)/(G61-1),0)) -> 0
A62: Slovakia Corgon Liga | B62: Myjava | C62: Kosice | D62: 0.5 | E62: 0.586 | F62: 1.33 | G62: 1.6 | H62: =IF(F62="","",IF((F62*E62-1)>=Coeff!$B$10,Coeff!$B$8/Coeff!$B$9*(F62*E62-1)/(F62-1),0)) -> 0 | I62: =IF(G62="","",IF((G62*(1-E62)-1)>=Coeff!$B$10,Coeff!$B$8/Coeff!$B$9*(G62*(1-E62)-1)/(G62-1),0)) -> 0
A63: Slovakia Corgon Liga | B63: FK Senica | C63: Zlate Moravce | H63: =IF(F63="","",IF((F63*E63-1)>=Coeff!$B$10,Coeff!$B$8/Coeff!$B$9*(F63*E63-1)/(F63-1),0)) ->  | I63: =IF(G63="","",IF((G63*(1-E63)-1)>=Coeff!$B$10,Coeff!$B$8/Coeff!$B$9*(G63*(1-E63)-1)/(G63-1),0)) -> 
A64: Slovakia Corgon Liga | B64: Zilina | C64: Presov | D64: 0.5 | E64: 0.864 | F64: 1.24 | G64: 1.8 | H64: =IF(F64="","",IF((F64*E64-1)>=Coeff!$B$10,Coeff!$B$8/Coeff!$B$9*(F64*E64-1)/(F64-1),0)) -> 29.73333333 | I64: =IF(G64="","",IF((G64*(1-E64)-1)>=Coeff!$B$10,Coeff!$B$8/Coeff!$B$9*(G64*(1-E64)-1)/(G64-1),0)) -> 0
A65: Slovakia Corgon Liga | B65: Trnava | C65: Banska Bystrica | D65: 0.5 | E65: 0.863 | F65: 1.18 | G65: 1.97 | H65: =IF(F65="","",IF((F65*E65-1)>=Coeff!$B$10,Coeff!$B$8/Coeff!$B$9*(F65*E65-1)/(F65-1),0)) -> 0 | I65: =IF(G65="","",IF((G65*(1-E65)-1)>=Coeff!$B$10,Coeff!$B$8/Coeff!$B$9*(G65*(1-E65)-1)/(G65-1),0)) -> 0
A66: Slovakia Corgon Liga | B66: Slovan Bratislava | C66: Nitra | H66: =IF(F66="","",IF((F66*E66-1)>=Coeff!$B$10,Coeff!$B$8/Coeff!$B$9*(F66*E66-1)/(F66-1),0)) ->  | I66: =IF(G66="","",IF((G66*(1-E66)-1)>=Coeff!$B$10,Coeff!$B$8/Coeff!$B$9*(G66*(1-E66)-1)/(G66-1),0)) -> 
A67: Slovenia PrvaLiga | B67: Rudar Velenje | C67: Maribor | H67: =IF(F67="","",IF((F67*E67-1)>=Coeff!$B$10,Coeff!$B$8/Coeff!$B$9*(F67*E67-1)/(F67-1),0)) ->  | I67: =IF(G67="","",IF((G67*(1-E67)-1)>=Coeff!$B$10,Coeff!$B$8/Coeff!$B$9*(G67*(1-E67)-1)/(G67-1),0)) -> 
A68: Slovenia PrvaLiga | B68: Koper | C68: Ol Ljubljana | H68: =IF(F68="","",IF((F68*E68-1)>=Coeff!$B$10,Coeff!$B$8/Coeff!$B$9*(F68*E68-1)/(F68-1),0)) ->  | I68: =IF(G68="","",IF((G68*(1-E68)-1)>=Coeff!$B$10,Coeff!$B$8/Coeff!$B$9*(G68*(1-E68)-1)/(G68-1),0)) -> 
A69: Slovenia PrvaLiga | B69: Domzale | C69: Gorica | H69: =IF(F69="","",IF((F69*E69-1)>=Coeff!$B$10,Coeff!$B$8/Coeff!$B$9*(F69*E69-1)/(F69-1),0)) ->  | I69: =IF(G69="","",IF((G69*(1-E69)-1)>=Coeff!$B$10,Coeff!$B$8/Coeff!$B$9*(G69*(1-E69)-1)/(G69-1),0)) -> 
A70: Slovenia PrvaLiga | B70: ND Triglav | C70: Mura | H70: =IF(F70="","",IF((F70*E70-1)>=Coeff!$B$10,Coeff!$B$8/Coeff!$B$9*(F70*E70-1)/(F70-1),0)) ->  | I70: =IF(G70="","",IF((G70*(1-E70)-1)>=Coeff!$B$10,Coeff!$B$8/Coeff!$B$9*(G70*(1-E70)-1)/(G70-1),0)) -> 
A71: Slovenia PrvaLiga | B71: Aluminij | C71: MIK CM Celje | H71: =IF(F71="","",IF((F71*E71-1)>=Coeff!$B$10,Coeff!$B$8/Coeff!$B$9*(F71*E71-1)/(F71-1),0)) ->  | I71: =IF(G71="","",IF((G71*(1-E71)-1)>=Coeff!$B$10,Coeff!$B$8/Coeff!$B$9*(G71*(1-E71)-1)/(G71-1),0)) -> 
A72: Sweden Allsvenskan | B72: Gefle | C72: IFK Gothenburg | D72: 0.25 | E72: 0.42 | F72: 2 | G72: 1.93 | H72: =IF(F72="","",IF((F72*E72-1)>=Coeff!$B$10,Coeff!$B$8/Coeff!$B$9*(F72*E72-1)/(F72-1),0)) -> 0 | I72: =IF(G72="","",IF((G72*(1-E72)-1)>=Coeff!$B$10,Coeff!$B$8/Coeff!$B$9*(G72*(1-E72)-1)/(G72-1),0)) -> 12.83870968
A73: Sweden Allsvenskan | B73: AIK | C73: Djurgaarden | D73: -0.75 | E73: 0.607 | F73: 1.89 | G73: 2.06 | H73: =IF(F73="","",IF((F73*E73-1)>=Coeff!$B$10,Coeff!$B$8/Coeff!$B$9*(F73*E73-1)/(F73-1),0)) -> 16.54269663 | I73: =IF(G73="","",IF((G73*(1-E73)-1)>=Coeff!$B$10,Coeff!$B$8/Coeff!$B$9*(G73*(1-E73)-1)/(G73-1),0)) -> 0
A74: Sweden Superettan | B74: Degerfors | C74: Ostersund | H74: =IF(F74="","",IF((F74*E74-1)>=Coeff!$B$10,Coeff!$B$8/Coeff!$B$9*(F74*E74-1)/(F74-1),0)) ->  | I74: =IF(G74="","",IF((G74*(1-E74)-1)>=Coeff!$B$10,Coeff!$B$8/Coeff!$B$9*(G74*(1-E74)-1)/(G74-1),0)) -> 
A75: Sweden Superettan | B75: Orebro | C75: Angelholm | D75: -1.5 | E75: 0.368 | F75: 1.96 | G75: 1.99 | H75: =IF(F75="","",IF((F75*E75-1)>=Coeff!$B$10,Coeff!$B$8/Coeff!$B$9*(F75*E75-1)/(F75-1),0)) -> 0 | I75: =IF(G75="","",IF((G75*(1-E75)-1)>=Coeff!$B$10,Coeff!$B$8/Coeff!$B$9*(G75*(1-E75)-1)/(G75-1),0)) -> 26.02828283
A76: Sweden Superettan | B76: Jonkoping S. | C76: IFK Varnamo | D76: -0.5 | E76: 0.488 | F76: 1.7 | G76: 2.33 | H76: =IF(F76="","",IF((F76*E76-1)>=Coeff!$B$10,Coeff!$B$8/Coeff!$B$9*(F76*E76-1)/(F76-1),0)) -> 0 | I76: =IF(G76="","",IF((G76*(1-E76)-1)>=Coeff!$B$10,Coeff!$B$8/Coeff!$B$9*(G76*(1-E76)-1)/(G76-1),0)) -> 14.50827068
A77: Switzerland Super League | B77: Servette | C77: Sion | D77: -0.25 | E77: 0.619 | F77: 2.03 | G77: 1.94 | H77: =IF(F77="","",IF((F77*E77-1)>=Coeff!$B$10,Coeff!$B$8/Coeff!$B$9*(F77*E77-1)/(F77-1),0)) -> 24.90970874 | I77: =IF(G77="","",IF((G77*(1-E77)-1)>=Coeff!$B$10,Coeff!$B$8/Coeff!$B$9*(G77*(1-E77)-1)/(G77-1),0)) -> 0
A78: Bolivia Apertura | B78: La Paz FC | C78: Nacional Potosi | H78: =IF(F78="","",IF((F78*E78-1)>=Coeff!$B$10,Coeff!$B$8/Coeff!$B$9*(F78*E78-1)/(F78-1),0)) ->  | I78: =IF(G78="","",IF((G78*(1-E78)-1)>=Coeff!$B$10,Coeff!$B$8/Coeff!$B$9*(G78*(1-E78)-1)/(G78-1),0)) -> 
A79: Bolivia Apertura | B79: The Strongest | C79: Jorge Wilstermann | H79: =IF(F79="","",IF((F79*E79-1)>=Coeff!$B$10,Coeff!$B$8/Coeff!$B$9*(F79*E79-1)/(F79-1),0)) ->  | I79: =IF(G79="","",IF((G79*(1-E79)-1)>=Coeff!$B$10,Coeff!$B$8/Coeff!$B$9*(G79*(1-E79)-1)/(G79-1),0)) -> 
A80: Paraguay Apertura | B80: Guarani | C80: Luqueno | D80: -1 | E80: 0.393 | F80: 1.9 | G80: 1.94 | H80: =IF(F80="","",IF((F80*E80-1)>=Coeff!$B$10,Coeff!$B$8/Coeff!$B$9*(F80*E80-1)/(F80-1),0)) -> 0 | I80: =IF(G80="","",IF((G80*(1-E80)-1)>=Coeff!$B$10,Coeff!$B$8/Coeff!$B$9*(G80*(1-E80)-1)/(G80-1),0)) -> 18.89148936
A81: Paraguay Apertura | B81: Cerro Porteno | C81: Libertad | D81: 0 | E81: 0.421 | F81: 1.71 | G81: 2.14 | H81: =IF(F81="","",IF((F81*E81-1)>=Coeff!$B$10,Coeff!$B$8/Coeff!$B$9*(F81*E81-1)/(F81-1),0)) -> 0 | I81: =IF(G81="","",IF((G81*(1-E81)-1)>=Coeff!$B$10,Coeff!$B$8/Coeff!$B$9*(G81*(1-E81)-1)/(G81-1),0)) -> 20.97017544
A82: Peru Primera División | B82: Juan Aurich | C82: Sport Huancayo | H82: =IF(F82="","",IF((F82*E82-1)>=Coeff!$B$10,Coeff!$B$8/Coeff!$B$9*(F82*E82-1)/(F82-1),0)) ->  | I82: =IF(G82="","",IF((G82*(1-E82)-1)>=Coeff!$B$10,Coeff!$B$8/Coeff!$B$9*(G82*(1-E82)-1)/(G82-1),0)) -> 
H83: =IF(F83="","",IF((F83*E83-1)>=Coeff!$B$10,Coeff!$B$8/Coeff!$B$9*(F83*E83-1)/(F83-1),0)) ->  | I83: =IF(G83="","",IF((G83*(1-E83)-1)>=Coeff!$B$10,Coeff!$B$8/Coeff!$B$9*(G83*(1-E83)-1)/(G83-1),0)) -> 
H84: =IF(F84="","",IF((F84*E84-1)>=Coeff!$B$10,Coeff!$B$8/Coeff!$B$9*(F84*E84-1)/(F84-1),0)) ->  | I84: =IF(G84="","",IF((G84*(1-E84)-1)>=Coeff!$B$10,Coeff!$B$8/Coeff!$B$9*(G84*(1-E84)-1)/(G84-1),0)) -> 
H85: =IF(F85="","",IF((F85*E85-1)>=Coeff!$B$10,Coeff!$B$8/Coeff!$B$9*(F85*E85-1)/(F85-1),0)) ->  | I85: =IF(G85="","",IF((G85*(1-E85)-1)>=Coeff!$B$10,Coeff!$B$8/Coeff!$B$9*(G85*(1-E85)-1)/(G85-1),0)) -> 
H86: =IF(F86="","",IF((F86*E86-1)>=Coeff!$B$10,Coeff!$B$8/Coeff!$B$9*(F86*E86-1)/(F86-1),0)) ->  | I86: =IF(G86="","",IF((G86*(1-E86)-1)>=Coeff!$B$10,Coeff!$B$8/Coeff!$B$9*(G86*(1-E86)-1)/(G86-1),0)) -> 
H87: =IF(F87="","",IF((F87*E87-1)>=Coeff!$B$10,Coeff!$B$8/Coeff!$B$9*(F87*E87-1)/(F87-1),0)) ->  | I87: =IF(G87="","",IF((G87*(1-E87)-1)>=Coeff!$B$10,Coeff!$B$8/Coeff!$B$9*(G87*(1-E87)-1)/(G87-1),0)) -> 
H88: =IF(F88="","",IF((F88*E88-1)>=Coeff!$B$10,Coeff!$B$8/Coeff!$B$9*(F88*E88-1)/(F88-1),0)) ->  | I88: =IF(G88="","",IF((G88*(1-E88)-1)>=Coeff!$B$10,Coeff!$B$8/Coeff!$B$9*(G88*(1-E88)-1)/(G88-1),0)) -> 
H89: =IF(F89="","",IF((F89*E89-1)>=Coeff!$B$10,Coeff!$B$8/Coeff!$B$9*(F89*E89-1)/(F89-1),0)) ->  | I89: =IF(G89="","",IF((G89*(1-E89)-1)>=Coeff!$B$10,Coeff!$B$8/Coeff!$B$9*(G89*(1-E89)-1)/(G89-1),0)) -> 
H90: =IF(F90="","",IF((F90*E90-1)>=Coeff!$B$10,Coeff!$B$8/Coeff!$B$9*(F90*E90-1)/(F90-1),0)) ->  | I90: =IF(G90="","",IF((G90*(1-E90)-1)>=Coeff!$B$10,Coeff!$B$8/Coeff!$B$9*(G90*(1-E90)-1)/(G90-1),0)) -> 
H91: =IF(F91="","",IF((F91*E91-1)>=Coeff!$B$10,Coeff!$B$8/Coeff!$B$9*(F91*E91-1)/(F91-1),0)) ->  | I91: =IF(G91="","",IF((G91*(1-E91)-1)>=Coeff!$B$10,Coeff!$B$8/Coeff!$B$9*(G91*(1-E91)-1)/(G91-1),0)) -> 
H92: =IF(F92="","",IF((F92*E92-1)>=Coeff!$B$10,Coeff!$B$8/Coeff!$B$9*(F92*E92-1)/(F92-1),0)) ->  | I92: =IF(G92="","",IF((G92*(1-E92)-1)>=Coeff!$B$10,Coeff!$B$8/Coeff!$B$9*(G92*(1-E92)-1)/(G92-1),0)) -> 
H93: =IF(F93="","",IF((F93*E93-1)>=Coeff!$B$10,Coeff!$B$8/Coeff!$B$9*(F93*E93-1)/(F93-1),0)) ->  | I93: =IF(G93="","",IF((G93*(1-E93)-1)>=Coeff!$B$10,Coeff!$B$8/Coeff!$B$9*(G93*(1-E93)-1)/(G93-1),0)) -> 
H94: =IF(F94="","",IF((F94*E94-1)>=Coeff!$B$10,Coeff!$B$8/Coeff!$B$9*(F94*E94-1)/(F94-1),0)) ->  | I94: =IF(G94="","",IF((G94*(1-E94)-1)>=Coeff!$B$10,Coeff!$B$8/Coeff!$B$9*(G94*(1-E94)-1)/(G94-1),0)) -> 
H95: =IF(F95="","",IF((F95*E95-1)>=Coeff!$B$10,Coeff!$B$8/Coeff!$B$9*(F95*E95-1)/(F95-1),0)) ->  | I95: =IF(G95="","",IF((G95*(1-E95)-1)>=Coeff!$B$10,Coeff!$B$8/Coeff!$B$9*(G95*(1-E95)-1)/(G95-1),0)) -> 
H96: =IF(F96="","",IF((F96*E96-1)>=Coeff!$B$10,Coeff!$B$8/Coeff!$B$9*(F96*E96-1)/(F96-1),0)) ->  | I96: =IF(G96="","",IF((G96*(1-E96)-1)>=Coeff!$B$10,Coeff!$B$8/Coeff!$B$9*(G96*(1-E96)-1)/(G96-1),0)) -> 
H97: =IF(F97="","",IF((F97*E97-1)>=Coeff!$B$10,Coeff!$B$8/Coeff!$B$9*(F97*E97-1)/(F97-1),0)) ->  | I97: =IF(G97="","",IF((G97*(1-E97)-1)>=Coeff!$B$10,Coeff!$B$8/Coeff!$B$9*(G97*(1-E97)-1)/(G97-1),0)) -> 
H98: =IF(F98="","",IF((F98*E98-1)>=Coeff!$B$10,Coeff!$B$8/Coeff!$B$9*(F98*E98-1)/(F98-1),0)) ->  | I98: =IF(G98="","",IF((G98*(1-E98)-1)>=Coeff!$B$10,Coeff!$B$8/Coeff!$B$9*(G98*(1-E98)-1)/(G98-1),0)) -> 
H99: =IF(F99="","",IF((F99*E99-1)>=Coeff!$B$10,Coeff!$B$8/Coeff!$B$9*(F99*E99-1)/(F99-1),0)) ->  | I99: =IF(G99="","",IF((G99*(1-E99)-1)>=Coeff!$B$10,Coeff!$B$8/Coeff!$B$9*(G99*(1-E99)-1)/(G99-1),0)) -> 
H100: =IF(F100="","",IF((F100*E100-1)>=Coeff!$B$10,Coeff!$B$8/Coeff!$B$9*(F100*E100-1)/(F100-1),0)) ->  | I100: =IF(G100="","",IF((G100*(1-E100)-1)>=Coeff!$B$10,Coeff!$B$8/Coeff!$B$9*(G100*(1-E100)-1)/(G100-1),0)) -> 
H101: =IF(F101="","",IF((F101*E101-1)>=Coeff!$B$10,Coeff!$B$8/Coeff!$B$9*(F101*E101-1)/(F101-1),0)) ->  | I101: =IF(G101="","",IF((G101*(1-E101)-1)>=Coeff!$B$10,Coeff!$B$8/Coeff!$B$9*(G101*(1-E101)-1)/(G101-1),0)) -> 
H102: =IF(F102="","",IF((F102*E102-1)>=Coeff!$B$10,Coeff!$B$8/Coeff!$B$9*(F102*E102-1)/(F102-1),0)) ->  | I102: =IF(G102="","",IF((G102*(1-E102)-1)>=Coeff!$B$10,Coeff!$B$8/Coeff!$B$9*(G102*(1-E102)-1)/(G102-1),0)) -> 
H103: =IF(F103="","",IF((F103*E103-1)>=Coeff!$B$10,Coeff!$B$8/Coeff!$B$9*(F103*E103-1)/(F103-1),0)) ->  | I103: =IF(G103="","",IF((G103*(1-E103)-1)>=Coeff!$B$10,Coeff!$B$8/Coeff!$B$9*(G103*(1-E103)-1)/(G103-1),0)) -> 
H104: =IF(F104="","",IF((F104*E104-1)>=Coeff!$B$10,Coeff!$B$8/Coeff!$B$9*(F104*E104-1)/(F104-1),0)) ->  | I104: =IF(G104="","",IF((G104*(1-E104)-1)>=Coeff!$B$10,Coeff!$B$8/Coeff!$B$9*(G104*(1-E104)-1)/(G104-1),0)) -> 
H105: =IF(F105="","",IF((F105*E105-1)>=Coeff!$B$10,Coeff!$B$8/Coeff!$B$9*(F105*E105-1)/(F105-1),0)) ->  | I105: =IF(G105="","",IF((G105*(1-E105)-1)>=Coeff!$B$10,Coeff!$B$8/Coeff!$B$9*(G105*(1-E105)-1)/(G105-1),0)) -> 
H106: =IF(F106="","",IF((F106*E106-1)>=Coeff!$B$10,Coeff!$B$8/Coeff!$B$9*(F106*E106-1)/(F106-1),0)) ->  | I106: =IF(G106="","",IF((G106*(1-E106)-1)>=Coeff!$B$10,Coeff!$B$8/Coeff!$B$9*(G106*(1-E106)-1)/(G106-1),0)) -> 
H107: =IF(F107="","",IF((F107*E107-1)>=Coeff!$B$10,Coeff!$B$8/Coeff!$B$9*(F107*E107-1)/(F107-1),0)) ->  | I107: =IF(G107="","",IF((G107*(1-E107)-1)>=Coeff!$B$10,Coeff!$B$8/Coeff!$B$9*(G107*(1-E107)-1)/(G107-1),0)) -> 
H108: =IF(F108="","",IF((F108*E108-1)>=Coeff!$B$10,Coeff!$B$8/Coeff!$B$9*(F108*E108-1)/(F108-1),0)) ->  | I108: =IF(G108="","",IF((G108*(1-E108)-1)>=Coeff!$B$10,Coeff!$B$8/Coeff!$B$9*(G108*(1-E108)-1)/(G108-1),0)) -> 
H109: =IF(F109="","",IF((F109*E109-1)>=Coeff!$B$10,Coeff!$B$8/Coeff!$B$9*(F109*E109-1)/(F109-1),0)) ->  | I109: =IF(G109="","",IF((G109*(1-E109)-1)>=Coeff!$B$10,Coeff!$B$8/Coeff!$B$9*(G109*(1-E109)-1)/(G109-1),0)) -> 
H110: =IF(F110="","",IF((F110*E110-1)>=Coeff!$B$10,Coeff!$B$8/Coeff!$B$9*(F110*E110-1)/(F110-1),0)) ->  | I110: =IF(G110="","",IF((G110*(1-E110)-1)>=Coeff!$B$10,Coeff!$B$8/Coeff!$B$9*(G110*(1-E110)-1)/(G110-1),0)) -> 
H111: =IF(F111="","",IF((F111*E111-1)>=Coeff!$B$10,Coeff!$B$8/Coeff!$B$9*(F111*E111-1)/(F111-1),0)) ->  | I111: =IF(G111="","",IF((G111*(1-E111)-1)>=Coeff!$B$10,Coeff!$B$8/Coeff!$B$9*(G111*(1-E111)-1)/(G111-1),0)) -> 
H112: =IF(F112="","",IF((F112*E112-1)>=Coeff!$B$10,Coeff!$B$8/Coeff!$B$9*(F112*E112-1)/(F112-1),0)) ->  | I112: =IF(G112="","",IF((G112*(1-E112)-1)>=Coeff!$B$10,Coeff!$B$8/Coeff!$B$9*(G112*(1-E112)-1)/(G112-1),0)) -> 
H113: =IF(F113="","",IF((F113*E113-1)>=Coeff!$B$10,Coeff!$B$8/Coeff!$B$9*(F113*E113-1)/(F113-1),0)) ->  | I113: =IF(G113="","",IF((G113*(1-E113)-1)>=Coeff!$B$10,Coeff!$B$8/Coeff!$B$9*(G113*(1-E113)-1)/(G113-1),0)) -> 
H114: =IF(F114="","",IF((F114*E114-1)>=Coeff!$B$10,Coeff!$B$8/Coeff!$B$9*(F114*E114-1)/(F114-1),0)) ->  | I114: =IF(G114="","",IF((G114*(1-E114)-1)>=Coeff!$B$10,Coeff!$B$8/Coeff!$B$9*(G114*(1-E114)-1)/(G114-1),0)) -> 
H115: =IF(F115="","",IF((F115*E115-1)>=Coeff!$B$10,Coeff!$B$8/Coeff!$B$9*(F115*E115-1)/(F115-1),0)) ->  | I115: =IF(G115="","",IF((G115*(1-E115)-1)>=Coeff!$B$10,Coeff!$B$8/Coeff!$B$9*(G115*(1-E115)-1)/(G115-1),0)) -> 
H116: =IF(F116="","",IF((F116*E116-1)>=Coeff!$B$10,Coeff!$B$8/Coeff!$B$9*(F116*E116-1)/(F116-1),0)) ->  | I116: =IF(G116="","",IF((G116*(1-E116)-1)>=Coeff!$B$10,Coeff!$B$8/Coeff!$B$9*(G116*(1-E116)-1)/(G116-1),0)) -> 
H117: =IF(F117="","",IF((F117*E117-1)>=Coeff!$B$10,Coeff!$B$8/Coeff!$B$9*(F117*E117-1)/(F117-1),0)) ->  | I117: =IF(G117="","",IF((G117*(1-E117)-1)>=Coeff!$B$10,Coeff!$B$8/Coeff!$B$9*(G117*(1-E117)-1)/(G117-1),0)) -> 
H118: =IF(F118="","",IF((F118*E118-1)>=Coeff!$B$10,Coeff!$B$8/Coeff!$B$9*(F118*E118-1)/(F118-1),0)) ->  | I118: =IF(G118="","",IF((G118*(1-E118)-1)>=Coeff!$B$10,Coeff!$B$8/Coeff!$B$9*(G118*(1-E118)-1)/(G118-1),0)) -> 
H119: =IF(F119="","",IF((F119*E119-1)>=Coeff!$B$10,Coeff!$B$8/Coeff!$B$9*(F119*E119-1)/(F119-1),0)) ->  | I119: =IF(G119="","",IF((G119*(1-E119)-1)>=Coeff!$B$10,Coeff!$B$8/Coeff!$B$9*(G119*(1-E119)-1)/(G119-1),0)) -> 
H120: =IF(F120="","",IF((F120*E120-1)>=Coeff!$B$10,Coeff!$B$8/Coeff!$B$9*(F120*E120-1)/(F120-1),0)) ->  | I120: =IF(G120="","",IF((G120*(1-E120)-1)>=Coeff!$B$10,Coeff!$B$8/Coeff!$B$9*(G120*(1-E120)-1)/(G120-1),0)) -> 
H121: =IF(F121="","",IF((F121*E121-1)>=Coeff!$B$10,Coeff!$B$8/Coeff!$B$9*(F121*E121-1)/(F121-1),0)) ->  | I121: =IF(G121="","",IF((G121*(1-E121)-1)>=Coeff!$B$10,Coeff!$B$8/Coeff!$B$9*(G121*(1-E121)-1)/(G121-1),0)) -> 
H122: =IF(F122="","",IF((F122*E122-1)>=Coeff!$B$10,Coeff!$B$8/Coeff!$B$9*(F122*E122-1)/(F122-1),0)) ->  | I122: =IF(G122="","",IF((G122*(1-E122)-1)>=Coeff!$B$10,Coeff!$B$8/Coeff!$B$9*(G122*(1-E122)-1)/(G122-1),0)) -> 
H123: =IF(F123="","",IF((F123*E123-1)>=Coeff!$B$10,Coeff!$B$8/Coeff!$B$9*(F123*E123-1)/(F123-1),0)) ->  | I123: =IF(G123="","",IF((G123*(1-E123)-1)>=Coeff!$B$10,Coeff!$B$8/Coeff!$B$9*(G123*(1-E123)-1)/(G123-1),0)) -> 
H124: =IF(F124="","",IF((F124*E124-1)>=Coeff!$B$10,Coeff!$B$8/Coeff!$B$9*(F124*E124-1)/(F124-1),0)) ->  | I124: =IF(G124="","",IF((G124*(1-E124)-1)>=Coeff!$B$10,Coeff!$B$8/Coeff!$B$9*(G124*(1-E124)-1)/(G124-1),0)) -> 
H125: =IF(F125="","",IF((F125*E125-1)>=Coeff!$B$10,Coeff!$B$8/Coeff!$B$9*(F125*E125-1)/(F125-1),0)) ->  | I125: =IF(G125="","",IF((G125*(1-E125)-1)>=Coeff!$B$10,Coeff!$B$8/Coeff!$B$9*(G125*(1-E125)-1)/(G125-1),0)) -> 
H126: =IF(F126="","",IF((F126*E126-1)>=Coeff!$B$10,Coeff!$B$8/Coeff!$B$9*(F126*E126-1)/(F126-1),0)) ->  | I126: =IF(G126="","",IF((G126*(1-E126)-1)>=Coeff!$B$10,Coeff!$B$8/Coeff!$B$9*(G126*(1-E126)-1)/(G126-1),0)) -> 
H127: =IF(F127="","",IF((F127*E127-1)>=Coeff!$B$10,Coeff!$B$8/Coeff!$B$9*(F127*E127-1)/(F127-1),0)) ->  | I127: =IF(G127="","",IF((G127*(1-E127)-1)>=Coeff!$B$10,Coeff!$B$8/Coeff!$B$9*(G127*(1-E127)-1)/(G127-1),0)) -> 
H128: =IF(F128="","",IF((F128*E128-1)>=Coeff!$B$10,Coeff!$B$8/Coeff!$B$9*(F128*E128-1)/(F128-1),0)) ->  | I128: =IF(G128="","",IF((G128*(1-E128)-1)>=Coeff!$B$10,Coeff!$B$8/Coeff!$B$9*(G128*(1-E128)-1)/(G128-1),0)) -> 
H129: =IF(F129="","",IF((F129*E129-1)>=Coeff!$B$10,Coeff!$B$8/Coeff!$B$9*(F129*E129-1)/(F129-1),0)) ->  | I129: =IF(G129="","",IF((G129*(1-E129)-1)>=Coeff!$B$10,Coeff!$B$8/Coeff!$B$9*(G129*(1-E129)-1)/(G129-1),0)) -> 
H130: =IF(F130="","",IF((F130*E130-1)>=Coeff!$B$10,Coeff!$B$8/Coeff!$B$9*(F130*E130-1)/(F130-1),0)) ->  | I130: =IF(G130="","",IF((G130*(1-E130)-1)>=Coeff!$B$10,Coeff!$B$8/Coeff!$B$9*(G130*(1-E130)-1)/(G130-1),0)) -> 
H131: =IF(F131="","",IF((F131*E131-1)>=Coeff!$B$10,Coeff!$B$8/Coeff!$B$9*(F131*E131-1)/(F131-1),0)) ->  | I131: =IF(G131="","",IF((G131*(1-E131)-1)>=Coeff!$B$10,Coeff!$B$8/Coeff!$B$9*(G131*(1-E131)-1)/(G131-1),0)) -> 
H132: =IF(F132="","",IF((F132*E132-1)>=Coeff!$B$10,Coeff!$B$8/Coeff!$B$9*(F132*E132-1)/(F132-1),0)) ->  | I132: =IF(G132="","",IF((G132*(1-E132)-1)>=Coeff!$B$10,Coeff!$B$8/Coeff!$B$9*(G132*(1-E132)-1)/(G132-1),0)) -> 
H133: =IF(F133="","",IF((F133*E133-1)>=Coeff!$B$10,Coeff!$B$8/Coeff!$B$9*(F133*E133-1)/(F133-1),0)) ->  | I133: =IF(G133="","",IF((G133*(1-E133)-1)>=Coeff!$B$10,Coeff!$B$8/Coeff!$B$9*(G133*(1-E133)-1)/(G133-1),0)) -> 
H134: =IF(F134="","",IF((F134*E134-1)>=Coeff!$B$10,Coeff!$B$8/Coeff!$B$9*(F134*E134-1)/(F134-1),0)) ->  | I134: =IF(G134="","",IF((G134*(1-E134)-1)>=Coeff!$B$10,Coeff!$B$8/Coeff!$B$9*(G134*(1-E134)-1)/(G134-1),0)) -> 
H135: =IF(F135="","",IF((F135*E135-1)>=Coeff!$B$10,Coeff!$B$8/Coeff!$B$9*(F135*E135-1)/(F135-1),0)) ->  | I135: =IF(G135="","",IF((G135*(1-E135)-1)>=Coeff!$B$10,Coeff!$B$8/Coeff!$B$9*(G135*(1-E135)-1)/(G135-1),0)) -> 
H136: =IF(F136="","",IF((F136*E136-1)>=Coeff!$B$10,Coeff!$B$8/Coeff!$B$9*(F136*E136-1)/(F136-1),0)) ->  | I136: =IF(G136="","",IF((G136*(1-E136)-1)>=Coeff!$B$10,Coeff!$B$8/Coeff!$B$9*(G136*(1-E136)-1)/(G136-1),0)) -> 
H137: =IF(F137="","",IF((F137*E137-1)>=Coeff!$B$10,Coeff!$B$8/Coeff!$B$9*(F137*E137-1)/(F137-1),0)) ->  | I137: =IF(G137="","",IF((G137*(1-E137)-1)>=Coeff!$B$10,Coeff!$B$8/Coeff!$B$9*(G137*(1-E137)-1)/(G137-1),0)) -> 
H138: =IF(F138="","",IF((F138*E138-1)>=Coeff!$B$10,Coeff!$B$8/Coeff!$B$9*(F138*E138-1)/(F138-1),0)) ->  | I138: =IF(G138="","",IF((G138*(1-E138)-1)>=Coeff!$B$10,Coeff!$B$8/Coeff!$B$9*(G138*(1-E138)-1)/(G138-1),0)) -> 
H139: =IF(F139="","",IF((F139*E139-1)>=Coeff!$B$10,Coeff!$B$8/Coeff!$B$9*(F139*E139-1)/(F139-1),0)) ->  | I139: =IF(G139="","",IF((G139*(1-E139)-1)>=Coeff!$B$10,Coeff!$B$8/Coeff!$B$9*(G139*(1-E139)-1)/(G139-1),0)) -> 
H140: =IF(F140="","",IF((F140*E140-1)>=Coeff!$B$10,Coeff!$B$8/Coeff!$B$9*(F140*E140-1)/(F140-1),0)) ->  | I140: =IF(G140="","",IF((G140*(1-E140)-1)>=Coeff!$B$10,Coeff!$B$8/Coeff!$B$9*(G140*(1-E140)-1)/(G140-1),0)) -> 
H141: =IF(F141="","",IF((F141*E141-1)>=Coeff!$B$10,Coeff!$B$8/Coeff!$B$9*(F141*E141-1)/(F141-1),0)) ->  | I141: =IF(G141="","",IF((G141*(1-E141)-1)>=Coeff!$B$10,Coeff!$B$8/Coeff!$B$9*(G141*(1-E141)-1)/(G141-1),0)) -> 
H142: =IF(F142="","",IF((F142*E142-1)>=Coeff!$B$10,Coeff!$B$8/Coeff!$B$9*(F142*E142-1)/(F142-1),0)) ->  | I142: =IF(G142="","",IF((G142*(1-E142)-1)>=Coeff!$B$10,Coeff!$B$8/Coeff!$B$9*(G142*(1-E142)-1)/(G142-1),0)) -> 
H143: =IF(F143="","",IF((F143*E143-1)>=Coeff!$B$10,Coeff!$B$8/Coeff!$B$9*(F143*E143-1)/(F143-1),0)) ->  | I143: =IF(G143="","",IF((G143*(1-E143)-1)>=Coeff!$B$10,Coeff!$B$8/Coeff!$B$9*(G143*(1-E143)-1)/(G143-1),0)) -> 
H144: =IF(F144="","",IF((F144*E144-1)>=Coeff!$B$10,Coeff!$B$8/Coeff!$B$9*(F144*E144-1)/(F144-1),0)) ->  | I144: =IF(G144="","",IF((G144*(1-E144)-1)>=Coeff!$B$10,Coeff!$B$8/Coeff!$B$9*(G144*(1-E144)-1)/(G144-1),0)) -> 
H145: =IF(F145="","",IF((F145*E145-1)>=Coeff!$B$10,Coeff!$B$8/Coeff!$B$9*(F145*E145-1)/(F145-1),0)) ->  | I145: =IF(G145="","",IF((G145*(1-E145)-1)>=Coeff!$B$10,Coeff!$B$8/Coeff!$B$9*(G145*(1-E145)-1)/(G145-1),0)) -> 
H146: =IF(F146="","",IF((F146*E146-1)>=Coeff!$B$10,Coeff!$B$8/Coeff!$B$9*(F146*E146-1)/(F146-1),0)) ->  | I146: =IF(G146="","",IF((G146*(1-E146)-1)>=Coeff!$B$10,Coeff!$B$8/Coeff!$B$9*(G146*(1-E146)-1)/(G146-1),0)) -> 
H147: =IF(F147="","",IF((F147*E147-1)>=Coeff!$B$10,Coeff!$B$8/Coeff!$B$9*(F147*E147-1)/(F147-1),0)) ->  | I147: =IF(G147="","",IF((G147*(1-E147)-1)>=Coeff!$B$10,Coeff!$B$8/Coeff!$B$9*(G147*(1-E147)-1)/(G147-1),0)) -> 
H148: =IF(F148="","",IF((F148*E148-1)>=Coeff!$B$10,Coeff!$B$8/Coeff!$B$9*(F148*E148-1)/(F148-1),0)) ->  | I148: =IF(G148="","",IF((G148*(1-E148)-1)>=Coeff!$B$10,Coeff!$B$8/Coeff!$B$9*(G148*(1-E148)-1)/(G148-1),0)) -> 
H149: =IF(F149="","",IF((F149*E149-1)>=Coeff!$B$10,Coeff!$B$8/Coeff!$B$9*(F149*E149-1)/(F149-1),0)) ->  | I149: =IF(G149="","",IF((G149*(1-E149)-1)>=Coeff!$B$10,Coeff!$B$8/Coeff!$B$9*(G149*(1-E149)-1)/(G149-1),0)) -> 
H150: =IF(F150="","",IF((F150*E150-1)>=Coeff!$B$10,Coeff!$B$8/Coeff!$B$9*(F150*E150-1)/(F150-1),0)) ->  | I150: =IF(G150="","",IF((G150*(1-E150)-1)>=Coeff!$B$10,Coeff!$B$8/Coeff!$B$9*(G150*(1-E150)-1)/(G150-1),0)) -> 
H151: =IF(F151="","",IF((F151*E151-1)>=Coeff!$B$10,Coeff!$B$8/Coeff!$B$9*(F151*E151-1)/(F151-1),0)) ->  | I151: =IF(G151="","",IF((G151*(1-E151)-1)>=Coeff!$B$10,Coeff!$B$8/Coeff!$B$9*(G151*(1-E151)-1)/(G151-1),0)) -> 
H152: =IF(F152="","",IF((F152*E152-1)>=Coeff!$B$10,Coeff!$B$8/Coeff!$B$9*(F152*E152-1)/(F152-1),0)) ->  | I152: =IF(G152="","",IF((G152*(1-E152)-1)>=Coeff!$B$10,Coeff!$B$8/Coeff!$B$9*(G152*(1-E152)-1)/(G152-1),0)) -> 
H153: =IF(F153="","",IF((F153*E153-1)>=Coeff!$B$10,Coeff!$B$8/Coeff!$B$9*(F153*E153-1)/(F153-1),0)) ->  | I153: =IF(G153="","",IF((G153*(1-E153)-1)>=Coeff!$B$10,Coeff!$B$8/Coeff!$B$9*(G153*(1-E153)-1)/(G153-1),0)) -> 
H154: =IF(F154="","",IF((F154*E154-1)>=Coeff!$B$10,Coeff!$B$8/Coeff!$B$9*(F154*E154-1)/(F154-1),0)) ->  | I154: =IF(G154="","",IF((G154*(1-E154)-1)>=Coeff!$B$10,Coeff!$B$8/Coeff!$B$9*(G154*(1-E154)-1)/(G154-1),0)) -> 
H155: =IF(F155="","",IF((F155*E155-1)>=Coeff!$B$10,Coeff!$B$8/Coeff!$B$9*(F155*E155-1)/(F155-1),0)) ->  | I155: =IF(G155="","",IF((G155*(1-E155)-1)>=Coeff!$B$10,Coeff!$B$8/Coeff!$B$9*(G155*(1-E155)-1)/(G155-1),0)) -> 
H156: =IF(F156="","",IF((F156*E156-1)>=Coeff!$B$10,Coeff!$B$8/Coeff!$B$9*(F156*E156-1)/(F156-1),0)) ->  | I156: =IF(G156="","",IF((G156*(1-E156)-1)>=Coeff!$B$10,Coeff!$B$8/Coeff!$B$9*(G156*(1-E156)-1)/(G156-1),0)) -> 
H157: =IF(F157="","",IF((F157*E157-1)>=Coeff!$B$10,Coeff!$B$8/Coeff!$B$9*(F157*E157-1)/(F157-1),0)) ->  | I157: =IF(G157="","",IF((G157*(1-E157)-1)>=Coeff!$B$10,Coeff!$B$8/Coeff!$B$9*(G157*(1-E157)-1)/(G157-1),0)) -> 
H158: =IF(F158="","",IF((F158*E158-1)>=Coeff!$B$10,Coeff!$B$8/Coeff!$B$9*(F158*E158-1)/(F158-1),0)) ->  | I158: =IF(G158="","",IF((G158*(1-E158)-1)>=Coeff!$B$10,Coeff!$B$8/Coeff!$B$9*(G158*(1-E158)-1)/(G158-1),0)) -> 
H159: =IF(F159="","",IF((F159*E159-1)>=Coeff!$B$10,Coeff!$B$8/Coeff!$B$9*(F159*E159-1)/(F159-1),0)) ->  | I159: =IF(G159="","",IF((G159*(1-E159)-1)>=Coeff!$B$10,Coeff!$B$8/Coeff!$B$9*(G159*(1-E159)-1)/(G159-1),0)) -> 
H160: =IF(F160="","",IF((F160*E160-1)>=Coeff!$B$10,Coeff!$B$8/Coeff!$B$9*(F160*E160-1)/(F160-1),0)) ->  | I160: =IF(G160="","",IF((G160*(1-E160)-1)>=Coeff!$B$10,Coeff!$B$8/Coeff!$B$9*(G160*(1-E160)-1)/(G160-1),0)) -> 
H161: =IF(F161="","",IF((F161*E161-1)>=Coeff!$B$10,Coeff!$B$8/Coeff!$B$9*(F161*E161-1)/(F161-1),0)) ->  | I161: =IF(G161="","",IF((G161*(1-E161)-1)>=Coeff!$B$10,Coeff!$B$8/Coeff!$B$9*(G161*(1-E161)-1)/(G161-1),0)) -> 
H162: =IF(F162="","",IF((F162*E162-1)>=Coeff!$B$10,Coeff!$B$8/Coeff!$B$9*(F162*E162-1)/(F162-1),0)) ->  | I162: =IF(G162="","",IF((G162*(1-E162)-1)>=Coeff!$B$10,Coeff!$B$8/Coeff!$B$9*(G162*(1-E162)-1)/(G162-1),0)) -> 
H163: =IF(F163="","",IF((F163*E163-1)>=Coeff!$B$10,Coeff!$B$8/Coeff!$B$9*(F163*E163-1)/(F163-1),0)) ->  | I163: =IF(G163="","",IF((G163*(1-E163)-1)>=Coeff!$B$10,Coeff!$B$8/Coeff!$B$9*(G163*(1-E163)-1)/(G163-1),0)) -> 
H164: =IF(F164="","",IF((F164*E164-1)>=Coeff!$B$10,Coeff!$B$8/Coeff!$B$9*(F164*E164-1)/(F164-1),0)) ->  | I164: =IF(G164="","",IF((G164*(1-E164)-1)>=Coeff!$B$10,Coeff!$B$8/Coeff!$B$9*(G164*(1-E164)-1)/(G164-1),0)) -> 
H165: =IF(F165="","",IF((F165*E165-1)>=Coeff!$B$10,Coeff!$B$8/Coeff!$B$9*(F165*E165-1)/(F165-1),0)) ->  | I165: =IF(G165="","",IF((G165*(1-E165)-1)>=Coeff!$B$10,Coeff!$B$8/Coeff!$B$9*(G165*(1-E165)-1)/(G165-1),0)) -> 
H166: =IF(F166="","",IF((F166*E166-1)>=Coeff!$B$10,Coeff!$B$8/Coeff!$B$9*(F166*E166-1)/(F166-1),0)) ->  | I166: =IF(G166="","",IF((G166*(1-E166)-1)>=Coeff!$B$10,Coeff!$B$8/Coeff!$B$9*(G166*(1-E166)-1)/(G166-1),0)) -> 
H167: =IF(F167="","",IF((F167*E167-1)>=Coeff!$B$10,Coeff!$B$8/Coeff!$B$9*(F167*E167-1)/(F167-1),0)) ->  | I167: =IF(G167="","",IF((G167*(1-E167)-1)>=Coeff!$B$10,Coeff!$B$8/Coeff!$B$9*(G167*(1-E167)-1)/(G167-1),0)) -> 
H168: =IF(F168="","",IF((F168*E168-1)>=Coeff!$B$10,Coeff!$B$8/Coeff!$B$9*(F168*E168-1)/(F168-1),0)) ->  | I168: =IF(G168="","",IF((G168*(1-E168)-1)>=Coeff!$B$10,Coeff!$B$8/Coeff!$B$9*(G168*(1-E168)-1)/(G168-1),0)) -> 
H169: =IF(F169="","",IF((F169*E169-1)>=Coeff!$B$10,Coeff!$B$8/Coeff!$B$9*(F169*E169-1)/(F169-1),0)) ->  | I169: =IF(G169="","",IF((G169*(1-E169)-1)>=Coeff!$B$10,Coeff!$B$8/Coeff!$B$9*(G169*(1-E169)-1)/(G169-1),0)) -> 
H170: =IF(F170="","",IF((F170*E170-1)>=Coeff!$B$10,Coeff!$B$8/Coeff!$B$9*(F170*E170-1)/(F170-1),0)) ->  | I170: =IF(G170="","",IF((G170*(1-E170)-1)>=Coeff!$B$10,Coeff!$B$8/Coeff!$B$9*(G170*(1-E170)-1)/(G170-1),0)) -> 
H171: =IF(F171="","",IF((F171*E171-1)>=Coeff!$B$10,Coeff!$B$8/Coeff!$B$9*(F171*E171-1)/(F171-1),0)) ->  | I171: =IF(G171="","",IF((G171*(1-E171)-1)>=Coeff!$B$10,Coeff!$B$8/Coeff!$B$9*(G171*(1-E171)-1)/(G171-1),0)) -> 
H172: =IF(F172="","",IF((F172*E172-1)>=Coeff!$B$10,Coeff!$B$8/Coeff!$B$9*(F172*E172-1)/(F172-1),0)) ->  | I172: =IF(G172="","",IF((G172*(1-E172)-1)>=Coeff!$B$10,Coeff!$B$8/Coeff!$B$9*(G172*(1-E172)-1)/(G172-1),0)) -> 
H173: =IF(F173="","",IF((F173*E173-1)>=Coeff!$B$10,Coeff!$B$8/Coeff!$B$9*(F173*E173-1)/(F173-1),0)) ->  | I173: =IF(G173="","",IF((G173*(1-E173)-1)>=Coeff!$B$10,Coeff!$B$8/Coeff!$B$9*(G173*(1-E173)-1)/(G173-1),0)) -> 
H174: =IF(F174="","",IF((F174*E174-1)>=Coeff!$B$10,Coeff!$B$8/Coeff!$B$9*(F174*E174-1)/(F174-1),0)) ->  | I174: =IF(G174="","",IF((G174*(1-E174)-1)>=Coeff!$B$10,Coeff!$B$8/Coeff!$B$9*(G174*(1-E174)-1)/(G174-1),0)) -> 
H175: =IF(F175="","",IF((F175*E175-1)>=Coeff!$B$10,Coeff!$B$8/Coeff!$B$9*(F175*E175-1)/(F175-1),0)) ->  | I175: =IF(G175="","",IF((G175*(1-E175)-1)>=Coeff!$B$10,Coeff!$B$8/Coeff!$B$9*(G175*(1-E175)-1)/(G175-1),0)) -> 
H176: =IF(F176="","",IF((F176*E176-1)>=Coeff!$B$10,Coeff!$B$8/Coeff!$B$9*(F176*E176-1)/(F176-1),0)) ->  | I176: =IF(G176="","",IF((G176*(1-E176)-1)>=Coeff!$B$10,Coeff!$B$8/Coeff!$B$9*(G176*(1-E176)-1)/(G176-1),0)) -> 
H177: =IF(F177="","",IF((F177*E177-1)>=Coeff!$B$10,Coeff!$B$8/Coeff!$B$9*(F177*E177-1)/(F177-1),0)) ->  | I177: =IF(G177="","",IF((G177*(1-E177)-1)>=Coeff!$B$10,Coeff!$B$8/Coeff!$B$9*(G177*(1-E177)-1)/(G177-1),0)) -> 
H178: =IF(F178="","",IF((F178*E178-1)>=Coeff!$B$10,Coeff!$B$8/Coeff!$B$9*(F178*E178-1)/(F178-1),0)) ->  | I178: =IF(G178="","",IF((G178*(1-E178)-1)>=Coeff!$B$10,Coeff!$B$8/Coeff!$B$9*(G178*(1-E178)-1)/(G178-1),0)) -> 
H179: =IF(F179="","",IF((F179*E179-1)>=Coeff!$B$10,Coeff!$B$8/Coeff!$B$9*(F179*E179-1)/(F179-1),0)) ->  | I179: =IF(G179="","",IF((G179*(1-E179)-1)>=Coeff!$B$10,Coeff!$B$8/Coeff!$B$9*(G179*(1-E179)-1)/(G179-1),0)) -> 
H180: =IF(F180="","",IF((F180*E180-1)>=Coeff!$B$10,Coeff!$B$8/Coeff!$B$9*(F180*E180-1)/(F180-1),0)) ->  | I180: =IF(G180="","",IF((G180*(1-E180)-1)>=Coeff!$B$10,Coeff!$B$8/Coeff!$B$9*(G180*(1-E180)-1)/(G180-1),0)) -> 
H181: =IF(F181="","",IF((F181*E181-1)>=Coeff!$B$10,Coeff!$B$8/Coeff!$B$9*(F181*E181-1)/(F181-1),0)) ->  | I181: =IF(G181="","",IF((G181*(1-E181)-1)>=Coeff!$B$10,Coeff!$B$8/Coeff!$B$9*(G181*(1-E181)-1)/(G181-1),0)) -> 
H182: =IF(F182="","",IF((F182*E182-1)>=Coeff!$B$10,Coeff!$B$8/Coeff!$B$9*(F182*E182-1)/(F182-1),0)) ->  | I182: =IF(G182="","",IF((G182*(1-E182)-1)>=Coeff!$B$10,Coeff!$B$8/Coeff!$B$9*(G182*(1-E182)-1)/(G182-1),0)) -> 
H183: =IF(F183="","",IF((F183*E183-1)>=Coeff!$B$10,Coeff!$B$8/Coeff!$B$9*(F183*E183-1)/(F183-1),0)) ->  | I183: =IF(G183="","",IF((G183*(1-E183)-1)>=Coeff!$B$10,Coeff!$B$8/Coeff!$B$9*(G183*(1-E183)-1)/(G183-1),0)) -> 
H184: =IF(F184="","",IF((F184*E184-1)>=Coeff!$B$10,Coeff!$B$8/Coeff!$B$9*(F184*E184-1)/(F184-1),0)) ->  | I184: =IF(G184="","",IF((G184*(1-E184)-1)>=Coeff!$B$10,Coeff!$B$8/Coeff!$B$9*(G184*(1-E184)-1)/(G184-1),0)) -> 
H185: =IF(F185="","",IF((F185*E185-1)>=Coeff!$B$10,Coeff!$B$8/Coeff!$B$9*(F185*E185-1)/(F185-1),0)) ->  | I185: =IF(G185="","",IF((G185*(1-E185)-1)>=Coeff!$B$10,Coeff!$B$8/Coeff!$B$9*(G185*(1-E185)-1)/(G185-1),0)) -> 
H186: =IF(F186="","",IF((F186*E186-1)>=Coeff!$B$10,Coeff!$B$8/Coeff!$B$9*(F186*E186-1)/(F186-1),0)) ->  | I186: =IF(G186="","",IF((G186*(1-E186)-1)>=Coeff!$B$10,Coeff!$B$8/Coeff!$B$9*(G186*(1-E186)-1)/(G186-1),0)) -> 
H187: =IF(F187="","",IF((F187*E187-1)>=Coeff!$B$10,Coeff!$B$8/Coeff!$B$9*(F187*E187-1)/(F187-1),0)) ->  | I187: =IF(G187="","",IF((G187*(1-E187)-1)>=Coeff!$B$10,Coeff!$B$8/Coeff!$B$9*(G187*(1-E187)-1)/(G187-1),0)) -> 
H188: =IF(F188="","",IF((F188*E188-1)>=Coeff!$B$10,Coeff!$B$8/Coeff!$B$9*(F188*E188-1)/(F188-1),0)) ->  | I188: =IF(G188="","",IF((G188*(1-E188)-1)>=Coeff!$B$10,Coeff!$B$8/Coeff!$B$9*(G188*(1-E188)-1)/(G188-1),0)) -> 
H189: =IF(F189="","",IF((F189*E189-1)>=Coeff!$B$10,Coeff!$B$8/Coeff!$B$9*(F189*E189-1)/(F189-1),0)) ->  | I189: =IF(G189="","",IF((G189*(1-E189)-1)>=Coeff!$B$10,Coeff!$B$8/Coeff!$B$9*(G189*(1-E189)-1)/(G189-1),0)) -> 
H190: =IF(F190="","",IF((F190*E190-1)>=Coeff!$B$10,Coeff!$B$8/Coeff!$B$9*(F190*E190-1)/(F190-1),0)) ->  | I190: =IF(G190="","",IF((G190*(1-E190)-1)>=Coeff!$B$10,Coeff!$B$8/Coeff!$B$9*(G190*(1-E190)-1)/(G190-1),0)) -> 
H191: =IF(F191="","",IF((F191*E191-1)>=Coeff!$B$10,Coeff!$B$8/Coeff!$B$9*(F191*E191-1)/(F191-1),0)) ->  | I191: =IF(G191="","",IF((G191*(1-E191)-1)>=Coeff!$B$10,Coeff!$B$8/Coeff!$B$9*(G191*(1-E191)-1)/(G191-1),0)) -> 
H192: =IF(F192="","",IF((F192*E192-1)>=Coeff!$B$10,Coeff!$B$8/Coeff!$B$9*(F192*E192-1)/(F192-1),0)) ->  | I192: =IF(G192="","",IF((G192*(1-E192)-1)>=Coeff!$B$10,Coeff!$B$8/Coeff!$B$9*(G192*(1-E192)-1)/(G192-1),0)) -> 
H193: =IF(F193="","",IF((F193*E193-1)>=Coeff!$B$10,Coeff!$B$8/Coeff!$B$9*(F193*E193-1)/(F193-1),0)) ->  | I193: =IF(G193="","",IF((G193*(1-E193)-1)>=Coeff!$B$10,Coeff!$B$8/Coeff!$B$9*(G193*(1-E193)-1)/(G193-1),0)) -> 
H194: =IF(F194="","",IF((F194*E194-1)>=Coeff!$B$10,Coeff!$B$8/Coeff!$B$9*(F194*E194-1)/(F194-1),0)) ->  | I194: =IF(G194="","",IF((G194*(1-E194)-1)>=Coeff!$B$10,Coeff!$B$8/Coeff!$B$9*(G194*(1-E194)-1)/(G194-1),0)) -> 
H195: =IF(F195="","",IF((F195*E195-1)>=Coeff!$B$10,Coeff!$B$8/Coeff!$B$9*(F195*E195-1)/(F195-1),0)) ->  | I195: =IF(G195="","",IF((G195*(1-E195)-1)>=Coeff!$B$10,Coeff!$B$8/Coeff!$B$9*(G195*(1-E195)-1)/(G195-1),0)) -> 
H196: =IF(F196="","",IF((F196*E196-1)>=Coeff!$B$10,Coeff!$B$8/Coeff!$B$9*(F196*E196-1)/(F196-1),0)) ->  | I196: =IF(G196="","",IF((G196*(1-E196)-1)>=Coeff!$B$10,Coeff!$B$8/Coeff!$B$9*(G196*(1-E196)-1)/(G196-1),0)) -> 
H197: =IF(F197="","",IF((F197*E197-1)>=Coeff!$B$10,Coeff!$B$8/Coeff!$B$9*(F197*E197-1)/(F197-1),0)) ->  | I197: =IF(G197="","",IF((G197*(1-E197)-1)>=Coeff!$B$10,Coeff!$B$8/Coeff!$B$9*(G197*(1-E197)-1)/(G197-1),0)) -> 
H198: =IF(F198="","",IF((F198*E198-1)>=Coeff!$B$10,Coeff!$B$8/Coeff!$B$9*(F198*E198-1)/(F198-1),0)) ->  | I198: =IF(G198="","",IF((G198*(1-E198)-1)>=Coeff!$B$10,Coeff!$B$8/Coeff!$B$9*(G198*(1-E198)-1)/(G198-1),0)) -> 
H199: =IF(F199="","",IF((F199*E199-1)>=Coeff!$B$10,Coeff!$B$8/Coeff!$B$9*(F199*E199-1)/(F199-1),0)) ->  | I199: =IF(G199="","",IF((G199*(1-E199)-1)>=Coeff!$B$10,Coeff!$B$8/Coeff!$B$9*(G199*(1-E199)-1)/(G199-1),0)) -> 
H200: =IF(F200="","",IF((F200*E200-1)>=Coeff!$B$10,Coeff!$B$8/Coeff!$B$9*(F200*E200-1)/(F200-1),0)) ->  | I200: =IF(G200="","",IF((G200*(1-E200)-1)>=Coeff!$B$10,Coeff!$B$8/Coeff!$B$9*(G200*(1-E200)-1)/(G200-1),0)) -> 
H201: =IF(F201="","",IF((F201*E201-1)>=Coeff!$B$10,Coeff!$B$8/Coeff!$B$9*(F201*E201-1)/(F201-1),0)) ->  | I201: =IF(G201="","",IF((G201*(1-E201)-1)>=Coeff!$B$10,Coeff!$B$8/Coeff!$B$9*(G201*(1-E201)-1)/(G201-1),0)) -> 
H202: =IF(F202="","",IF((F202*E202-1)>=Coeff!$B$10,Coeff!$B$8/Coeff!$B$9*(F202*E202-1)/(F202-1),0)) ->  | I202: =IF(G202="","",IF((G202*(1-E202)-1)>=Coeff!$B$10,Coeff!$B$8/Coeff!$B$9*(G202*(1-E202)-1)/(G202-1),0)) -> 
... 298 more rows

Sheet totals
A3: League | B3: Team1 | C3: Team2 | D3: TotalsLine | E3: Prob (Over) | F3: OddsOver | G3: OddsUnder | H3: $BetOver | I3: $BetUnder
A4: Austria tipp3-Bundesliga | B4: Wiener Neustadt | C4: RZ Pellets WAC | H4: =IF(F4="","",IF((F4*E4-1)>=Coeff!$B$15,Coeff!$B$13/Coeff!$B$14*(F4*E4-1)/(F4-1),0)) ->  | I4: =IF(G4="","",IF((G4*(1-E4)-1)>=Coeff!$B$15,Coeff!$B$13/Coeff!$B$14*(G4*(1-E4)-1)/(G4-1),0)) -> 
A5: Austria tipp3-Bundesliga | B5: Austria Wien | C5: Mattersburg | D5: 3 | E5: 0.391 | F5: 1.99 | G5: 1.91 | H5: =IF(F5="","",IF((F5*E5-1)>=Coeff!$B$15,Coeff!$B$13/Coeff!$B$14*(F5*E5-1)/(F5-1),0)) -> 0 | I5: =IF(G5="","",IF((G5*(1-E5)-1)>=Coeff!$B$15,Coeff!$B$13/Coeff!$B$14*(G5*(1-E5)-1)/(G5-1),0)) -> 17.93296703
A6: Austria tipp3-Bundesliga | B6: Adm/Modling | C6: Rapid Wien | D6: 2.75 | E6: 0.397 | F6: 1.93 | G6: 1.97 | H6: =IF(F6="","",IF((F6*E6-1)>=Coeff!$B$15,Coeff!$B$13/Coeff!$B$14*(F6*E6-1)/(F6-1),0)) -> 0 | I6: =IF(G6="","",IF((G6*(1-E6)-1)>=Coeff!$B$15,Coeff!$B$13/Coeff!$B$14*(G6*(1-E6)-1)/(G6-1),0)) -> 19.37216495
A7: Austria tipp3-Bundesliga | B7: FC Wacker Innsbruck | C7: Sturm Graz | D7: 2.75 | E7: 0.37 | F7: 1.85 | G7: 2.05 | H7: =IF(F7="","",IF((F7*E7-1)>=Coeff!$B$15,Coeff!$B$13/Coeff!$B$14*(F7*E7-1)/(F7-1),0)) -> 0 | I7: =IF(G7="","",IF((G7*(1-E7)-1)>=Coeff!$B$15,Coeff!$B$13/Coeff!$B$14*(G7*(1-E7)-1)/(G7-1),0)) -> 27.76190476
A8: Austria tipp3-Bundesliga | B8: Ried | C8: Salzburg | D8: 2.75 | E8: 0.346 | F8: 1.84 | G8: 2.06 | H8: =IF(F8="","",IF((F8*E8-1)>=Coeff!$B$15,Coeff!$B$13/Coeff!$B$14*(F8*E8-1)/(F8-1),0)) -> 0 | I8: =IF(G8="","",IF((G8*(1-E8)-1)>=Coeff!$B$15,Coeff!$B$13/Coeff!$B$14*(G8*(1-E8)-1)/(G8-1),0)) -> 32.75849057
A9: Austria ADEG Erste Liga | B9: Vienna FC | C9: SV Horn | H9: =IF(F9="","",IF((F9*E9-1)>=Coeff!$B$15,Coeff!$B$13/Coeff!$B$14*(F9*E9-1)/(F9-1),0)) ->  | I9: =IF(G9="","",IF((G9*(1-E9)-1)>=Coeff!$B$15,Coeff!$B$13/Coeff!$B$14*(G9*(1-E9)-1)/(G9-1),0)) -> 
A10: Belarus Premier Division | B10: FC Minsk | C10: Shakhtyor Soligorsk | H10: =IF(F10="","",IF((F10*E10-1)>=Coeff!$B$15,Coeff!$B$13/Coeff!$B$14*(F10*E10-1)/(F10-1),0)) ->  | I10: =IF(G10="","",IF((G10*(1-E10)-1)>=Coeff!$B$15,Coeff!$B$13/Coeff!$B$14*(G10*(1-E10)-1)/(G10-1),0)) -> 
A11: Belarus Premier Division | B11: Belshina Bobruisk | C11: Dinamo Minsk | H11: =IF(F11="","",IF((F11*E11-1)>=Coeff!$B$15,Coeff!$B$13/Coeff!$B$14*(F11*E11-1)/(F11-1),0)) ->  | I11: =IF(G11="","",IF((G11*(1-E11)-1)>=Coeff!$B$15,Coeff!$B$13/Coeff!$B$14*(G11*(1-E11)-1)/(G11-1),0)) -> 
A12: Bulgaria A Grupa | B12: Botev Vratsa | C12: Montana | H12: =IF(F12="","",IF((F12*E12-1)>=Coeff!$B$15,Coeff!$B$13/Coeff!$B$14*(F12*E12-1)/(F12-1),0)) ->  | I12: =IF(G12="","",IF((G12*(1-E12)-1)>=Coeff!$B$15,Coeff!$B$13/Coeff!$B$14*(G12*(1-E12)-1)/(G12-1),0)) -> 
A13: Bulgaria A Grupa | B13: Slavia Sofia | C13: Chernomorets Burgas | H13: =IF(F13="","",IF((F13*E13-1)>=Coeff!$B$15,Coeff!$B$13/Coeff!$B$14*(F13*E13-1)/(F13-1),0)) ->  | I13: =IF(G13="","",IF((G13*(1-E13)-1)>=Coeff!$B$15,Coeff!$B$13/Coeff!$B$14*(G13*(1-E13)-1)/(G13-1),0)) -> 
A14: Bulgaria A Grupa | B14: Litex Lovech | C14: Lokomotiv Sofia | H14: =IF(F14="","",IF((F14*E14-1)>=Coeff!$B$15,Coeff!$B$13/Coeff!$B$14*(F14*E14-1)/(F14-1),0)) ->  | I14: =IF(G14="","",IF((G14*(1-E14)-1)>=Coeff!$B$15,Coeff!$B$13/Coeff!$B$14*(G14*(1-E14)-1)/(G14-1),0)) -> 
A15: Bulgaria A Grupa | B15: Lokomotiv Plovdiv | C15: Beroe | H15: =IF(F15="","",IF((F15*E15-1)>=Coeff!$B$15,Coeff!$B$13/Coeff!$B$14*(F15*E15-1)/(F15-1),0)) ->  | I15: =IF(G15="","",IF((G15*(1-E15)-1)>=Coeff!$B$15,Coeff!$B$13/Coeff!$B$14*(G15*(1-E15)-1)/(G15-1),0)) -> 
A16: Bulgaria A Grupa | B16: Minyor | C16: Cherno More Varna | H16: =IF(F16="","",IF((F16*E16-1)>=Coeff!$B$15,Coeff!$B$13/Coeff!$B$14*(F16*E16-1)/(F16-1),0)) ->  | I16: =IF(G16="","",IF((G16*(1-E16)-1)>=Coeff!$B$15,Coeff!$B$13/Coeff!$B$14*(G16*(1-E16)-1)/(G16-1),0)) -> 
A17: Bulgaria A Grupa | B17: PFC Ludogorets Razgrad | C17: Botev Plovdiv | H17: =IF(F17="","",IF((F17*E17-1)>=Coeff!$B$15,Coeff!$B$13/Coeff!$B$14*(F17*E17-1)/(F17-1),0)) ->  | I17: =IF(G17="","",IF((G17*(1-E17)-1)>=Coeff!$B$15,Coeff!$B$13/Coeff!$B$14*(G17*(1-E17)-1)/(G17-1),0)) -> 
A18: Bulgaria A Grupa | B18: CSKA Sofia | C18: Pirin Gotse Delchev | H18: =IF(F18="","",IF((F18*E18-1)>=Coeff!$B$15,Coeff!$B$13/Coeff!$B$14*(F18*E18-1)/(F18-1),0)) ->  | I18: =IF(G18="","",IF((G18*(1-E18)-1)>=Coeff!$B$15,Coeff!$B$13/Coeff!$B$14*(G18*(1-E18)-1)/(G18-1),0)) -> 
A19: Czech Republic Gambrinus League | B19: Jihlava | C19: Slovacko | D19: 2.25 | E19: 0.517 | F19: 1.99 | G19: 1.91 | H19: =IF(F19="","",IF((F19*E19-1)>=Coeff!$B$15,Coeff!$B$13/Coeff!$B$14*(F19*E19-1)/(F19-1),0)) -> 0 | I19: =IF(G19="","",IF((G19*(1-E19)-1)>=Coeff!$B$15,Coeff!$B$13/Coeff!$B$14*(G19*(1-E19)-1)/(G19-1),0)) -> 0
A20: Czech Republic Gambrinus League | B20: Slavia Prague | C20: Budejovice | D20: 2.5 | E20: 0.443 | F20: 1.91 | G20: 1.99 | H20: =IF(F20="","",IF((F20*E20-1)>=Coeff!$B$15,Coeff!$B$13/Coeff!$B$14*(F20*E20-1)/(F20-1),0)) -> 0 | I20: =IF(G20="","",IF((G20*(1-E20)-1)>=Coeff!$B$15,Coeff!$B$13/Coeff!$B$14*(G20*(1-E20)-1)/(G20-1),0)) -> 10.95252525
A21: Czech Republic Gambrinus League | B21: Banik Ostrava | C21: Dukla Praha | D21: 2.25 | E21: 0.545 | F21: 1.85 | G21: 2.06 | H21: =IF(F21="","",IF((F21*E21-1)>=Coeff!$B$15,Coeff!$B$13/Coeff!$B$14*(F21*E21-1)/(F21-1),0)) -> 0 | I21: =IF(G21="","",IF((G21*(1-E21)-1)>=Coeff!$B$15,Coeff!$B$13/Coeff!$B$14*(G21*(1-E21)-1)/(G21-1),0)) -> 0
A22: Czech Republic Gambrinus League | B22: M Boleslav | C22: Jablonec | D22: 2.5 | E22: 0.519 | F22: 1.83 | G22: 2.08 | H22: =IF(F22="","",IF((F22*E22-1)>=Coeff!$B$15,Coeff!$B$13/Coeff!$B$14*(F22*E22-1)/(F22-1),0)) -> 0 | I22: =IF(G22="","",IF((G22*(1-E22)-1)>=Coeff!$B$15,Coeff!$B$13/Coeff!$B$14*(G22*(1-E22)-1)/(G22-1),0)) -> 0
A23: Czech Republic Gambrinus League | B23: Sigma Olomouc | C23: Viktoria Plzen | D23: 2.5 | E23: 0.349 | F23: 1.92 | G23: 1.98 | H23: =IF(F23="","",IF((F23*E23-1)>=Coeff!$B$15,Coeff!$B$13/Coeff!$B$14*(F23*E23-1)/(F23-1),0)) -> 0 | I23: =IF(G23="","",IF((G23*(1-E23)-1)>=Coeff!$B$15,Coeff!$B$13/Coeff!$B$14*(G23*(1-E23)-1)/(G23-1),0)) -> 29.4877551
A24: Czech Republic Gambrinus League | B24: Brno | C24: Sparta Prague | D24: 2.5 | E24: 0.437 | F24: 1.88 | G24: 2.02 | H24: =IF(F24="","",IF((F24*E24-1)>=Coeff!$B$15,Coeff!$B$13/Coeff!$B$14*(F24*E24-1)/(F24-1),0)) -> 0 | I24: =IF(G24="","",IF((G24*(1-E24)-1)>=Coeff!$B$15,Coeff!$B$13/Coeff!$B$14*(G24*(1-E24)-1)/(G24-1),0)) -> 13.45686275
A25: Czech Republic Druha League | B25: Most | C25: Karvina | H25: =IF(F25="","",IF((F25*E25-1)>=Coeff!$B$15,Coeff!$B$13/Coeff!$B$14*(F25*E25-1)/(F25-1),0)) ->  | I25: =IF(G25="","",IF((G25*(1-E25)-1)>=Coeff!$B$15,Coeff!$B$13/Coeff!$B$14*(G25*(1-E25)-1)/(G25-1),0)) -> 
A26: Czech Republic Druha League | B26: FK MAS Taborsko | C26: Slovan Varnsdorf | H26: =IF(F26="","",IF((F26*E26-1)>=Coeff!$B$15,Coeff!$B$13/Coeff!$B$14*(F26*E26-1)/(F26-1),0)) ->  | I26: =IF(G26="","",IF((G26*(1-E26)-1)>=Coeff!$B$15,Coeff!$B$13/Coeff!$B$14*(G26*(1-E26)-1)/(G26-1),0)) -> 
A27: Czech Republic Druha League | B27: Sokolov | C27: Opava | H27: =IF(F27="","",IF((F27*E27-1)>=Coeff!$B$15,Coeff!$B$13/Coeff!$B$14*(F27*E27-1)/(F27-1),0)) ->  | I27: =IF(G27="","",IF((G27*(1-E27)-1)>=Coeff!$B$15,Coeff!$B$13/Coeff!$B$14*(G27*(1-E27)-1)/(G27-1),0)) -> 
A28: Czech Republic Druha League | B28: Caslav | C28: Znojmo | H28: =IF(F28="","",IF((F28*E28-1)>=Coeff!$B$15,Coeff!$B$13/Coeff!$B$14*(F28*E28-1)/(F28-1),0)) ->  | I28: =IF(G28="","",IF((G28*(1-E28)-1)>=Coeff!$B$15,Coeff!$B$13/Coeff!$B$14*(G28*(1-E28)-1)/(G28-1),0)) -> 
A29: Czech Republic Druha League | B29: Usti nad Labem | C29: FC Vlasim | H29: =IF(F29="","",IF((F29*E29-1)>=Coeff!$B$15,Coeff!$B$13/Coeff!$B$14*(F29*E29-1)/(F29-1),0)) ->  | I29: =IF(G29="","",IF((G29*(1-E29)-1)>=Coeff!$B$15,Coeff!$B$13/Coeff!$B$14*(G29*(1-E29)-1)/(G29-1),0)) -> 
A30: Denmark 2. Division | B30: Herlev | C30: Frem | H30: =IF(F30="","",IF((F30*E30-1)>=Coeff!$B$15,Coeff!$B$13/Coeff!$B$14*(F30*E30-1)/(F30-1),0)) ->  | I30: =IF(G30="","",IF((G30*(1-E30)-1)>=Coeff!$B$15,Coeff!$B$13/Coeff!$B$14*(G30*(1-E30)-1)/(G30-1),0)) -> 
A31: Greece Super League | B31: Pas Giannina | C31: Atromitos | D31: 1.75 | E31: 0.5 | F31: 1.78 | G31: 2.14 | H31: =IF(F31="","",IF((F31*E31-1)>=Coeff!$B$15,Coeff!$B$13/Coeff!$B$14*(F31*E31-1)/(F31-1),0)) -> 0 | I31: =IF(G31="","",IF((G31*(1-E31)-1)>=Coeff!$B$15,Coeff!$B$13/Coeff!$B$14*(G31*(1-E31)-1)/(G31-1),0)) -> 6.140350877
A32: Greece Super League | B32: Asteras Tripolis | C32: PAOK Thessaloniki FC | D32: 2 | E32: 0.419 | F32: 2.07 | G32: 1.83 | H32: =IF(F32="","",IF((F32*E32-1)>=Coeff!$B$15,Coeff!$B$13/Coeff!$B$14*(F32*E32-1)/(F32-1),0)) -> 0 | I32: =IF(G32="","",IF((G32*(1-E32)-1)>=Coeff!$B$15,Coeff!$B$13/Coeff!$B$14*(G32*(1-E32)-1)/(G32-1),0)) -> 7.618072289
A33: Greece Football League | B33: Olymp. Volou | C33: Iraklis | H33: =IF(F33="","",IF((F33*E33-1)>=Coeff!$B$15,Coeff!$B$13/Coeff!$B$14*(F33*E33-1)/(F33-1),0)) ->  | I33: =IF(G33="","",IF((G33*(1-E33)-1)>=Coeff!$B$15,Coeff!$B$13/Coeff!$B$14*(G33*(1-E33)-1)/(G33-1),0)) -> 
A34: Greece Football League | B34: Pierikos FC | C34: Panaitolikos | H34: =IF(F34="","",IF((F34*E34-1)>=Coeff!$B$15,Coeff!$B$13/Coeff!$B$14*(F34*E34-1)/(F34-1),0)) ->  | I34: =IF(G34="","",IF((G34*(1-E34)-1)>=Coeff!$B$15,Coeff!$B$13/Coeff!$B$14*(G34*(1-E34)-1)/(G34-1),0)) -> 
A35: Greece Football League | B35: Apollon Smirnis | C35: Ethnikos Gazoros F.C. | H35: =IF(F35="","",IF((F35*E35-1)>=Coeff!$B$15,Coeff!$B$13/Coeff!$B$14*(F35*E35-1)/(F35-1),0)) ->  | I35: =IF(G35="","",IF((G35*(1-E35)-1)>=Coeff!$B$15,Coeff!$B$13/Coeff!$B$14*(G35*(1-E35)-1)/(G35-1),0)) -> 
A36: Greece Football League | B36: Anagennisi Giannitsa | C36: Kalloni Lekanopedio | H36: =IF(F36="","",IF((F36*E36-1)>=Coeff!$B$15,Coeff!$B$13/Coeff!$B$14*(F36*E36-1)/(F36-1),0)) ->  | I36: =IF(G36="","",IF((G36*(1-E36)-1)>=Coeff!$B$15,Coeff!$B$13/Coeff!$B$14*(G36*(1-E36)-1)/(G36-1),0)) -> 
A37: Greece Football League | B37: Anagennisi Epanomi | C37: Kavala | H37: =IF(F37="","",IF((F37*E37-1)>=Coeff!$B$15,Coeff!$B$13/Coeff!$B$14*(F37*E37-1)/(F37-1),0)) ->  | I37: =IF(G37="","",IF((G37*(1-E37)-1)>=Coeff!$B$15,Coeff!$B$13/Coeff!$B$14*(G37*(1-E37)-1)/(G37-1),0)) -> 
A38: Greece Football League | B38: Kalithea | C38: Fokikos | H38: =IF(F38="","",IF((F38*E38-1)>=Coeff!$B$15,Coeff!$B$13/Coeff!$B$14*(F38*E38-1)/(F38-1),0)) ->  | I38: =IF(G38="","",IF((G38*(1-E38)-1)>=Coeff!$B$15,Coeff!$B$13/Coeff!$B$14*(G38*(1-E38)-1)/(G38-1),0)) -> 
A39: Greece Football League | B39: Iraklis Psachna FC | C39: Panachaiki | H39: =IF(F39="","",IF((F39*E39-1)>=Coeff!$B$15,Coeff!$B$13/Coeff!$B$14*(F39*E39-1)/(F39-1),0)) ->  | I39: =IF(G39="","",IF((G39*(1-E39)-1)>=Coeff!$B$15,Coeff!$B$13/Coeff!$B$14*(G39*(1-E39)-1)/(G39-1),0)) -> 
A40: Greece Football League | B40: Panserraikos FC | C40: Vyzas | H40: =IF(F40="","",IF((F40*E40-1)>=Coeff!$B$15,Coeff!$B$13/Coeff!$B$14*(F40*E40-1)/(F40-1),0)) ->  | I40: =IF(G40="","",IF((G40*(1-E40)-1)>=Coeff!$B$15,Coeff!$B$13/Coeff!$B$14*(G40*(1-E40)-1)/(G40-1),0)) -> 
A41: Greece Football League | B41: Doxa Dramas | C41: Larisa | H41: =IF(F41="","",IF((F41*E41-1)>=Coeff!$B$15,Coeff!$B$13/Coeff!$B$14*(F41*E41-1)/(F41-1),0)) ->  | I41: =IF(G41="","",IF((G41*(1-E41)-1)>=Coeff!$B$15,Coeff!$B$13/Coeff!$B$14*(G41*(1-E41)-1)/(G41-1),0)) -> 
A42: Greece Football League | B42: Ergotelis | C42: Thrasyvoulos | H42: =IF(F42="","",IF((F42*E42-1)>=Coeff!$B$15,Coeff!$B$13/Coeff!$B$14*(F42*E42-1)/(F42-1),0)) ->  | I42: =IF(G42="","",IF((G42*(1-E42)-1)>=Coeff!$B$15,Coeff!$B$13/Coeff!$B$14*(G42*(1-E42)-1)/(G42-1),0)) -> 
A43: Lithuania A Lyga | B43: FK Tauras Taurage | C43: Zalgiris Vilnius | H43: =IF(F43="","",IF((F43*E43-1)>=Coeff!$B$15,Coeff!$B$13/Coeff!$B$14*(F43*E43-1)/(F43-1),0)) ->  | I43: =IF(G43="","",IF((G43*(1-E43)-1)>=Coeff!$B$15,Coeff!$B$13/Coeff!$B$14*(G43*(1-E43)-1)/(G43-1),0)) -> 
A44: Lithuania A Lyga | B44: Ekranas | C44: Banga Gargzdai | H44: =IF(F44="","",IF((F44*E44-1)>=Coeff!$B$15,Coeff!$B$13/Coeff!$B$14*(F44*E44-1)/(F44-1),0)) ->  | I44: =IF(G44="","",IF((G44*(1-E44)-1)>=Coeff!$B$15,Coeff!$B$13/Coeff!$B$14*(G44*(1-E44)-1)/(G44-1),0)) -> 
A45: Norway 1. Division | B45: Kristiansund BK | C45: Hødd | D45: 2.75 | E45: 0.597 | F45: 1.9 | G45: 1.98 | H45: =IF(F45="","",IF((F45*E45-1)>=Coeff!$B$15,Coeff!$B$13/Coeff!$B$14*(F45*E45-1)/(F45-1),0)) -> 14.92222222 | I45: =IF(G45="","",IF((G45*(1-E45)-1)>=Coeff!$B$15,Coeff!$B$13/Coeff!$B$14*(G45*(1-E45)-1)/(G45-1),0)) -> 0
A46: Paraguay Apertura | B46: Sol de America | C46: General Diaz | D46: 2.25 | E46: 0.548 | F46: 1.91 | G46: 1.93 | H46: =IF(F46="","",IF((F46*E46-1)>=Coeff!$B$15,Coeff!$B$13/Coeff!$B$14*(F46*E46-1)/(F46-1),0)) -> 0 | I46: =IF(G46="","",IF((G46*(1-E46)-1)>=Coeff!$B$15,Coeff!$B$13/Coeff!$B$14*(G46*(1-E46)-1)/(G46-1),0)) -> 0
A47: Paraguay Apertura | B47: Nacional | C47: Deportivo Capiata | D47: 2.5 | E47: 0.499 | F47: 1.84 | G47: 2 | H47: =IF(F47="","",IF((F47*E47-1)>=Coeff!$B$15,Coeff!$B$13/Coeff!$B$14*(F47*E47-1)/(F47-1),0)) -> 0 | I47: =IF(G47="","",IF((G47*(1-E47)-1)>=Coeff!$B$15,Coeff!$B$13/Coeff!$B$14*(G47*(1-E47)-1)/(G47-1),0)) -> 0
A48: Paraguay Apertura | B48: Club Deportivo Carapegua | C48: Cerro Porteno PF | H48: =IF(F48="","",IF((F48*E48-1)>=Coeff!$B$15,Coeff!$B$13/Coeff!$B$14*(F48*E48-1)/(F48-1),0)) ->  | I48: =IF(G48="","",IF((G48*(1-E48)-1)>=Coeff!$B$15,Coeff!$B$13/Coeff!$B$14*(G48*(1-E48)-1)/(G48-1),0)) -> 
A49: Poland 1. Division | B49: Kolejarz Stroze | C49: Okocimski KS Brzesko | H49: =IF(F49="","",IF((F49*E49-1)>=Coeff!$B$15,Coeff!$B$13/Coeff!$B$14*(F49*E49-1)/(F49-1),0)) ->  | I49: =IF(G49="","",IF((G49*(1-E49)-1)>=Coeff!$B$15,Coeff!$B$13/Coeff!$B$14*(G49*(1-E49)-1)/(G49-1),0)) -> 
A50: Poland 1. Division | B50: Warta Poznan | C50: Stomil Olsztyn | H50: =IF(F50="","",IF((F50*E50-1)>=Coeff!$B$15,Coeff!$B$13/Coeff!$B$14*(F50*E50-1)/(F50-1),0)) ->  | I50: =IF(G50="","",IF((G50*(1-E50)-1)>=Coeff!$B$15,Coeff!$B$13/Coeff!$B$14*(G50*(1-E50)-1)/(G50-1),0)) -> 
A51: Poland 1. Division | B51: Olimpia Grudziadz | C51: Polonia Bytom | H51: =IF(F51="","",IF((F51*E51-1)>=Coeff!$B$15,Coeff!$B$13/Coeff!$B$14*(F51*E51-1)/(F51-1),0)) ->  | I51: =IF(G51="","",IF((G51*(1-E51)-1)>=Coeff!$B$15,Coeff!$B$13/Coeff!$B$14*(G51*(1-E51)-1)/(G51-1),0)) -> 
A52: Poland 1. Division | B52: Flota Swinoujscie | C52: Sandecja Nowy Sacz | H52: =IF(F52="","",IF((F52*E52-1)>=Coeff!$B$15,Coeff!$B$13/Coeff!$B$14*(F52*E52-1)/(F52-1),0)) ->  | I52: =IF(G52="","",IF((G52*(1-E52)-1)>=Coeff!$B$15,Coeff!$B$13/Coeff!$B$14*(G52*(1-E52)-1)/(G52-1),0)) -> 
A53: Serbia Super Liga | B53: FK Donji Srem | C53: Hajduk K. | H53: =IF(F53="","",IF((F53*E53-1)>=Coeff!$B$15,Coeff!$B$13/Coeff!$B$14*(F53*E53-1)/(F53-1),0)) ->  | I53: =IF(G53="","",IF((G53*(1-E53)-1)>=Coeff!$B$15,Coeff!$B$13/Coeff!$B$14*(G53*(1-E53)-1)/(G53-1),0)) -> 
A54: Serbia Super Liga | B54: BSK Borca | C54: Jagodina | H54: =IF(F54="","",IF((F54*E54-1)>=Coeff!$B$15,Coeff!$B$13/Coeff!$B$14*(F54*E54-1)/(F54-1),0)) ->  | I54: =IF(G54="","",IF((G54*(1-E54)-1)>=Coeff!$B$15,Coeff!$B$13/Coeff!$B$14*(G54*(1-E54)-1)/(G54-1),0)) -> 
A55: Serbia Super Liga | B55: FK Spartak Zlatibor Voda | C55: OFK Beograd | H55: =IF(F55="","",IF((F55*E55-1)>=Coeff!$B$15,Coeff!$B$13/Coeff!$B$14*(F55*E55-1)/(F55-1),0)) ->  | I55: =IF(G55="","",IF((G55*(1-E55)-1)>=Coeff!$B$15,Coeff!$B$13/Coeff!$B$14*(G55*(1-E55)-1)/(G55-1),0)) -> 
A56: Serbia Super Liga | B56: FC Smederevo | C56: Partizan Belgrad | H56: =IF(F56="","",IF((F56*E56-1)>=Coeff!$B$15,Coeff!$B$13/Coeff!$B$14*(F56*E56-1)/(F56-1),0)) ->  | I56: =IF(G56="","",IF((G56*(1-E56)-1)>=Coeff!$B$15,Coeff!$B$13/Coeff!$B$14*(G56*(1-E56)-1)/(G56-1),0)) -> 
A57: Serbia Super Liga | B57: Novi Pazar | C57: Rad | H57: =IF(F57="","",IF((F57*E57-1)>=Coeff!$B$15,Coeff!$B$13/Coeff!$B$14*(F57*E57-1)/(F57-1),0)) ->  | I57: =IF(G57="","",IF((G57*(1-E57)-1)>=Coeff!$B$15,Coeff!$B$13/Coeff!$B$14*(G57*(1-E57)-1)/(G57-1),0)) -> 
A58: Serbia Super Liga | B58: FK Radnicki 1923 | C58: Vojvodina | H58: =IF(F58="","",IF((F58*E58-1)>=Coeff!$B$15,Coeff!$B$13/Coeff!$B$14*(F58*E58-1)/(F58-1),0)) ->  | I58: =IF(G58="","",IF((G58*(1-E58)-1)>=Coeff!$B$15,Coeff!$B$13/Coeff!$B$14*(G58*(1-E58)-1)/(G58-1),0)) -> 
A59: Serbia Super Liga | B59: Radnicki N. | C59: Javor | H59: =IF(F59="","",IF((F59*E59-1)>=Coeff!$B$15,Coeff!$B$13/Coeff!$B$14*(F59*E59-1)/(F59-1),0)) ->  | I59: =IF(G59="","",IF((G59*(1-E59)-1)>=Coeff!$B$15,Coeff!$B$13/Coeff!$B$14*(G59*(1-E59)-1)/(G59-1),0)) -> 
A60: Serbia Super Liga | B60: Red Star Belgrad | C60: FK Sloboda Point Sevojno | H60: =IF(F60="","",IF((F60*E60-1)>=Coeff!$B$15,Coeff!$B$13/Coeff!$B$14*(F60*E60-1)/(F60-1),0)) ->  | I60: =IF(G60="","",IF((G60*(1-E60)-1)>=Coeff!$B$15,Coeff!$B$13/Coeff!$B$14*(G60*(1-E60)-1)/(G60-1),0)) -> 
A61: Slovakia Corgon Liga | B61: Trencin | C61: Ruzomberok | H61: =IF(F61="","",IF((F61*E61-1)>=Coeff!$B$15,Coeff!$B$13/Coeff!$B$14*(F61*E61-1)/(F61-1),0)) ->  | I61: =IF(G61="","",IF((G61*(1-E61)-1)>=Coeff!$B$15,Coeff!$B$13/Coeff!$B$14*(G61*(1-E61)-1)/(G61-1),0)) -> 
A62: Slovakia Corgon Liga | B62: Myjava | C62: Kosice | H62: =IF(F62="","",IF((F62*E62-1)>=Coeff!$B$15,Coeff!$B$13/Coeff!$B$14*(F62*E62-1)/(F62-1),0)) ->  | I62: =IF(G62="","",IF((G62*(1-E62)-1)>=Coeff!$B$15,Coeff!$B$13/Coeff!$B$14*(G62*(1-E62)-1)/(G62-1),0)) -> 
A63: Slovakia Corgon Liga | B63: FK Senica | C63: Zlate Moravce | H63: =IF(F63="","",IF((F63*E63-1)>=Coeff!$B$15,Coeff!$B$13/Coeff!$B$14*(F63*E63-1)/(F63-1),0)) ->  | I63: =IF(G63="","",IF((G63*(1-E63)-1)>=Coeff!$B$15,Coeff!$B$13/Coeff!$B$14*(G63*(1-E63)-1)/(G63-1),0)) -> 
A64: Slovakia Corgon Liga | B64: Zilina | C64: Presov | H64: =IF(F64="","",IF((F64*E64-1)>=Coeff!$B$15,Coeff!$B$13/Coeff!$B$14*(F64*E64-1)/(F64-1),0)) ->  | I64: =IF(G64="","",IF((G64*(1-E64)-1)>=Coeff!$B$15,Coeff!$B$13/Coeff!$B$14*(G64*(1-E64)-1)/(G64-1),0)) -> 
A65: Slovakia Corgon Liga | B65: Trnava | C65: Banska Bystrica | H65: =IF(F65="","",IF((F65*E65-1)>=Coeff!$B$15,Coeff!$B$13/Coeff!$B$14*(F65*E65-1)/(F65-1),0)) ->  | I65: =IF(G65="","",IF((G65*(1-E65)-1)>=Coeff!$B$15,Coeff!$B$13/Coeff!$B$14*(G65*(1-E65)-1)/(G65-1),0)) -> 
A66: Slovakia Corgon Liga | B66: Slovan Bratislava | C66: Nitra | H66: =IF(F66="","",IF((F66*E66-1)>=Coeff!$B$15,Coeff!$B$13/Coeff!$B$14*(F66*E66-1)/(F66-1),0)) ->  | I66: =IF(G66="","",IF((G66*(1-E66)-1)>=Coeff!$B$15,Coeff!$B$13/Coeff!$B$14*(G66*(1-E66)-1)/(G66-1),0)) -> 
A67: Slovenia PrvaLiga | B67: Rudar Velenje | C67: Maribor | H67: =IF(F67="","",IF((F67*E67-1)>=Coeff!$B$15,Coeff!$B$13/Coeff!$B$14*(F67*E67-1)/(F67-1),0)) ->  | I67: =IF(G67="","",IF((G67*(1-E67)-1)>=Coeff!$B$15,Coeff!$B$13/Coeff!$B$14*(G67*(1-E67)-1)/(G67-1),0)) -> 
A68: Slovenia PrvaLiga | B68: Koper | C68: Ol Ljubljana | H68: =IF(F68="","",IF((F68*E68-1)>=Coeff!$B$15,Coeff!$B$13/Coeff!$B$14*(F68*E68-1)/(F68-1),0)) ->  | I68: =IF(G68="","",IF((G68*(1-E68)-1)>=Coeff!$B$15,Coeff!$B$13/Coeff!$B$14*(G68*(1-E68)-1)/(G68-1),0)) -> 
A69: Slovenia PrvaLiga | B69: Domzale | C69: Gorica | H69: =IF(F69="","",IF((F69*E69-1)>=Coeff!$B$15,Coeff!$B$13/Coeff!$B$14*(F69*E69-1)/(F69-1),0)) ->  | I69: =IF(G69="","",IF((G69*(1-E69)-1)>=Coeff!$B$15,Coeff!$B$13/Coeff!$B$14*(G69*(1-E69)-1)/(G69-1),0)) -> 
A70: Slovenia PrvaLiga | B70: ND Triglav | C70: Mura | H70: =IF(F70="","",IF((F70*E70-1)>=Coeff!$B$15,Coeff!$B$13/Coeff!$B$14*(F70*E70-1)/(F70-1),0)) ->  | I70: =IF(G70="","",IF((G70*(1-E70)-1)>=Coeff!$B$15,Coeff!$B$13/Coeff!$B$14*(G70*(1-E70)-1)/(G70-1),0)) -> 
A71: Slovenia PrvaLiga | B71: Aluminij | C71: MIK CM Celje | H71: =IF(F71="","",IF((F71*E71-1)>=Coeff!$B$15,Coeff!$B$13/Coeff!$B$14*(F71*E71-1)/(F71-1),0)) ->  | I71: =IF(G71="","",IF((G71*(1-E71)-1)>=Coeff!$B$15,Coeff!$B$13/Coeff!$B$14*(G71*(1-E71)-1)/(G71-1),0)) -> 
A72: Sweden Allsvenskan | B72: Gefle | C72: IFK Gothenburg | D72: 2.25 | E72: 0.543 | F72: 1.97 | G72: 1.93 | H72: =IF(F72="","",IF((F72*E72-1)>=Coeff!$B$15,Coeff!$B$13/Coeff!$B$14*(F72*E72-1)/(F72-1),0)) -> 7.186597938 | I72: =IF(G72="","",IF((G72*(1-E72)-1)>=Coeff!$B$15,Coeff!$B$13/Coeff!$B$14*(G72*(1-E72)-1)/(G72-1),0)) -> 0
A73: Sweden Allsvenskan | B73: AIK | C73: Djurgaarden | D73: 2.5 | E73: 0.446 | F73: 1.85 | G73: 2.06 | H73: =IF(F73="","",IF((F73*E73-1)>=Coeff!$B$15,Coeff!$B$13/Coeff!$B$14*(F73*E73-1)/(F73-1),0)) -> 0 | I73: =IF(G73="","",IF((G73*(1-E73)-1)>=Coeff!$B$15,Coeff!$B$13/Coeff!$B$14*(G73*(1-E73)-1)/(G73-1),0)) -> 13.3245283
A74: Sweden Superettan | B74: Degerfors | C74: Ostersund | H74: =IF(F74="","",IF((F74*E74-1)>=Coeff!$B$15,Coeff!$B$13/Coeff!$B$14*(F74*E74-1)/(F74-1),0)) ->  | I74: =IF(G74="","",IF((G74*(1-E74)-1)>=Coeff!$B$15,Coeff!$B$13/Coeff!$B$14*(G74*(1-E74)-1)/(G74-1),0)) -> 
A75: Sweden Superettan | B75: Orebro | C75: Angelholm | D75: 2.75 | E75: 0.484 | F75: 1.84 | G75: 2.06 | H75: =IF(F75="","",IF((F75*E75-1)>=Coeff!$B$15,Coeff!$B$13/Coeff!$B$14*(F75*E75-1)/(F75-1),0)) -> 0 | I75: =IF(G75="","",IF((G75*(1-E75)-1)>=Coeff!$B$15,Coeff!$B$13/Coeff!$B$14*(G75*(1-E75)-1)/(G75-1),0)) -> 5.939622642
A76: Sweden Superettan | B76: Jonkoping S. | C76: IFK Varnamo | D76: 2.75 | E76: 0.515 | F76: 1.85 | G76: 2.06 | H76: =IF(F76="","",IF((F76*E76-1)>=Coeff!$B$15,Coeff!$B$13/Coeff!$B$14*(F76*E76-1)/(F76-1),0)) -> 0 | I76: =IF(G76="","",IF((G76*(1-E76)-1)>=Coeff!$B$15,Coeff!$B$13/Coeff!$B$14*(G76*(1-E76)-1)/(G76-1),0)) -> 0
A77: Switzerland Super League | B77: Servette | C77: Sion | D77: 2.5 | E77: 0.45 | F77: 2.01 | G77: 1.89 | H77: =IF(F77="","",IF((F77*E77-1)>=Coeff!$B$15,Coeff!$B$13/Coeff!$B$14*(F77*E77-1)/(F77-1),0)) -> 0 | I77: =IF(G77="","",IF((G77*(1-E77)-1)>=Coeff!$B$15,Coeff!$B$13/Coeff!$B$14*(G77*(1-E77)-1)/(G77-1),0)) -> 0
A78: Bolivia Apertura | B78: La Paz FC | C78: Nacional Potosi | H78: =IF(F78="","",IF((F78*E78-1)>=Coeff!$B$15,Coeff!$B$13/Coeff!$B$14*(F78*E78-1)/(F78-1),0)) ->  | I78: =IF(G78="","",IF((G78*(1-E78)-1)>=Coeff!$B$15,Coeff!$B$13/Coeff!$B$14*(G78*(1-E78)-1)/(G78-1),0)) -> 
A79: Bolivia Apertura | B79: The Strongest | C79: Jorge Wilstermann | H79: =IF(F79="","",IF((F79*E79-1)>=Coeff!$B$15,Coeff!$B$13/Coeff!$B$14*(F79*E79-1)/(F79-1),0)) ->  | I79: =IF(G79="","",IF((G79*(1-E79)-1)>=Coeff!$B$15,Coeff!$B$13/Coeff!$B$14*(G79*(1-E79)-1)/(G79-1),0)) -> 
A80: Paraguay Apertura | B80: Guarani | C80: Luqueno | D80: 2.25 | E80: 0.539 | F80: 1.91 | G80: 1.93 | H80: =IF(F80="","",IF((F80*E80-1)>=Coeff!$B$15,Coeff!$B$13/Coeff!$B$14*(F80*E80-1)/(F80-1),0)) -> 0 | I80: =IF(G80="","",IF((G80*(1-E80)-1)>=Coeff!$B$15,Coeff!$B$13/Coeff!$B$14*(G80*(1-E80)-1)/(G80-1),0)) -> 0
A81: Paraguay Apertura | B81: Cerro Porteno | C81: Libertad | D81: 2.25 | E81: 0.552 | F81: 1.79 | G81: 2.05 | H81: =IF(F81="","",IF((F81*E81-1)>=Coeff!$B$15,Coeff!$B$13/Coeff!$B$14*(F81*E81-1)/(F81-1),0)) -> 0 | I81: =IF(G81="","",IF((G81*(1-E81)-1)>=Coeff!$B$15,Coeff!$B$13/Coeff!$B$14*(G81*(1-E81)-1)/(G81-1),0)) -> 0
A82: Peru Primera División | B82: Juan Aurich | C82: Sport Huancayo | H82: =IF(F82="","",IF((F82*E82-1)>=Coeff!$B$15,Coeff!$B$13/Coeff!$B$14*(F82*E82-1)/(F82-1),0)) ->  | I82: =IF(G82="","",IF((G82*(1-E82)-1)>=Coeff!$B$15,Coeff!$B$13/Coeff!$B$14*(G82*(1-E82)-1)/(G82-1),0)) -> 
H83: =IF(F83="","",IF((F83*E83-1)>=Coeff!$B$15,Coeff!$B$13/Coeff!$B$14*(F83*E83-1)/(F83-1),0)) ->  | I83: =IF(G83="","",IF((G83*(1-E83)-1)>=Coeff!$B$15,Coeff!$B$13/Coeff!$B$14*(G83*(1-E83)-1)/(G83-1),0)) -> 
H84: =IF(F84="","",IF((F84*E84-1)>=Coeff!$B$15,Coeff!$B$13/Coeff!$B$14*(F84*E84-1)/(F84-1),0)) ->  | I84: =IF(G84="","",IF((G84*(1-E84)-1)>=Coeff!$B$15,Coeff!$B$13/Coeff!$B$14*(G84*(1-E84)-1)/(G84-1),0)) -> 
H85: =IF(F85="","",IF((F85*E85-1)>=Coeff!$B$15,Coeff!$B$13/Coeff!$B$14*(F85*E85-1)/(F85-1),0)) ->  | I85: =IF(G85="","",IF((G85*(1-E85)-1)>=Coeff!$B$15,Coeff!$B$13/Coeff!$B$14*(G85*(1-E85)-1)/(G85-1),0)) -> 
H86: =IF(F86="","",IF((F86*E86-1)>=Coeff!$B$15,Coeff!$B$13/Coeff!$B$14*(F86*E86-1)/(F86-1),0)) ->  | I86: =IF(G86="","",IF((G86*(1-E86)-1)>=Coeff!$B$15,Coeff!$B$13/Coeff!$B$14*(G86*(1-E86)-1)/(G86-1),0)) -> 
H87: =IF(F87="","",IF((F87*E87-1)>=Coeff!$B$15,Coeff!$B$13/Coeff!$B$14*(F87*E87-1)/(F87-1),0)) ->  | I87: =IF(G87="","",IF((G87*(1-E87)-1)>=Coeff!$B$15,Coeff!$B$13/Coeff!$B$14*(G87*(1-E87)-1)/(G87-1),0)) -> 
H88: =IF(F88="","",IF((F88*E88-1)>=Coeff!$B$15,Coeff!$B$13/Coeff!$B$14*(F88*E88-1)/(F88-1),0)) ->  | I88: =IF(G88="","",IF((G88*(1-E88)-1)>=Coeff!$B$15,Coeff!$B$13/Coeff!$B$14*(G88*(1-E88)-1)/(G88-1),0)) -> 
H89: =IF(F89="","",IF((F89*E89-1)>=Coeff!$B$15,Coeff!$B$13/Coeff!$B$14*(F89*E89-1)/(F89-1),0)) ->  | I89: =IF(G89="","",IF((G89*(1-E89)-1)>=Coeff!$B$15,Coeff!$B$13/Coeff!$B$14*(G89*(1-E89)-1)/(G89-1),0)) -> 
H90: =IF(F90="","",IF((F90*E90-1)>=Coeff!$B$15,Coeff!$B$13/Coeff!$B$14*(F90*E90-1)/(F90-1),0)) ->  | I90: =IF(G90="","",IF((G90*(1-E90)-1)>=Coeff!$B$15,Coeff!$B$13/Coeff!$B$14*(G90*(1-E90)-1)/(G90-1),0)) -> 
H91: =IF(F91="","",IF((F91*E91-1)>=Coeff!$B$15,Coeff!$B$13/Coeff!$B$14*(F91*E91-1)/(F91-1),0)) ->  | I91: =IF(G91="","",IF((G91*(1-E91)-1)>=Coeff!$B$15,Coeff!$B$13/Coeff!$B$14*(G91*(1-E91)-1)/(G91-1),0)) -> 
H92: =IF(F92="","",IF((F92*E92-1)>=Coeff!$B$15,Coeff!$B$13/Coeff!$B$14*(F92*E92-1)/(F92-1),0)) ->  | I92: =IF(G92="","",IF((G92*(1-E92)-1)>=Coeff!$B$15,Coeff!$B$13/Coeff!$B$14*(G92*(1-E92)-1)/(G92-1),0)) -> 
H93: =IF(F93="","",IF((F93*E93-1)>=Coeff!$B$15,Coeff!$B$13/Coeff!$B$14*(F93*E93-1)/(F93-1),0)) ->  | I93: =IF(G93="","",IF((G93*(1-E93)-1)>=Coeff!$B$15,Coeff!$B$13/Coeff!$B$14*(G93*(1-E93)-1)/(G93-1),0)) -> 
H94: =IF(F94="","",IF((F94*E94-1)>=Coeff!$B$15,Coeff!$B$13/Coeff!$B$14*(F94*E94-1)/(F94-1),0)) ->  | I94: =IF(G94="","",IF((G94*(1-E94)-1)>=Coeff!$B$15,Coeff!$B$13/Coeff!$B$14*(G94*(1-E94)-1)/(G94-1),0)) -> 
H95: =IF(F95="","",IF((F95*E95-1)>=Coeff!$B$15,Coeff!$B$13/Coeff!$B$14*(F95*E95-1)/(F95-1),0)) ->  | I95: =IF(G95="","",IF((G95*(1-E95)-1)>=Coeff!$B$15,Coeff!$B$13/Coeff!$B$14*(G95*(1-E95)-1)/(G95-1),0)) -> 
H96: =IF(F96="","",IF((F96*E96-1)>=Coeff!$B$15,Coeff!$B$13/Coeff!$B$14*(F96*E96-1)/(F96-1),0)) ->  | I96: =IF(G96="","",IF((G96*(1-E96)-1)>=Coeff!$B$15,Coeff!$B$13/Coeff!$B$14*(G96*(1-E96)-1)/(G96-1),0)) -> 
H97: =IF(F97="","",IF((F97*E97-1)>=Coeff!$B$15,Coeff!$B$13/Coeff!$B$14*(F97*E97-1)/(F97-1),0)) ->  | I97: =IF(G97="","",IF((G97*(1-E97)-1)>=Coeff!$B$15,Coeff!$B$13/Coeff!$B$14*(G97*(1-E97)-1)/(G97-1),0)) -> 
H98: =IF(F98="","",IF((F98*E98-1)>=Coeff!$B$15,Coeff!$B$13/Coeff!$B$14*(F98*E98-1)/(F98-1),0)) ->  | I98: =IF(G98="","",IF((G98*(1-E98)-1)>=Coeff!$B$15,Coeff!$B$13/Coeff!$B$14*(G98*(1-E98)-1)/(G98-1),0)) -> 
H99: =IF(F99="","",IF((F99*E99-1)>=Coeff!$B$15,Coeff!$B$13/Coeff!$B$14*(F99*E99-1)/(F99-1),0)) ->  | I99: =IF(G99="","",IF((G99*(1-E99)-1)>=Coeff!$B$15,Coeff!$B$13/Coeff!$B$14*(G99*(1-E99)-1)/(G99-1),0)) -> 
H100: =IF(F100="","",IF((F100*E100-1)>=Coeff!$B$15,Coeff!$B$13/Coeff!$B$14*(F100*E100-1)/(F100-1),0)) ->  | I100: =IF(G100="","",IF((G100*(1-E100)-1)>=Coeff!$B$15,Coeff!$B$13/Coeff!$B$14*(G100*(1-E100)-1)/(G100-1),0)) -> 
H101: =IF(F101="","",IF((F101*E101-1)>=Coeff!$B$15,Coeff!$B$13/Coeff!$B$14*(F101*E101-1)/(F101-1),0)) ->  | I101: =IF(G101="","",IF((G101*(1-E101)-1)>=Coeff!$B$15,Coeff!$B$13/Coeff!$B$14*(G101*(1-E101)-1)/(G101-1),0)) -> 
H102: =IF(F102="","",IF((F102*E102-1)>=Coeff!$B$15,Coeff!$B$13/Coeff!$B$14*(F102*E102-1)/(F102-1),0)) ->  | I102: =IF(G102="","",IF((G102*(1-E102)-1)>=Coeff!$B$15,Coeff!$B$13/Coeff!$B$14*(G102*(1-E102)-1)/(G102-1),0)) -> 
H103: =IF(F103="","",IF((F103*E103-1)>=Coeff!$B$15,Coeff!$B$13/Coeff!$B$14*(F103*E103-1)/(F103-1),0)) ->  | I103: =IF(G103="","",IF((G103*(1-E103)-1)>=Coeff!$B$15,Coeff!$B$13/Coeff!$B$14*(G103*(1-E103)-1)/(G103-1),0)) -> 
H104: =IF(F104="","",IF((F104*E104-1)>=Coeff!$B$15,Coeff!$B$13/Coeff!$B$14*(F104*E104-1)/(F104-1),0)) ->  | I104: =IF(G104="","",IF((G104*(1-E104)-1)>=Coeff!$B$15,Coeff!$B$13/Coeff!$B$14*(G104*(1-E104)-1)/(G104-1),0)) -> 
H105: =IF(F105="","",IF((F105*E105-1)>=Coeff!$B$15,Coeff!$B$13/Coeff!$B$14*(F105*E105-1)/(F105-1),0)) ->  | I105: =IF(G105="","",IF((G105*(1-E105)-1)>=Coeff!$B$15,Coeff!$B$13/Coeff!$B$14*(G105*(1-E105)-1)/(G105-1),0)) -> 
H106: =IF(F106="","",IF((F106*E106-1)>=Coeff!$B$15,Coeff!$B$13/Coeff!$B$14*(F106*E106-1)/(F106-1),0)) ->  | I106: =IF(G106="","",IF((G106*(1-E106)-1)>=Coeff!$B$15,Coeff!$B$13/Coeff!$B$14*(G106*(1-E106)-1)/(G106-1),0)) -> 
H107: =IF(F107="","",IF((F107*E107-1)>=Coeff!$B$15,Coeff!$B$13/Coeff!$B$14*(F107*E107-1)/(F107-1),0)) ->  | I107: =IF(G107="","",IF((G107*(1-E107)-1)>=Coeff!$B$15,Coeff!$B$13/Coeff!$B$14*(G107*(1-E107)-1)/(G107-1),0)) -> 
H108: =IF(F108="","",IF((F108*E108-1)>=Coeff!$B$15,Coeff!$B$13/Coeff!$B$14*(F108*E108-1)/(F108-1),0)) ->  | I108: =IF(G108="","",IF((G108*(1-E108)-1)>=Coeff!$B$15,Coeff!$B$13/Coeff!$B$14*(G108*(1-E108)-1)/(G108-1),0)) -> 
H109: =IF(F109="","",IF((F109*E109-1)>=Coeff!$B$15,Coeff!$B$13/Coeff!$B$14*(F109*E109-1)/(F109-1),0)) ->  | I109: =IF(G109="","",IF((G109*(1-E109)-1)>=Coeff!$B$15,Coeff!$B$13/Coeff!$B$14*(G109*(1-E109)-1)/(G109-1),0)) -> 
H110: =IF(F110="","",IF((F110*E110-1)>=Coeff!$B$15,Coeff!$B$13/Coeff!$B$14*(F110*E110-1)/(F110-1),0)) ->  | I110: =IF(G110="","",IF((G110*(1-E110)-1)>=Coeff!$B$15,Coeff!$B$13/Coeff!$B$14*(G110*(1-E110)-1)/(G110-1),0)) -> 
H111: =IF(F111="","",IF((F111*E111-1)>=Coeff!$B$15,Coeff!$B$13/Coeff!$B$14*(F111*E111-1)/(F111-1),0)) ->  | I111: =IF(G111="","",IF((G111*(1-E111)-1)>=Coeff!$B$15,Coeff!$B$13/Coeff!$B$14*(G111*(1-E111)-1)/(G111-1),0)) -> 
H112: =IF(F112="","",IF((F112*E112-1)>=Coeff!$B$15,Coeff!$B$13/Coeff!$B$14*(F112*E112-1)/(F112-1),0)) ->  | I112: =IF(G112="","",IF((G112*(1-E112)-1)>=Coeff!$B$15,Coeff!$B$13/Coeff!$B$14*(G112*(1-E112)-1)/(G112-1),0)) -> 
H113: =IF(F113="","",IF((F113*E113-1)>=Coeff!$B$15,Coeff!$B$13/Coeff!$B$14*(F113*E113-1)/(F113-1),0)) ->  | I113: =IF(G113="","",IF((G113*(1-E113)-1)>=Coeff!$B$15,Coeff!$B$13/Coeff!$B$14*(G113*(1-E113)-1)/(G113-1),0)) -> 
H114: =IF(F114="","",IF((F114*E114-1)>=Coeff!$B$15,Coeff!$B$13/Coeff!$B$14*(F114*E114-1)/(F114-1),0)) ->  | I114: =IF(G114="","",IF((G114*(1-E114)-1)>=Coeff!$B$15,Coeff!$B$13/Coeff!$B$14*(G114*(1-E114)-1)/(G114-1),0)) -> 
H115: =IF(F115="","",IF((F115*E115-1)>=Coeff!$B$15,Coeff!$B$13/Coeff!$B$14*(F115*E115-1)/(F115-1),0)) ->  | I115: =IF(G115="","",IF((G115*(1-E115)-1)>=Coeff!$B$15,Coeff!$B$13/Coeff!$B$14*(G115*(1-E115)-1)/(G115-1),0)) -> 
H116: =IF(F116="","",IF((F116*E116-1)>=Coeff!$B$15,Coeff!$B$13/Coeff!$B$14*(F116*E116-1)/(F116-1),0)) ->  | I116: =IF(G116="","",IF((G116*(1-E116)-1)>=Coeff!$B$15,Coeff!$B$13/Coeff!$B$14*(G116*(1-E116)-1)/(G116-1),0)) -> 
H117: =IF(F117="","",IF((F117*E117-1)>=Coeff!$B$15,Coeff!$B$13/Coeff!$B$14*(F117*E117-1)/(F117-1),0)) ->  | I117: =IF(G117="","",IF((G117*(1-E117)-1)>=Coeff!$B$15,Coeff!$B$13/Coeff!$B$14*(G117*(1-E117)-1)/(G117-1),0)) -> 
H118: =IF(F118="","",IF((F118*E118-1)>=Coeff!$B$15,Coeff!$B$13/Coeff!$B$14*(F118*E118-1)/(F118-1),0)) ->  | I118: =IF(G118="","",IF((G118*(1-E118)-1)>=Coeff!$B$15,Coeff!$B$13/Coeff!$B$14*(G118*(1-E118)-1)/(G118-1),0)) -> 
H119: =IF(F119="","",IF((F119*E119-1)>=Coeff!$B$15,Coeff!$B$13/Coeff!$B$14*(F119*E119-1)/(F119-1),0)) ->  | I119: =IF(G119="","",IF((G119*(1-E119)-1)>=Coeff!$B$15,Coeff!$B$13/Coeff!$B$14*(G119*(1-E119)-1)/(G119-1),0)) -> 
H120: =IF(F120="","",IF((F120*E120-1)>=Coeff!$B$15,Coeff!$B$13/Coeff!$B$14*(F120*E120-1)/(F120-1),0)) ->  | I120: =IF(G120="","",IF((G120*(1-E120)-1)>=Coeff!$B$15,Coeff!$B$13/Coeff!$B$14*(G120*(1-E120)-1)/(G120-1),0)) -> 
H121: =IF(F121="","",IF((F121*E121-1)>=Coeff!$B$15,Coeff!$B$13/Coeff!$B$14*(F121*E121-1)/(F121-1),0)) ->  | I121: =IF(G121="","",IF((G121*(1-E121)-1)>=Coeff!$B$15,Coeff!$B$13/Coeff!$B$14*(G121*(1-E121)-1)/(G121-1),0)) -> 
H122: =IF(F122="","",IF((F122*E122-1)>=Coeff!$B$15,Coeff!$B$13/Coeff!$B$14*(F122*E122-1)/(F122-1),0)) ->  | I122: =IF(G122="","",IF((G122*(1-E122)-1)>=Coeff!$B$15,Coeff!$B$13/Coeff!$B$14*(G122*(1-E122)-1)/(G122-1),0)) -> 
H123: =IF(F123="","",IF((F123*E123-1)>=Coeff!$B$15,Coeff!$B$13/Coeff!$B$14*(F123*E123-1)/(F123-1),0)) ->  | I123: =IF(G123="","",IF((G123*(1-E123)-1)>=Coeff!$B$15,Coeff!$B$13/Coeff!$B$14*(G123*(1-E123)-1)/(G123-1),0)) -> 
H124: =IF(F124="","",IF((F124*E124-1)>=Coeff!$B$15,Coeff!$B$13/Coeff!$B$14*(F124*E124-1)/(F124-1),0)) ->  | I124: =IF(G124="","",IF((G124*(1-E124)-1)>=Coeff!$B$15,Coeff!$B$13/Coeff!$B$14*(G124*(1-E124)-1)/(G124-1),0)) -> 
H125: =IF(F125="","",IF((F125*E125-1)>=Coeff!$B$15,Coeff!$B$13/Coeff!$B$14*(F125*E125-1)/(F125-1),0)) ->  | I125: =IF(G125="","",IF((G125*(1-E125)-1)>=Coeff!$B$15,Coeff!$B$13/Coeff!$B$14*(G125*(1-E125)-1)/(G125-1),0)) -> 
H126: =IF(F126="","",IF((F126*E126-1)>=Coeff!$B$15,Coeff!$B$13/Coeff!$B$14*(F126*E126-1)/(F126-1),0)) ->  | I126: =IF(G126="","",IF((G126*(1-E126)-1)>=Coeff!$B$15,Coeff!$B$13/Coeff!$B$14*(G126*(1-E126)-1)/(G126-1),0)) -> 
H127: =IF(F127="","",IF((F127*E127-1)>=Coeff!$B$15,Coeff!$B$13/Coeff!$B$14*(F127*E127-1)/(F127-1),0)) ->  | I127: =IF(G127="","",IF((G127*(1-E127)-1)>=Coeff!$B$15,Coeff!$B$13/Coeff!$B$14*(G127*(1-E127)-1)/(G127-1),0)) -> 
H128: =IF(F128="","",IF((F128*E128-1)>=Coeff!$B$15,Coeff!$B$13/Coeff!$B$14*(F128*E128-1)/(F128-1),0)) ->  | I128: =IF(G128="","",IF((G128*(1-E128)-1)>=Coeff!$B$15,Coeff!$B$13/Coeff!$B$14*(G128*(1-E128)-1)/(G128-1),0)) -> 
H129: =IF(F129="","",IF((F129*E129-1)>=Coeff!$B$15,Coeff!$B$13/Coeff!$B$14*(F129*E129-1)/(F129-1),0)) ->  | I129: =IF(G129="","",IF((G129*(1-E129)-1)>=Coeff!$B$15,Coeff!$B$13/Coeff!$B$14*(G129*(1-E129)-1)/(G129-1),0)) -> 
H130: =IF(F130="","",IF((F130*E130-1)>=Coeff!$B$15,Coeff!$B$13/Coeff!$B$14*(F130*E130-1)/(F130-1),0)) ->  | I130: =IF(G130="","",IF((G130*(1-E130)-1)>=Coeff!$B$15,Coeff!$B$13/Coeff!$B$14*(G130*(1-E130)-1)/(G130-1),0)) -> 
H131: =IF(F131="","",IF((F131*E131-1)>=Coeff!$B$15,Coeff!$B$13/Coeff!$B$14*(F131*E131-1)/(F131-1),0)) ->  | I131: =IF(G131="","",IF((G131*(1-E131)-1)>=Coeff!$B$15,Coeff!$B$13/Coeff!$B$14*(G131*(1-E131)-1)/(G131-1),0)) -> 
H132: =IF(F132="","",IF((F132*E132-1)>=Coeff!$B$15,Coeff!$B$13/Coeff!$B$14*(F132*E132-1)/(F132-1),0)) ->  | I132: =IF(G132="","",IF((G132*(1-E132)-1)>=Coeff!$B$15,Coeff!$B$13/Coeff!$B$14*(G132*(1-E132)-1)/(G132-1),0)) -> 
H133: =IF(F133="","",IF((F133*E133-1)>=Coeff!$B$15,Coeff!$B$13/Coeff!$B$14*(F133*E133-1)/(F133-1),0)) ->  | I133: =IF(G133="","",IF((G133*(1-E133)-1)>=Coeff!$B$15,Coeff!$B$13/Coeff!$B$14*(G133*(1-E133)-1)/(G133-1),0)) -> 
H134: =IF(F134="","",IF((F134*E134-1)>=Coeff!$B$15,Coeff!$B$13/Coeff!$B$14*(F134*E134-1)/(F134-1),0)) ->  | I134: =IF(G134="","",IF((G134*(1-E134)-1)>=Coeff!$B$15,Coeff!$B$13/Coeff!$B$14*(G134*(1-E134)-1)/(G134-1),0)) -> 
H135: =IF(F135="","",IF((F135*E135-1)>=Coeff!$B$15,Coeff!$B$13/Coeff!$B$14*(F135*E135-1)/(F135-1),0)) ->  | I135: =IF(G135="","",IF((G135*(1-E135)-1)>=Coeff!$B$15,Coeff!$B$13/Coeff!$B$14*(G135*(1-E135)-1)/(G135-1),0)) -> 
H136: =IF(F136="","",IF((F136*E136-1)>=Coeff!$B$15,Coeff!$B$13/Coeff!$B$14*(F136*E136-1)/(F136-1),0)) ->  | I136: =IF(G136="","",IF((G136*(1-E136)-1)>=Coeff!$B$15,Coeff!$B$13/Coeff!$B$14*(G136*(1-E136)-1)/(G136-1),0)) -> 
H137: =IF(F137="","",IF((F137*E137-1)>=Coeff!$B$15,Coeff!$B$13/Coeff!$B$14*(F137*E137-1)/(F137-1),0)) ->  | I137: =IF(G137="","",IF((G137*(1-E137)-1)>=Coeff!$B$15,Coeff!$B$13/Coeff!$B$14*(G137*(1-E137)-1)/(G137-1),0)) -> 
H138: =IF(F138="","",IF((F138*E138-1)>=Coeff!$B$15,Coeff!$B$13/Coeff!$B$14*(F138*E138-1)/(F138-1),0)) ->  | I138: =IF(G138="","",IF((G138*(1-E138)-1)>=Coeff!$B$15,Coeff!$B$13/Coeff!$B$14*(G138*(1-E138)-1)/(G138-1),0)) -> 
H139: =IF(F139="","",IF((F139*E139-1)>=Coeff!$B$15,Coeff!$B$13/Coeff!$B$14*(F139*E139-1)/(F139-1),0)) ->  | I139: =IF(G139="","",IF((G139*(1-E139)-1)>=Coeff!$B$15,Coeff!$B$13/Coeff!$B$14*(G139*(1-E139)-1)/(G139-1),0)) -> 
H140: =IF(F140="","",IF((F140*E140-1)>=Coeff!$B$15,Coeff!$B$13/Coeff!$B$14*(F140*E140-1)/(F140-1),0)) ->  | I140: =IF(G140="","",IF((G140*(1-E140)-1)>=Coeff!$B$15,Coeff!$B$13/Coeff!$B$14*(G140*(1-E140)-1)/(G140-1),0)) -> 
H141: =IF(F141="","",IF((F141*E141-1)>=Coeff!$B$15,Coeff!$B$13/Coeff!$B$14*(F141*E141-1)/(F141-1),0)) ->  | I141: =IF(G141="","",IF((G141*(1-E141)-1)>=Coeff!$B$15,Coeff!$B$13/Coeff!$B$14*(G141*(1-E141)-1)/(G141-1),0)) -> 
H142: =IF(F142="","",IF((F142*E142-1)>=Coeff!$B$15,Coeff!$B$13/Coeff!$B$14*(F142*E142-1)/(F142-1),0)) ->  | I142: =IF(G142="","",IF((G142*(1-E142)-1)>=Coeff!$B$15,Coeff!$B$13/Coeff!$B$14*(G142*(1-E142)-1)/(G142-1),0)) -> 
H143: =IF(F143="","",IF((F143*E143-1)>=Coeff!$B$15,Coeff!$B$13/Coeff!$B$14*(F143*E143-1)/(F143-1),0)) ->  | I143: =IF(G143="","",IF((G143*(1-E143)-1)>=Coeff!$B$15,Coeff!$B$13/Coeff!$B$14*(G143*(1-E143)-1)/(G143-1),0)) -> 
H144: =IF(F144="","",IF((F144*E144-1)>=Coeff!$B$15,Coeff!$B$13/Coeff!$B$14*(F144*E144-1)/(F144-1),0)) ->  | I144: =IF(G144="","",IF((G144*(1-E144)-1)>=Coeff!$B$15,Coeff!$B$13/Coeff!$B$14*(G144*(1-E144)-1)/(G144-1),0)) -> 
H145: =IF(F145="","",IF((F145*E145-1)>=Coeff!$B$15,Coeff!$B$13/Coeff!$B$14*(F145*E145-1)/(F145-1),0)) ->  | I145: =IF(G145="","",IF((G145*(1-E145)-1)>=Coeff!$B$15,Coeff!$B$13/Coeff!$B$14*(G145*(1-E145)-1)/(G145-1),0)) -> 
H146: =IF(F146="","",IF((F146*E146-1)>=Coeff!$B$15,Coeff!$B$13/Coeff!$B$14*(F146*E146-1)/(F146-1),0)) ->  | I146: =IF(G146="","",IF((G146*(1-E146)-1)>=Coeff!$B$15,Coeff!$B$13/Coeff!$B$14*(G146*(1-E146)-1)/(G146-1),0)) -> 
H147: =IF(F147="","",IF((F147*E147-1)>=Coeff!$B$15,Coeff!$B$13/Coeff!$B$14*(F147*E147-1)/(F147-1),0)) ->  | I147: =IF(G147="","",IF((G147*(1-E147)-1)>=Coeff!$B$15,Coeff!$B$13/Coeff!$B$14*(G147*(1-E147)-1)/(G147-1),0)) -> 
H148: =IF(F148="","",IF((F148*E148-1)>=Coeff!$B$15,Coeff!$B$13/Coeff!$B$14*(F148*E148-1)/(F148-1),0)) ->  | I148: =IF(G148="","",IF((G148*(1-E148)-1)>=Coeff!$B$15,Coeff!$B$13/Coeff!$B$14*(G148*(1-E148)-1)/(G148-1),0)) -> 
H149: =IF(F149="","",IF((F149*E149-1)>=Coeff!$B$15,Coeff!$B$13/Coeff!$B$14*(F149*E149-1)/(F149-1),0)) ->  | I149: =IF(G149="","",IF((G149*(1-E149)-1)>=Coeff!$B$15,Coeff!$B$13/Coeff!$B$14*(G149*(1-E149)-1)/(G149-1),0)) -> 
H150: =IF(F150="","",IF((F150*E150-1)>=Coeff!$B$15,Coeff!$B$13/Coeff!$B$14*(F150*E150-1)/(F150-1),0)) ->  | I150: =IF(G150="","",IF((G150*(1-E150)-1)>=Coeff!$B$15,Coeff!$B$13/Coeff!$B$14*(G150*(1-E150)-1)/(G150-1),0)) -> 
H151: =IF(F151="","",IF((F151*E151-1)>=Coeff!$B$15,Coeff!$B$13/Coeff!$B$14*(F151*E151-1)/(F151-1),0)) ->  | I151: =IF(G151="","",IF((G151*(1-E151)-1)>=Coeff!$B$15,Coeff!$B$13/Coeff!$B$14*(G151*(1-E151)-1)/(G151-1),0)) -> 
H152: =IF(F152="","",IF((F152*E152-1)>=Coeff!$B$15,Coeff!$B$13/Coeff!$B$14*(F152*E152-1)/(F152-1),0)) ->  | I152: =IF(G152="","",IF((G152*(1-E152)-1)>=Coeff!$B$15,Coeff!$B$13/Coeff!$B$14*(G152*(1-E152)-1)/(G152-1),0)) -> 
H153: =IF(F153="","",IF((F153*E153-1)>=Coeff!$B$15,Coeff!$B$13/Coeff!$B$14*(F153*E153-1)/(F153-1),0)) ->  | I153: =IF(G153="","",IF((G153*(1-E153)-1)>=Coeff!$B$15,Coeff!$B$13/Coeff!$B$14*(G153*(1-E153)-1)/(G153-1),0)) -> 
H154: =IF(F154="","",IF((F154*E154-1)>=Coeff!$B$15,Coeff!$B$13/Coeff!$B$14*(F154*E154-1)/(F154-1),0)) ->  | I154: =IF(G154="","",IF((G154*(1-E154)-1)>=Coeff!$B$15,Coeff!$B$13/Coeff!$B$14*(G154*(1-E154)-1)/(G154-1),0)) -> 
H155: =IF(F155="","",IF((F155*E155-1)>=Coeff!$B$15,Coeff!$B$13/Coeff!$B$14*(F155*E155-1)/(F155-1),0)) ->  | I155: =IF(G155="","",IF((G155*(1-E155)-1)>=Coeff!$B$15,Coeff!$B$13/Coeff!$B$14*(G155*(1-E155)-1)/(G155-1),0)) -> 
H156: =IF(F156="","",IF((F156*E156-1)>=Coeff!$B$15,Coeff!$B$13/Coeff!$B$14*(F156*E156-1)/(F156-1),0)) ->  | I156: =IF(G156="","",IF((G156*(1-E156)-1)>=Coeff!$B$15,Coeff!$B$13/Coeff!$B$14*(G156*(1-E156)-1)/(G156-1),0)) -> 
H157: =IF(F157="","",IF((F157*E157-1)>=Coeff!$B$15,Coeff!$B$13/Coeff!$B$14*(F157*E157-1)/(F157-1),0)) ->  | I157: =IF(G157="","",IF((G157*(1-E157)-1)>=Coeff!$B$15,Coeff!$B$13/Coeff!$B$14*(G157*(1-E157)-1)/(G157-1),0)) -> 
H158: =IF(F158="","",IF((F158*E158-1)>=Coeff!$B$15,Coeff!$B$13/Coeff!$B$14*(F158*E158-1)/(F158-1),0)) ->  | I158: =IF(G158="","",IF((G158*(1-E158)-1)>=Coeff!$B$15,Coeff!$B$13/Coeff!$B$14*(G158*(1-E158)-1)/(G158-1),0)) -> 
H159: =IF(F159="","",IF((F159*E159-1)>=Coeff!$B$15,Coeff!$B$13/Coeff!$B$14*(F159*E159-1)/(F159-1),0)) ->  | I159: =IF(G159="","",IF((G159*(1-E159)-1)>=Coeff!$B$15,Coeff!$B$13/Coeff!$B$14*(G159*(1-E159)-1)/(G159-1),0)) -> 
H160: =IF(F160="","",IF((F160*E160-1)>=Coeff!$B$15,Coeff!$B$13/Coeff!$B$14*(F160*E160-1)/(F160-1),0)) ->  | I160: =IF(G160="","",IF((G160*(1-E160)-1)>=Coeff!$B$15,Coeff!$B$13/Coeff!$B$14*(G160*(1-E160)-1)/(G160-1),0)) -> 
H161: =IF(F161="","",IF((F161*E161-1)>=Coeff!$B$15,Coeff!$B$13/Coeff!$B$14*(F161*E161-1)/(F161-1),0)) ->  | I161: =IF(G161="","",IF((G161*(1-E161)-1)>=Coeff!$B$15,Coeff!$B$13/Coeff!$B$14*(G161*(1-E161)-1)/(G161-1),0)) -> 
H162: =IF(F162="","",IF((F162*E162-1)>=Coeff!$B$15,Coeff!$B$13/Coeff!$B$14*(F162*E162-1)/(F162-1),0)) ->  | I162: =IF(G162="","",IF((G162*(1-E162)-1)>=Coeff!$B$15,Coeff!$B$13/Coeff!$B$14*(G162*(1-E162)-1)/(G162-1),0)) -> 
H163: =IF(F163="","",IF((F163*E163-1)>=Coeff!$B$15,Coeff!$B$13/Coeff!$B$14*(F163*E163-1)/(F163-1),0)) ->  | I163: =IF(G163="","",IF((G163*(1-E163)-1)>=Coeff!$B$15,Coeff!$B$13/Coeff!$B$14*(G163*(1-E163)-1)/(G163-1),0)) -> 
H164: =IF(F164="","",IF((F164*E164-1)>=Coeff!$B$15,Coeff!$B$13/Coeff!$B$14*(F164*E164-1)/(F164-1),0)) ->  | I164: =IF(G164="","",IF((G164*(1-E164)-1)>=Coeff!$B$15,Coeff!$B$13/Coeff!$B$14*(G164*(1-E164)-1)/(G164-1),0)) -> 
H165: =IF(F165="","",IF((F165*E165-1)>=Coeff!$B$15,Coeff!$B$13/Coeff!$B$14*(F165*E165-1)/(F165-1),0)) ->  | I165: =IF(G165="","",IF((G165*(1-E165)-1)>=Coeff!$B$15,Coeff!$B$13/Coeff!$B$14*(G165*(1-E165)-1)/(G165-1),0)) -> 
H166: =IF(F166="","",IF((F166*E166-1)>=Coeff!$B$15,Coeff!$B$13/Coeff!$B$14*(F166*E166-1)/(F166-1),0)) ->  | I166: =IF(G166="","",IF((G166*(1-E166)-1)>=Coeff!$B$15,Coeff!$B$13/Coeff!$B$14*(G166*(1-E166)-1)/(G166-1),0)) -> 
H167: =IF(F167="","",IF((F167*E167-1)>=Coeff!$B$15,Coeff!$B$13/Coeff!$B$14*(F167*E167-1)/(F167-1),0)) ->  | I167: =IF(G167="","",IF((G167*(1-E167)-1)>=Coeff!$B$15,Coeff!$B$13/Coeff!$B$14*(G167*(1-E167)-1)/(G167-1),0)) -> 
H168: =IF(F168="","",IF((F168*E168-1)>=Coeff!$B$15,Coeff!$B$13/Coeff!$B$14*(F168*E168-1)/(F168-1),0)) ->  | I168: =IF(G168="","",IF((G168*(1-E168)-1)>=Coeff!$B$15,Coeff!$B$13/Coeff!$B$14*(G168*(1-E168)-1)/(G168-1),0)) -> 
H169: =IF(F169="","",IF((F169*E169-1)>=Coeff!$B$15,Coeff!$B$13/Coeff!$B$14*(F169*E169-1)/(F169-1),0)) ->  | I169: =IF(G169="","",IF((G169*(1-E169)-1)>=Coeff!$B$15,Coeff!$B$13/Coeff!$B$14*(G169*(1-E169)-1)/(G169-1),0)) -> 
H170: =IF(F170="","",IF((F170*E170-1)>=Coeff!$B$15,Coeff!$B$13/Coeff!$B$14*(F170*E170-1)/(F170-1),0)) ->  | I170: =IF(G170="","",IF((G170*(1-E170)-1)>=Coeff!$B$15,Coeff!$B$13/Coeff!$B$14*(G170*(1-E170)-1)/(G170-1),0)) -> 
H171: =IF(F171="","",IF((F171*E171-1)>=Coeff!$B$15,Coeff!$B$13/Coeff!$B$14*(F171*E171-1)/(F171-1),0)) ->  | I171: =IF(G171="","",IF((G171*(1-E171)-1)>=Coeff!$B$15,Coeff!$B$13/Coeff!$B$14*(G171*(1-E171)-1)/(G171-1),0)) -> 
H172: =IF(F172="","",IF((F172*E172-1)>=Coeff!$B$15,Coeff!$B$13/Coeff!$B$14*(F172*E172-1)/(F172-1),0)) ->  | I172: =IF(G172="","",IF((G172*(1-E172)-1)>=Coeff!$B$15,Coeff!$B$13/Coeff!$B$14*(G172*(1-E172)-1)/(G172-1),0)) -> 
H173: =IF(F173="","",IF((F173*E173-1)>=Coeff!$B$15,Coeff!$B$13/Coeff!$B$14*(F173*E173-1)/(F173-1),0)) ->  | I173: =IF(G173="","",IF((G173*(1-E173)-1)>=Coeff!$B$15,Coeff!$B$13/Coeff!$B$14*(G173*(1-E173)-1)/(G173-1),0)) -> 
H174: =IF(F174="","",IF((F174*E174-1)>=Coeff!$B$15,Coeff!$B$13/Coeff!$B$14*(F174*E174-1)/(F174-1),0)) ->  | I174: =IF(G174="","",IF((G174*(1-E174)-1)>=Coeff!$B$15,Coeff!$B$13/Coeff!$B$14*(G174*(1-E174)-1)/(G174-1),0)) -> 
H175: =IF(F175="","",IF((F175*E175-1)>=Coeff!$B$15,Coeff!$B$13/Coeff!$B$14*(F175*E175-1)/(F175-1),0)) ->  | I175: =IF(G175="","",IF((G175*(1-E175)-1)>=Coeff!$B$15,Coeff!$B$13/Coeff!$B$14*(G175*(1-E175)-1)/(G175-1),0)) -> 
H176: =IF(F176="","",IF((F176*E176-1)>=Coeff!$B$15,Coeff!$B$13/Coeff!$B$14*(F176*E176-1)/(F176-1),0)) ->  | I176: =IF(G176="","",IF((G176*(1-E176)-1)>=Coeff!$B$15,Coeff!$B$13/Coeff!$B$14*(G176*(1-E176)-1)/(G176-1),0)) -> 
H177: =IF(F177="","",IF((F177*E177-1)>=Coeff!$B$15,Coeff!$B$13/Coeff!$B$14*(F177*E177-1)/(F177-1),0)) ->  | I177: =IF(G177="","",IF((G177*(1-E177)-1)>=Coeff!$B$15,Coeff!$B$13/Coeff!$B$14*(G177*(1-E177)-1)/(G177-1),0)) -> 
H178: =IF(F178="","",IF((F178*E178-1)>=Coeff!$B$15,Coeff!$B$13/Coeff!$B$14*(F178*E178-1)/(F178-1),0)) ->  | I178: =IF(G178="","",IF((G178*(1-E178)-1)>=Coeff!$B$15,Coeff!$B$13/Coeff!$B$14*(G178*(1-E178)-1)/(G178-1),0)) -> 
H179: =IF(F179="","",IF((F179*E179-1)>=Coeff!$B$15,Coeff!$B$13/Coeff!$B$14*(F179*E179-1)/(F179-1),0)) ->  | I179: =IF(G179="","",IF((G179*(1-E179)-1)>=Coeff!$B$15,Coeff!$B$13/Coeff!$B$14*(G179*(1-E179)-1)/(G179-1),0)) -> 
H180: =IF(F180="","",IF((F180*E180-1)>=Coeff!$B$15,Coeff!$B$13/Coeff!$B$14*(F180*E180-1)/(F180-1),0)) ->  | I180: =IF(G180="","",IF((G180*(1-E180)-1)>=Coeff!$B$15,Coeff!$B$13/Coeff!$B$14*(G180*(1-E180)-1)/(G180-1),0)) -> 
H181: =IF(F181="","",IF((F181*E181-1)>=Coeff!$B$15,Coeff!$B$13/Coeff!$B$14*(F181*E181-1)/(F181-1),0)) ->  | I181: =IF(G181="","",IF((G181*(1-E181)-1)>=Coeff!$B$15,Coeff!$B$13/Coeff!$B$14*(G181*(1-E181)-1)/(G181-1),0)) -> 
H182: =IF(F182="","",IF((F182*E182-1)>=Coeff!$B$15,Coeff!$B$13/Coeff!$B$14*(F182*E182-1)/(F182-1),0)) ->  | I182: =IF(G182="","",IF((G182*(1-E182)-1)>=Coeff!$B$15,Coeff!$B$13/Coeff!$B$14*(G182*(1-E182)-1)/(G182-1),0)) -> 
H183: =IF(F183="","",IF((F183*E183-1)>=Coeff!$B$15,Coeff!$B$13/Coeff!$B$14*(F183*E183-1)/(F183-1),0)) ->  | I183: =IF(G183="","",IF((G183*(1-E183)-1)>=Coeff!$B$15,Coeff!$B$13/Coeff!$B$14*(G183*(1-E183)-1)/(G183-1),0)) -> 
H184: =IF(F184="","",IF((F184*E184-1)>=Coeff!$B$15,Coeff!$B$13/Coeff!$B$14*(F184*E184-1)/(F184-1),0)) ->  | I184: =IF(G184="","",IF((G184*(1-E184)-1)>=Coeff!$B$15,Coeff!$B$13/Coeff!$B$14*(G184*(1-E184)-1)/(G184-1),0)) -> 
H185: =IF(F185="","",IF((F185*E185-1)>=Coeff!$B$15,Coeff!$B$13/Coeff!$B$14*(F185*E185-1)/(F185-1),0)) ->  | I185: =IF(G185="","",IF((G185*(1-E185)-1)>=Coeff!$B$15,Coeff!$B$13/Coeff!$B$14*(G185*(1-E185)-1)/(G185-1),0)) -> 
H186: =IF(F186="","",IF((F186*E186-1)>=Coeff!$B$15,Coeff!$B$13/Coeff!$B$14*(F186*E186-1)/(F186-1),0)) ->  | I186: =IF(G186="","",IF((G186*(1-E186)-1)>=Coeff!$B$15,Coeff!$B$13/Coeff!$B$14*(G186*(1-E186)-1)/(G186-1),0)) -> 
H187: =IF(F187="","",IF((F187*E187-1)>=Coeff!$B$15,Coeff!$B$13/Coeff!$B$14*(F187*E187-1)/(F187-1),0)) ->  | I187: =IF(G187="","",IF((G187*(1-E187)-1)>=Coeff!$B$15,Coeff!$B$13/Coeff!$B$14*(G187*(1-E187)-1)/(G187-1),0)) -> 
H188: =IF(F188="","",IF((F188*E188-1)>=Coeff!$B$15,Coeff!$B$13/Coeff!$B$14*(F188*E188-1)/(F188-1),0)) ->  | I188: =IF(G188="","",IF((G188*(1-E188)-1)>=Coeff!$B$15,Coeff!$B$13/Coeff!$B$14*(G188*(1-E188)-1)/(G188-1),0)) -> 
H189: =IF(F189="","",IF((F189*E189-1)>=Coeff!$B$15,Coeff!$B$13/Coeff!$B$14*(F189*E189-1)/(F189-1),0)) ->  | I189: =IF(G189="","",IF((G189*(1-E189)-1)>=Coeff!$B$15,Coeff!$B$13/Coeff!$B$14*(G189*(1-E189)-1)/(G189-1),0)) -> 
H190: =IF(F190="","",IF((F190*E190-1)>=Coeff!$B$15,Coeff!$B$13/Coeff!$B$14*(F190*E190-1)/(F190-1),0)) ->  | I190: =IF(G190="","",IF((G190*(1-E190)-1)>=Coeff!$B$15,Coeff!$B$13/Coeff!$B$14*(G190*(1-E190)-1)/(G190-1),0)) -> 
H191: =IF(F191="","",IF((F191*E191-1)>=Coeff!$B$15,Coeff!$B$13/Coeff!$B$14*(F191*E191-1)/(F191-1),0)) ->  | I191: =IF(G191="","",IF((G191*(1-E191)-1)>=Coeff!$B$15,Coeff!$B$13/Coeff!$B$14*(G191*(1-E191)-1)/(G191-1),0)) -> 
H192: =IF(F192="","",IF((F192*E192-1)>=Coeff!$B$15,Coeff!$B$13/Coeff!$B$14*(F192*E192-1)/(F192-1),0)) ->  | I192: =IF(G192="","",IF((G192*(1-E192)-1)>=Coeff!$B$15,Coeff!$B$13/Coeff!$B$14*(G192*(1-E192)-1)/(G192-1),0)) -> 
H193: =IF(F193="","",IF((F193*E193-1)>=Coeff!$B$15,Coeff!$B$13/Coeff!$B$14*(F193*E193-1)/(F193-1),0)) ->  | I193: =IF(G193="","",IF((G193*(1-E193)-1)>=Coeff!$B$15,Coeff!$B$13/Coeff!$B$14*(G193*(1-E193)-1)/(G193-1),0)) -> 
H194: =IF(F194="","",IF((F194*E194-1)>=Coeff!$B$15,Coeff!$B$13/Coeff!$B$14*(F194*E194-1)/(F194-1),0)) ->  | I194: =IF(G194="","",IF((G194*(1-E194)-1)>=Coeff!$B$15,Coeff!$B$13/Coeff!$B$14*(G194*(1-E194)-1)/(G194-1),0)) -> 
H195: =IF(F195="","",IF((F195*E195-1)>=Coeff!$B$15,Coeff!$B$13/Coeff!$B$14*(F195*E195-1)/(F195-1),0)) ->  | I195: =IF(G195="","",IF((G195*(1-E195)-1)>=Coeff!$B$15,Coeff!$B$13/Coeff!$B$14*(G195*(1-E195)-1)/(G195-1),0)) -> 
H196: =IF(F196="","",IF((F196*E196-1)>=Coeff!$B$15,Coeff!$B$13/Coeff!$B$14*(F196*E196-1)/(F196-1),0)) ->  | I196: =IF(G196="","",IF((G196*(1-E196)-1)>=Coeff!$B$15,Coeff!$B$13/Coeff!$B$14*(G196*(1-E196)-1)/(G196-1),0)) -> 
H197: =IF(F197="","",IF((F197*E197-1)>=Coeff!$B$15,Coeff!$B$13/Coeff!$B$14*(F197*E197-1)/(F197-1),0)) ->  | I197: =IF(G197="","",IF((G197*(1-E197)-1)>=Coeff!$B$15,Coeff!$B$13/Coeff!$B$14*(G197*(1-E197)-1)/(G197-1),0)) -> 
H198: =IF(F198="","",IF((F198*E198-1)>=Coeff!$B$15,Coeff!$B$13/Coeff!$B$14*(F198*E198-1)/(F198-1),0)) ->  | I198: =IF(G198="","",IF((G198*(1-E198)-1)>=Coeff!$B$15,Coeff!$B$13/Coeff!$B$14*(G198*(1-E198)-1)/(G198-1),0)) -> 
H199: =IF(F199="","",IF((F199*E199-1)>=Coeff!$B$15,Coeff!$B$13/Coeff!$B$14*(F199*E199-1)/(F199-1),0)) ->  | I199: =IF(G199="","",IF((G199*(1-E199)-1)>=Coeff!$B$15,Coeff!$B$13/Coeff!$B$14*(G199*(1-E199)-1)/(G199-1),0)) -> 
H200: =IF(F200="","",IF((F200*E200-1)>=Coeff!$B$15,Coeff!$B$13/Coeff!$B$14*(F200*E200-1)/(F200-1),0)) ->  | I200: =IF(G200="","",IF((G200*(1-E200)-1)>=Coeff!$B$15,Coeff!$B$13/Coeff!$B$14*(G200*(1-E200)-1)/(G200-1),0)) -> 
H201: =IF(F201="","",IF((F201*E201-1)>=Coeff!$B$15,Coeff!$B$13/Coeff!$B$14*(F201*E201-1)/(F201-1),0)) ->  | I201: =IF(G201="","",IF((G201*(1-E201)-1)>=Coeff!$B$15,Coeff!$B$13/Coeff!$B$14*(G201*(1-E201)-1)/(G201-1),0)) -> 
H202: =IF(F202="","",IF((F202*E202-1)>=Coeff!$B$15,Coeff!$B$13/Coeff!$B$14*(F202*E202-1)/(F202-1),0)) ->  | I202: =IF(G202="","",IF((G202*(1-E202)-1)>=Coeff!$B$15,Coeff!$B$13/Coeff!$B$14*(G202*(1-E202)-1)/(G202-1),0)) -> 
... 298 more rows
